BODY,BODY NAME,Service Label,SERVICE CODE,ORGANISATIONAL UNIT,ORGANISATIONAL UNIT CODE,EXPENDITURE CATEGORY,EXPENDITURE CODE,DATE (POSTING DATE),TRANSACTION NUMBER,AMOUNT,SUPPLIER NAME,SUPPLIER ID
WARRINGTON BOROUGH COUNCIL,http://statistics.data.gov.uk/id/local-authority/00EU,Neighbourhood & Community Services,NCS,Care Purchase - PD,54440,Direct Payments,552000,16-Oct-12,1900101361,"2,768.00",Redacted Personal Data,100049
WARRINGTON BOROUGH COUNCIL,http://statistics.data.gov.uk/id/local-authority/00EU,Neighbourhood & Community Services,NCS,Care Purchase - PD,54440,CP Adult Placement,443450,30-Oct-12,1900102636,"2,991.00",Redacted Personal Data,100052
WARRINGTON BOROUGH COUNCIL,http://statistics.data.gov.uk/id/local-authority/00EU,Neighbourhood & Community Services,NCS,Care Purchase Budget,54490,CP ExternalOther Exp,440800,03-Oct-12,1900100346,"1,395.00",Heathfield Residental Home,100059
WARRINGTON BOROUGH COUNCIL,http://statistics.data.gov.uk/id/local-authority/00EU,Neighbourhood & Community Services,NCS,Care Purchase Budget,54490,CP ExternalOther Exp,440800,17-Oct-12,1900101194,"18,000.00",Heathfield Residental Home,100059
WARRINGTON BOROUGH COUNCIL,http://statistics.data.gov.uk/id/local-authority/00EU,Assistant Chief Executive,CEX,Coroners Service,11100,Reimbursement for Deputy Coroner,440400,10-Oct-12,1900100834,"3,320.00",Dr J E Napier,100061
WARRINGTON BOROUGH COUNCIL,http://statistics.data.gov.uk/id/local-authority/00EU,Assistant Chief Executive,CEX,Coroners Service,11100,Post Mortem Fees-Rep,440250,10-Oct-12,1900100750,"1,180.00",Dr C M Manson,100080
WARRINGTON BOROUGH COUNCIL,http://statistics.data.gov.uk/id/local-authority/00EU,Neighbourhood & Community Services,NCS,Care Purchase - Mental Health Team 2,54240,CP-LongStayExternal,441150,10-Oct-12,1900100810,"2,453.00",Phoenix House,100085
WARRINGTON BOROUGH COUNCIL,http://statistics.data.gov.uk/id/local-authority/00EU,Neighbourhood & Community Services,NCS,Care Purchase - Mental Health Team 2,54240,CP-LongStayExternal,441150,10-Oct-12,1900100812,"2,453.00",Phoenix House,100085
WARRINGTON BOROUGH COUNCIL,http://statistics.data.gov.uk/id/local-authority/00EU,Neighbourhood & Community Services,NCS,Care Purchase - Mental Health Team 2,54240,CP-LongStayExternal,441150,10-Oct-12,1900100813,"2,368.00",Phoenix House,100085
WARRINGTON BOROUGH COUNCIL,http://statistics.data.gov.uk/id/local-authority/00EU,Neighbourhood & Community Services,NCS,Care Purchase - Learning Disability,54450,CP-LongStayExternal,441150,23-Oct-12,1900102118,"8,418.00",Milbury Care Services Limited,100099
WARRINGTON BOROUGH COUNCIL,http://statistics.data.gov.uk/id/local-authority/00EU,Neighbourhood & Community Services,NCS,Care Purchase - OP & OT Central,54420,CP-LongStayExternal,441150,23-Oct-12,1900102119,"5,800.00",Milbury Care Services Limited,100099
WARRINGTON BOROUGH COUNCIL,http://statistics.data.gov.uk/id/local-authority/00EU,Neighbourhood & Community Services,NCS,Care Purchase - ABI,54260,CP-LongStayExternal,441150,23-Oct-12,1900102120,"6,428.00",Milbury Care Services Limited,100099
WARRINGTON BOROUGH COUNCIL,http://statistics.data.gov.uk/id/local-authority/00EU,Neighbourhood & Community Services,NCS,Care Purchase - Mental Health Team 3,54250,CP-LongStayExternal,441150,23-Oct-12,1900102121,"7,085.00",Milbury Care Services Limited,100099
WARRINGTON BOROUGH COUNCIL,http://statistics.data.gov.uk/id/local-authority/00EU,Neighbourhood & Community Services,NCS,Care Purchase - PD,54440,CP-Nursing Care-External,441200,29-Oct-12,1900102587,"4,594.00",Milbury Care Services Limited,100099
WARRINGTON BOROUGH COUNCIL,http://statistics.data.gov.uk/id/local-authority/00EU,Neighbourhood & Community Services,NCS,Care Purchase - Learning Disability,54450,Direct Payments,552000,16-Oct-12,1900101363,717,Redacted Personal Data,100270
WARRINGTON BOROUGH COUNCIL,http://statistics.data.gov.uk/id/local-authority/00EU,Neighbourhood & Community Services,NCS,Care Purchase -OP & OT East,54430,CP-LongStayExternal,441150,15-Oct-12,1900101021,"1,392.00",The Nugent Care Society,100277
WARRINGTON BOROUGH COUNCIL,http://statistics.data.gov.uk/id/local-authority/00EU,Neighbourhood & Community Services,NCS,Care Purchase -OP & OT East,54430,CP-LongStayExternal,441150,15-Oct-12,1900101022,"1,752.00",The Nugent Care Society,100277
WARRINGTON BOROUGH COUNCIL,http://statistics.data.gov.uk/id/local-authority/00EU,Neighbourhood & Community Services,NCS,Care Purchase -OP & OT East,54430,CP-LongStayExternal,441150,15-Oct-12,1900101025,"1,392.00",The Nugent Care Society,100277
WARRINGTON BOROUGH COUNCIL,http://statistics.data.gov.uk/id/local-authority/00EU,Neighbourhood & Community Services,NCS,Orford Park Library,51157,Furniture & Fittings,400150,11-Oct-12,1900100893,"5,966.00",Opening The Book,100309
WARRINGTON BOROUGH COUNCIL,http://statistics.data.gov.uk/id/local-authority/00EU,Neighbourhood & Community Services,NCS,Care Purchase Budget,54490,CP ExternalOther Exp,440800,10-Oct-12,1900100806,"3,507.00",European Care (Uk) Ltd,100320
WARRINGTON BOROUGH COUNCIL,http://statistics.data.gov.uk/id/local-authority/00EU,Neighbourhood & Community Services,NCS,Care Purchase Budget,54490,CP ExternalOther Exp,440800,17-Oct-12,1900101198,"40,000.00",European Care (Uk) Ltd,100320
WARRINGTON BOROUGH COUNCIL,http://statistics.data.gov.uk/id/local-authority/00EU,Holding Accounts,HOL,Insurance Fund,91100,Insurance Claims,443400,19-Oct-12,1900101968,736,Autoglass Ltd,100326
WARRINGTON BOROUGH COUNCIL,http://statistics.data.gov.uk/id/local-authority/00EU,Holding Accounts,HOL,Insurance Fund,91100,Insurance Claims,443400,25-Oct-12,1900102330,911,Autoglass Ltd,100326
WARRINGTON BOROUGH COUNCIL,http://statistics.data.gov.uk/id/local-authority/00EU,Neighbourhood & Community Services,NCS,Care Purchase - PD,54440,Direct Payments,552000,16-Oct-12,1900101364,"1,797.00",Redacted Personal Data,100338
WARRINGTON BOROUGH COUNCIL,http://statistics.data.gov.uk/id/local-authority/00EU,Neighbourhood & Community Services,NCS,Care Purchase - PD,54440,Direct Payments,552000,16-Oct-12,1900101365,"1,000.00",Redacted Personal Data,100340
WARRINGTON BOROUGH COUNCIL,http://statistics.data.gov.uk/id/local-authority/00EU,Assistant Chief Executive,CEX,Coroners Service,11100,Post Mortem Fees-Rep,440250,17-Oct-12,1900101263,"1,081.00",Dr B.N.A Hamid,100354
WARRINGTON BOROUGH COUNCIL,http://statistics.data.gov.uk/id/local-authority/00EU,Neighbourhood & Community Services,NCS,Care Purchase - PD,54440,CP-Nursing Care-External,441200,29-Oct-12,1900102557,"2,780.00",Leonard Cheshire Disability,100370
WARRINGTON BOROUGH COUNCIL,http://statistics.data.gov.uk/id/local-authority/00EU,Assistant Chief Executive,CEX,Coroners Service,11100,Post Mortem Fees-Rep,440250,10-Oct-12,1900100747,799,Dr J Krajacevic,100409
WARRINGTON BOROUGH COUNCIL,http://statistics.data.gov.uk/id/local-authority/00EU,Neighbourhood & Community Services,NCS,Care Purchase - Learning Disability,54450,CP-Nursing Care-External,441200,23-Oct-12,1900102123,"2,436.00",Chadderton Total-Care Unit Ltd,100425
WARRINGTON BOROUGH COUNCIL,http://statistics.data.gov.uk/id/local-authority/00EU,Assistant Chief Executive,CEX,Coroners Service,11100,Post Mortem Fees-Rep,440250,23-Oct-12,1900102098,677,Dr J.S Stafford,100426
WARRINGTON BOROUGH COUNCIL,http://statistics.data.gov.uk/id/local-authority/00EU,Neighbourhood & Community Services,NCS,Care Purchase - Learning Disability,54450,Direct Payments,552000,16-Oct-12,1900101367,720,Redacted Personal Data,100452
WARRINGTON BOROUGH COUNCIL,http://statistics.data.gov.uk/id/local-authority/00EU,Neighbourhood & Community Services,NCS,Care Purchase - PD,54440,Direct Payments,552000,16-Oct-12,1900101368,"1,200.00",Redacted Personal Data,100472
WARRINGTON BOROUGH COUNCIL,http://statistics.data.gov.uk/id/local-authority/00EU,Neighbourhood & Community Services,NCS,Care Purchase Budget,54490,CP - Cont Care - External,441350,17-Oct-12,1900101185,568,The Extracare Charitable Trust,100497
WARRINGTON BOROUGH COUNCIL,http://statistics.data.gov.uk/id/local-authority/00EU,Neighbourhood & Community Services,NCS,Care Purchase Budget,54490,CP - Cont Care - External,441350,17-Oct-12,1900101187,568,The Extracare Charitable Trust,100497
WARRINGTON BOROUGH COUNCIL,http://statistics.data.gov.uk/id/local-authority/00EU,Neighbourhood & Community Services,NCS,Care Purchase - OP & OT Central,54420,CP - Housing with Care - External,494450,19-Oct-12,1900101949,"19,803.00",The Extracare Charitable Trust,100497
WARRINGTON BOROUGH COUNCIL,http://statistics.data.gov.uk/id/local-authority/00EU,Neighbourhood & Community Services,NCS,Care Purchase Budget,54490,CP - Cont Care - External,441350,19-Oct-12,1900101949,"2,393.00",The Extracare Charitable Trust,100497
WARRINGTON BOROUGH COUNCIL,http://statistics.data.gov.uk/id/local-authority/00EU,Neighbourhood & Community Services,NCS,Care Purchase Budget,54490,CP Free Nursing Care External,443500,19-Oct-12,1900101949,"2,174.00",The Extracare Charitable Trust,100497
WARRINGTON BOROUGH COUNCIL,http://statistics.data.gov.uk/id/local-authority/00EU,Neighbourhood & Community Services,NCS,Care Purchase -OP & OT East,54430,CP - Housing with Care - External,494450,19-Oct-12,1900101949,"1,584.00",The Extracare Charitable Trust,100497
WARRINGTON BOROUGH COUNCIL,http://statistics.data.gov.uk/id/local-authority/00EU,Neighbourhood & Community Services,NCS,Care Purchase - PD,54440,CP - Housing with Care - External,494450,19-Oct-12,1900101949,"1,196.00",The Extracare Charitable Trust,100497
WARRINGTON BOROUGH COUNCIL,http://statistics.data.gov.uk/id/local-authority/00EU,Neighbourhood & Community Services,NCS,Care Purchase - PD,54440,CP - Housing with Care - External,494450,19-Oct-12,1900101989,"1,131.00",The Extracare Charitable Trust,100497
WARRINGTON BOROUGH COUNCIL,http://statistics.data.gov.uk/id/local-authority/00EU,Neighbourhood & Community Services,NCS,Care Purchase - PD,54440,Direct Payments,552000,16-Oct-12,1900101370,"2,279.00",Redacted Personal Data,100505
WARRINGTON BOROUGH COUNCIL,http://statistics.data.gov.uk/id/local-authority/00EU,Neighbourhood & Community Services,NCS,Care Purchase - PD,54440,Direct Payments,552000,16-Oct-12,1900101371,737,Redacted Personal Data,100508
WARRINGTON BOROUGH COUNCIL,http://statistics.data.gov.uk/id/local-authority/00EU,Children & Young People,CHL,Foster Allowances,31106,Fostering Allowance,550050,01-Oct-12,1900100183,600,Redacted Personal Data,100523
WARRINGTON BOROUGH COUNCIL,http://statistics.data.gov.uk/id/local-authority/00EU,Assistant Chief Executive,CEX,Council Tax & Recovery,10320,External Printing,430100,16-Oct-12,1900101171,"1,651.00",Vertex Data Science,100530
WARRINGTON BOROUGH COUNCIL,http://statistics.data.gov.uk/id/local-authority/00EU,Environment & Regeneration,ER0,Postal & Courier Services,52130,Stationery,430150,24-Oct-12,1900102286,"9,502.00",Vertex Data Science,100530
WARRINGTON BOROUGH COUNCIL,http://statistics.data.gov.uk/id/local-authority/00EU,Assistant Chief Executive,CEX,Council Tax & Recovery,10320,External Printing,430100,24-Oct-12,1900102286,885,Vertex Data Science,100530
WARRINGTON BOROUGH COUNCIL,http://statistics.data.gov.uk/id/local-authority/00EU,Assistant Chief Executive,CEX,Debtors,10380,External Printing,430100,24-Oct-12,1900102286,554,Vertex Data Science,100530
WARRINGTON BOROUGH COUNCIL,http://statistics.data.gov.uk/id/local-authority/00EU,Assistant Chief Executive,CEX,Council Tax & Recovery,10320,External Printing,430100,31-Oct-12,1900102704,"10,849.00",Vertex Data Science,100530
WARRINGTON BOROUGH COUNCIL,http://statistics.data.gov.uk/id/local-authority/00EU,Assistant Chief Executive,CEX,Council Tax & Recovery,10320,External Printing,430100,31-Oct-12,1900102705,"2,466.00",Vertex Data Science,100530
WARRINGTON BOROUGH COUNCIL,http://statistics.data.gov.uk/id/local-authority/00EU,Environment & Regeneration,ER0,New Town House,43119,Service Charges,220050,26-Oct-12,1900102503,846,Adt Fire And Security Plc,100549
WARRINGTON BOROUGH COUNCIL,http://statistics.data.gov.uk/id/local-authority/00EU,Environment & Regeneration,ER0,New Town House,43119,Service Charges,220050,26-Oct-12,1900102504,600,Adt Fire And Security Plc,100549
WARRINGTON BOROUGH COUNCIL,http://statistics.data.gov.uk/id/local-authority/00EU,Children & Young People,CYP,Childrens Other,81004,Contract Works,492550,31-Oct-12,1900102688,884,Keyways Security Systems Ltd,100555
WARRINGTON BOROUGH COUNCIL,http://statistics.data.gov.uk/id/local-authority/00EU,Environment & Regeneration,ER0,Estates & Valuation,43520,Agency Supply - GF,180000,02-Oct-12,1900100251,592,Anderselite,100563
WARRINGTON BOROUGH COUNCIL,http://statistics.data.gov.uk/id/local-authority/00EU,Children & Young People,CHL,Legal Fees - Safeguarding,30100,Legal Costs Incurred,440200,04-Oct-12,1900100418,512,Ulcan Business Services,100570
WARRINGTON BOROUGH COUNCIL,http://statistics.data.gov.uk/id/local-authority/00EU,Children & Young People,CHL,Effective Practice,33300,Car Allowances,350050,10-Oct-12,1900100841,671,Cheshire Probation Board,100573
WARRINGTON BOROUGH COUNCIL,http://statistics.data.gov.uk/id/local-authority/00EU,Assistant Chief Executive,CEX,Coroners Service,11100,Post Mortem Fees-Rep,440250,10-Oct-12,1900100733,997,Dr N Alash,100579
WARRINGTON BOROUGH COUNCIL,http://statistics.data.gov.uk/id/local-authority/00EU,Neighbourhood & Community Services,NCS,Care Purchase - Learning Disability,54450,CP-LongStayExternal,441150,30-Oct-12,1900102645,"2,797.00",Redacted Personal Data,100583
WARRINGTON BOROUGH COUNCIL,http://statistics.data.gov.uk/id/local-authority/00EU,Neighbourhood & Community Services,NCS,Care Purchase - Learning Disability,54450,Direct Payments,552000,16-Oct-12,1900101372,"1,120.00",Redacted Personal Data,100607
WARRINGTON BOROUGH COUNCIL,http://statistics.data.gov.uk/id/local-authority/00EU,Environment & Regeneration,ER0,Customer Contact Centre,52201,Ticket Master Charges,490450,03-Oct-12,1900100277,594,The Royal Airforce Charitable Trust,100652
WARRINGTON BOROUGH COUNCIL,http://statistics.data.gov.uk/id/local-authority/00EU,Neighbourhood & Community Services,NCS,Care Purchase - PD,54440,Direct Payments,552000,16-Oct-12,1900101374,"1,907.00",Redacted Personal Data,100666
WARRINGTON BOROUGH COUNCIL,http://statistics.data.gov.uk/id/local-authority/00EU,Neighbourhood & Community Services,NCS,Care Purchase - PD,54440,Direct Payments,552000,16-Oct-12,1900101375,"1,778.00",Redacted Personal Data,100667
WARRINGTON BOROUGH COUNCIL,http://statistics.data.gov.uk/id/local-authority/00EU,Neighbourhood & Community Services,NCS,Care Purchase - OP & OT Central,54420,CP-Nursing Care-External,441200,05-Oct-12,1900100527,"3,687.00",Alexandra Care Home,100708
WARRINGTON BOROUGH COUNCIL,http://statistics.data.gov.uk/id/local-authority/00EU,Neighbourhood & Community Services,NCS,Care Purchase - OP & OT Central,54420,CP-LongStayExternal,441150,05-Oct-12,1900100527,"2,112.00",Alexandra Care Home,100708
WARRINGTON BOROUGH COUNCIL,http://statistics.data.gov.uk/id/local-authority/00EU,Neighbourhood & Community Services,NCS,Care Purchase - OP & OT Central,54420,CP-Nursing Care-External,441200,23-Oct-12,1900102136,"1,564.00",Alexandra Care Home,100708
WARRINGTON BOROUGH COUNCIL,http://statistics.data.gov.uk/id/local-authority/00EU,Neighbourhood & Community Services,NCS,Care Purchase - Mental Health Team 3,54250,CP-Domicil.External,440950,29-Oct-12,1900102530,"2,538.00",Thermo Electron,100723
WARRINGTON BOROUGH COUNCIL,http://statistics.data.gov.uk/id/local-authority/00EU,Neighbourhood & Community Services,NCS,Care Purchase - Mental Health Team 1,54230,CP-Domicil.External,440950,03-Oct-12,1900100344,"3,353.00",Independent Living Alliance,100726
WARRINGTON BOROUGH COUNCIL,http://statistics.data.gov.uk/id/local-authority/00EU,Neighbourhood & Community Services,NCS,Care Purchase - Mental Health Team 1,54230,CP-Domicil.External,440950,03-Oct-12,1900100347,"2,942.00",Independent Living Alliance,100726
WARRINGTON BOROUGH COUNCIL,http://statistics.data.gov.uk/id/local-authority/00EU,Neighbourhood & Community Services,NCS,Care Purchase - Mental Health Team 1,54230,CP-Domicil.External,440950,04-Oct-12,1900100461,"3,922.00",Independent Living Alliance,100726
WARRINGTON BOROUGH COUNCIL,http://statistics.data.gov.uk/id/local-authority/00EU,Children & Young People,CHL,Child Disability,32212,CP-Domicil.External,440950,16-Oct-12,1900101082,"2,654.00",Bibby Factors Castlerock only,100012
WARRINGTON BOROUGH COUNCIL,http://statistics.data.gov.uk/id/local-authority/00EU,Children & Young People,CHL,Child Disability,32212,CP-Domicil.External,440950,18-Oct-12,1900101345,"2,654.00",Bibby Factors Castlerock only,100012
WARRINGTON BOROUGH COUNCIL,http://statistics.data.gov.uk/id/local-authority/00EU,Environment & Regeneration,ER0,ICT & Business Improvement,23020,ICT Comms - Line Usage,450300,01-Oct-12,1900100197,"4,574.00",Cable & Wireless Communications,100023
WARRINGTON BOROUGH COUNCIL,http://statistics.data.gov.uk/id/local-authority/00EU,Environment & Regeneration,ER0,ICT & Business Improvement,23020,ICT Comms - Line Rental,450200,01-Oct-12,1900100197,547,Cable & Wireless Communications,100023
WARRINGTON BOROUGH COUNCIL,http://statistics.data.gov.uk/id/local-authority/00EU,Environment & Regeneration,ER0,ICT & Business Improvement,23020,ICT Comms - Line Usage,450300,30-Oct-12,1900102619,"5,371.00",Cable & Wireless Communications,100023
WARRINGTON BOROUGH COUNCIL,http://statistics.data.gov.uk/id/local-authority/00EU,Environment & Regeneration,ER0,ICT & Business Improvement,23020,ICT Comms - Line Rental,450200,30-Oct-12,1900102619,547,Cable & Wireless Communications,100023
WARRINGTON BOROUGH COUNCIL,http://statistics.data.gov.uk/id/local-authority/00EU,Neighbourhood & Community Services,NCS,Care Purchase - Learning Disability,54450,CP Adult Placement,443450,30-Oct-12,1900102639,"1,496.00",Redacted Personal Data,100044
WARRINGTON BOROUGH COUNCIL,http://statistics.data.gov.uk/id/local-authority/00EU,Neighbourhood & Community Services,NCS,Care Purchase - Mental Health Team 1,54230,CP-Domicil.External,440950,04-Oct-12,1900100463,518,Independent Living Alliance,100726
WARRINGTON BOROUGH COUNCIL,http://statistics.data.gov.uk/id/local-authority/00EU,Neighbourhood & Community Services,NCS,Care Purchase - Mental Health Team 1,54230,CP-Domicil.External,440950,04-Oct-12,1900100465,"1,241.00",Independent Living Alliance,100726
WARRINGTON BOROUGH COUNCIL,http://statistics.data.gov.uk/id/local-authority/00EU,Neighbourhood & Community Services,NCS,Care Purchase - Mental Health Team 1,54230,Supporting People - External,441250,04-Oct-12,1900100465,880,Independent Living Alliance,100726
WARRINGTON BOROUGH COUNCIL,http://statistics.data.gov.uk/id/local-authority/00EU,Neighbourhood & Community Services,NCS,Care Purchase - Learning Disability,54450,CP-Domicil.External,440950,04-Oct-12,1900100466,"4,538.00",Independent Living Alliance,100726
WARRINGTON BOROUGH COUNCIL,http://statistics.data.gov.uk/id/local-authority/00EU,Neighbourhood & Community Services,NCS,Care Purchase - Mental Health Team 3,54250,CP-Domicil.External,440950,04-Oct-12,1900100467,"2,554.00",Independent Living Alliance,100726
WARRINGTON BOROUGH COUNCIL,http://statistics.data.gov.uk/id/local-authority/00EU,Neighbourhood & Community Services,NCS,Care Purchase - Mental Health Team 1,54230,CP-Domicil.External,440950,04-Oct-12,1900100469,"2,383.00",Independent Living Alliance,100726
WARRINGTON BOROUGH COUNCIL,http://statistics.data.gov.uk/id/local-authority/00EU,Neighbourhood & Community Services,NCS,Care Purchase - Mental Health Team 1,54230,CP-Domicil.External,440950,04-Oct-12,1900100471,"4,126.00",Independent Living Alliance,100726
WARRINGTON BOROUGH COUNCIL,http://statistics.data.gov.uk/id/local-authority/00EU,Neighbourhood & Community Services,NCS,Care Purchase - Mental Health Team 1,54230,Supporting People - External,441250,04-Oct-12,1900100471,"1,000.00",Independent Living Alliance,100726
WARRINGTON BOROUGH COUNCIL,http://statistics.data.gov.uk/id/local-authority/00EU,Neighbourhood & Community Services,NCS,Care Purchase - Mental Health Team 1,54230,CP-Domicil.External,440950,04-Oct-12,1900100472,"2,922.00",Independent Living Alliance,100726
WARRINGTON BOROUGH COUNCIL,http://statistics.data.gov.uk/id/local-authority/00EU,Neighbourhood & Community Services,NCS,Care Purchase - Mental Health Team 1,54230,Supporting People - External,441250,04-Oct-12,1900100472,"1,000.00",Independent Living Alliance,100726
WARRINGTON BOROUGH COUNCIL,http://statistics.data.gov.uk/id/local-authority/00EU,Neighbourhood & Community Services,NCS,Care Purchase - PD,54440,CP-Domicil.External,440950,04-Oct-12,1900100473,"2,922.00",Independent Living Alliance,100726
WARRINGTON BOROUGH COUNCIL,http://statistics.data.gov.uk/id/local-authority/00EU,Neighbourhood & Community Services,NCS,Care Purchase - PD,54440,Supporting People - External,441250,04-Oct-12,1900100473,"1,000.00",Independent Living Alliance,100726
WARRINGTON BOROUGH COUNCIL,http://statistics.data.gov.uk/id/local-authority/00EU,Neighbourhood & Community Services,NCS,Care Purchase - Mental Health Team 1,54230,CP-Domicil.External,440950,04-Oct-12,1900100476,"1,552.00",Independent Living Alliance,100726
WARRINGTON BOROUGH COUNCIL,http://statistics.data.gov.uk/id/local-authority/00EU,Neighbourhood & Community Services,NCS,Care Purchase - Mental Health Team 1,54230,Supporting People - External,441250,04-Oct-12,1900100476,880,Independent Living Alliance,100726
WARRINGTON BOROUGH COUNCIL,http://statistics.data.gov.uk/id/local-authority/00EU,Neighbourhood & Community Services,NCS,Care Purchase - Mental Health Team 1,54230,CP-Domicil.External,440950,04-Oct-12,1900100477,725,Independent Living Alliance,100726
WARRINGTON BOROUGH COUNCIL,http://statistics.data.gov.uk/id/local-authority/00EU,Neighbourhood & Community Services,NCS,Care Purchase - Mental Health Team 1,54230,CP-Domicil.External,440950,05-Oct-12,1900100524,"3,449.00",Independent Living Alliance,100726
WARRINGTON BOROUGH COUNCIL,http://statistics.data.gov.uk/id/local-authority/00EU,Neighbourhood & Community Services,NCS,Care Purchase - Mental Health Team 1,54230,CP-Domicil.External,440950,10-Oct-12,1900100782,"3,144.00",Independent Living Alliance,100726
WARRINGTON BOROUGH COUNCIL,http://statistics.data.gov.uk/id/local-authority/00EU,Neighbourhood & Community Services,NCS,Care Purchase - Mental Health Team 1,54230,Supporting People - External,441250,10-Oct-12,1900100782,600,Independent Living Alliance,100726
WARRINGTON BOROUGH COUNCIL,http://statistics.data.gov.uk/id/local-authority/00EU,Neighbourhood & Community Services,NCS,Care Purchase - Mental Health Team 2,54240,CP-Domicil.External,440950,10-Oct-12,1900100783,"6,044.00",Independent Living Alliance,100726
WARRINGTON BOROUGH COUNCIL,http://statistics.data.gov.uk/id/local-authority/00EU,Neighbourhood & Community Services,NCS,Care Purchase - Mental Health Team 2,54240,Supporting People - External,441250,10-Oct-12,1900100783,600,Independent Living Alliance,100726
WARRINGTON BOROUGH COUNCIL,http://statistics.data.gov.uk/id/local-authority/00EU,Neighbourhood & Community Services,NCS,Care Purchase - Mental Health Team 3,54250,CP-Domicil.External,440950,10-Oct-12,1900100784,"2,538.00",Independent Living Alliance,100726
WARRINGTON BOROUGH COUNCIL,http://statistics.data.gov.uk/id/local-authority/00EU,Neighbourhood & Community Services,NCS,Care Purchase - Mental Health Team 1,54230,CP-Domicil.External,440950,10-Oct-12,1900100785,"3,144.00",Independent Living Alliance,100726
WARRINGTON BOROUGH COUNCIL,http://statistics.data.gov.uk/id/local-authority/00EU,Neighbourhood & Community Services,NCS,Care Purchase - Mental Health Team 1,54230,Supporting People - External,441250,10-Oct-12,1900100785,600,Independent Living Alliance,100726
WARRINGTON BOROUGH COUNCIL,http://statistics.data.gov.uk/id/local-authority/00EU,Neighbourhood & Community Services,NCS,Care Purchase - Mental Health Team 2,54240,CP-Domicil.External,440950,10-Oct-12,1900100786,"1,149.00",Independent Living Alliance,100726
WARRINGTON BOROUGH COUNCIL,http://statistics.data.gov.uk/id/local-authority/00EU,Neighbourhood & Community Services,NCS,Care Purchase - Mental Health Team 1,54230,CP-Domicil.External,440950,10-Oct-12,1900100787,"1,863.00",Independent Living Alliance,100726
WARRINGTON BOROUGH COUNCIL,http://statistics.data.gov.uk/id/local-authority/00EU,Neighbourhood & Community Services,NCS,Care Purchase - Mental Health Team 1,54230,Supporting People - External,441250,10-Oct-12,1900100787,880,Independent Living Alliance,100726
WARRINGTON BOROUGH COUNCIL,http://statistics.data.gov.uk/id/local-authority/00EU,Neighbourhood & Community Services,NCS,Care Purchase - Mental Health Team 1,54230,CP-Domicil.External,440950,10-Oct-12,1900100788,"1,759.00",Independent Living Alliance,100726
WARRINGTON BOROUGH COUNCIL,http://statistics.data.gov.uk/id/local-authority/00EU,Neighbourhood & Community Services,NCS,Care Purchase - Mental Health Team 1,54230,Supporting People - External,441250,10-Oct-12,1900100788,880,Independent Living Alliance,100726
WARRINGTON BOROUGH COUNCIL,http://statistics.data.gov.uk/id/local-authority/00EU,Neighbourhood & Community Services,NCS,Care Purchase - Mental Health Team 1,54230,CP-Domicil.External,440950,10-Oct-12,1900100789,"1,759.00",Independent Living Alliance,100726
WARRINGTON BOROUGH COUNCIL,http://statistics.data.gov.uk/id/local-authority/00EU,Neighbourhood & Community Services,NCS,Care Purchase - Mental Health Team 1,54230,Supporting People - External,441250,10-Oct-12,1900100789,880,Independent Living Alliance,100726
WARRINGTON BOROUGH COUNCIL,http://statistics.data.gov.uk/id/local-authority/00EU,Neighbourhood & Community Services,NCS,Care Purchase - Mental Health Team 1,54230,CP-Domicil.External,440950,10-Oct-12,1900100796,"1,088.00",Independent Living Alliance,100726
WARRINGTON BOROUGH COUNCIL,http://statistics.data.gov.uk/id/local-authority/00EU,Neighbourhood & Community Services,NCS,Care Purchase - Mental Health Team 1,54230,CP-Domicil.External,440950,10-Oct-12,1900100798,"1,036.00",Independent Living Alliance,100726
WARRINGTON BOROUGH COUNCIL,http://statistics.data.gov.uk/id/local-authority/00EU,Neighbourhood & Community Services,NCS,Care Purchase - Mental Health Team 3,54250,CP-Domicil.External,440950,10-Oct-12,1900100799,"2,538.00",Independent Living Alliance,100726
WARRINGTON BOROUGH COUNCIL,http://statistics.data.gov.uk/id/local-authority/00EU,Neighbourhood & Community Services,NCS,Care Purchase - Learning Disability,54450,CP-Domicil.External,440950,10-Oct-12,1900100800,"6,196.00",Independent Living Alliance,100726
WARRINGTON BOROUGH COUNCIL,http://statistics.data.gov.uk/id/local-authority/00EU,Neighbourhood & Community Services,NCS,Care Purchase Budget,54490,CP - Cont Care - External,441350,10-Oct-12,1900100802,"8,314.00",Independent Living Alliance,100726
WARRINGTON BOROUGH COUNCIL,http://statistics.data.gov.uk/id/local-authority/00EU,Neighbourhood & Community Services,NCS,Care Purchase - ABI,54260,CP-Domicil.External,440950,10-Oct-12,1900100803,"1,450.00",Independent Living Alliance,100726
WARRINGTON BOROUGH COUNCIL,http://statistics.data.gov.uk/id/local-authority/00EU,Neighbourhood & Community Services,NCS,Care Purchase - Mental Health Team 1,54230,CP-Domicil.External,440950,10-Oct-12,1900100804,"1,241.00",Independent Living Alliance,100726
WARRINGTON BOROUGH COUNCIL,http://statistics.data.gov.uk/id/local-authority/00EU,Neighbourhood & Community Services,NCS,Care Purchase - Mental Health Team 1,54230,Supporting People - External,441250,10-Oct-12,1900100804,880,Independent Living Alliance,100726
WARRINGTON BOROUGH COUNCIL,http://statistics.data.gov.uk/id/local-authority/00EU,Neighbourhood & Community Services,NCS,Care Purchase - Mental Health Team 1,54230,CP-Domicil.External,440950,10-Oct-12,1900100805,"4,231.00",Independent Living Alliance,100726
WARRINGTON BOROUGH COUNCIL,http://statistics.data.gov.uk/id/local-authority/00EU,Neighbourhood & Community Services,NCS,Care Purchase - Mental Health Team 1,54230,Supporting People - External,441250,10-Oct-12,1900100805,600,Independent Living Alliance,100726
WARRINGTON BOROUGH COUNCIL,http://statistics.data.gov.uk/id/local-authority/00EU,Neighbourhood & Community Services,NCS,Care Purchase - Mental Health Team 1,54230,CP-Domicil.External,440950,15-Oct-12,1900100995,"2,366.00",Independent Living Alliance,100726
WARRINGTON BOROUGH COUNCIL,http://statistics.data.gov.uk/id/local-authority/00EU,Neighbourhood & Community Services,NCS,Care Purchase - Mental Health Team 1,54230,CP-Domicil.External,440950,15-Oct-12,1900101033,"3,325.00",Independent Living Alliance,100726
WARRINGTON BOROUGH COUNCIL,http://statistics.data.gov.uk/id/local-authority/00EU,Neighbourhood & Community Services,NCS,Care Purchase - Mental Health Team 1,54230,CP-Domicil.External,440950,15-Oct-12,1900101035,"3,325.00",Independent Living Alliance,100726
WARRINGTON BOROUGH COUNCIL,http://statistics.data.gov.uk/id/local-authority/00EU,Neighbourhood & Community Services,NCS,Care Purchase - Mental Health Team 1,54230,CP-Domicil.External,440950,15-Oct-12,1900101036,"3,325.00",Independent Living Alliance,100726
WARRINGTON BOROUGH COUNCIL,http://statistics.data.gov.uk/id/local-authority/00EU,Neighbourhood & Community Services,NCS,Care Purchase - Mental Health Team 1,54230,CP-Domicil.External,440950,15-Oct-12,1900101037,"3,144.00",Independent Living Alliance,100726
WARRINGTON BOROUGH COUNCIL,http://statistics.data.gov.uk/id/local-authority/00EU,Neighbourhood & Community Services,NCS,Care Purchase - ABI,54260,CP-Domicil.External,440950,15-Oct-12,1900101040,"2,914.00",Independent Living Alliance,100726
WARRINGTON BOROUGH COUNCIL,http://statistics.data.gov.uk/id/local-authority/00EU,Neighbourhood & Community Services,NCS,Care Purchase - Mental Health Team 2,54240,CP-Domicil.External,440950,29-Oct-12,1900102522,"6,044.00",Independent Living Alliance,100726
WARRINGTON BOROUGH COUNCIL,http://statistics.data.gov.uk/id/local-authority/00EU,Neighbourhood & Community Services,NCS,Care Purchase - Mental Health Team 2,54240,Supporting People - External,441250,29-Oct-12,1900102522,600,Independent Living Alliance,100726
WARRINGTON BOROUGH COUNCIL,http://statistics.data.gov.uk/id/local-authority/00EU,Neighbourhood & Community Services,NCS,Care Purchase - Mental Health Team 1,54230,CP-Domicil.External,440950,29-Oct-12,1900102523,"3,144.00",Independent Living Alliance,100726
WARRINGTON BOROUGH COUNCIL,http://statistics.data.gov.uk/id/local-authority/00EU,Neighbourhood & Community Services,NCS,Care Purchase - Mental Health Team 1,54230,Audit Comm-Fee,441550,29-Oct-12,1900102523,600,Independent Living Alliance,100726
WARRINGTON BOROUGH COUNCIL,http://statistics.data.gov.uk/id/local-authority/00EU,Neighbourhood & Community Services,NCS,Care Purchase - Mental Health Team 1,54230,CP-Domicil.External,440950,29-Oct-12,1900102524,"3,144.00",Independent Living Alliance,100726
WARRINGTON BOROUGH COUNCIL,http://statistics.data.gov.uk/id/local-authority/00EU,Neighbourhood & Community Services,NCS,Care Purchase - Mental Health Team 1,54230,Supporting People - External,441250,29-Oct-12,1900102524,600,Independent Living Alliance,100726
WARRINGTON BOROUGH COUNCIL,http://statistics.data.gov.uk/id/local-authority/00EU,Neighbourhood & Community Services,NCS,Care Purchase - Mental Health Team 3,54250,CP-Domicil.External,440950,29-Oct-12,1900102525,"2,554.00",Independent Living Alliance,100726
WARRINGTON BOROUGH COUNCIL,http://statistics.data.gov.uk/id/local-authority/00EU,Neighbourhood & Community Services,NCS,Care Purchase - Mental Health Team 1,54230,CP-Domicil.External,440950,29-Oct-12,1900102526,"1,759.00",Independent Living Alliance,100726
WARRINGTON BOROUGH COUNCIL,http://statistics.data.gov.uk/id/local-authority/00EU,Neighbourhood & Community Services,NCS,Care Purchase - Mental Health Team 1,54230,Supporting People - External,441250,29-Oct-12,1900102526,880,Independent Living Alliance,100726
WARRINGTON BOROUGH COUNCIL,http://statistics.data.gov.uk/id/local-authority/00EU,Neighbourhood & Community Services,NCS,Care Purchase - Mental Health Team 2,54240,CP-Domicil.External,440950,29-Oct-12,1900102527,"1,201.00",Independent Living Alliance,100726
WARRINGTON BOROUGH COUNCIL,http://statistics.data.gov.uk/id/local-authority/00EU,Neighbourhood & Community Services,NCS,Care Purchase - Mental Health Team 3,54250,CP-Domicil.External,440950,29-Oct-12,1900102528,"2,538.00",Independent Living Alliance,100726
WARRINGTON BOROUGH COUNCIL,http://statistics.data.gov.uk/id/local-authority/00EU,Neighbourhood & Community Services,NCS,Care Purchase - Mental Health Team 1,54230,CP-Domicil.External,440950,29-Oct-12,1900102529,"1,759.00",Independent Living Alliance,100726
WARRINGTON BOROUGH COUNCIL,http://statistics.data.gov.uk/id/local-authority/00EU,Neighbourhood & Community Services,NCS,Care Purchase - Mental Health Team 1,54230,Supporting People - External,441250,29-Oct-12,1900102529,880,Independent Living Alliance,100726
WARRINGTON BOROUGH COUNCIL,http://statistics.data.gov.uk/id/local-authority/00EU,Neighbourhood & Community Services,NCS,Care Purchase - Mental Health Team 1,54230,CP-Domicil.External,440950,29-Oct-12,1900102537,"1,101.00",Independent Living Alliance,100726
WARRINGTON BOROUGH COUNCIL,http://statistics.data.gov.uk/id/local-authority/00EU,Neighbourhood & Community Services,NCS,Care Purchase - Mental Health Team 1,54230,CP-Domicil.External,440950,29-Oct-12,1900102539,"1,552.00",Independent Living Alliance,100726
WARRINGTON BOROUGH COUNCIL,http://statistics.data.gov.uk/id/local-authority/00EU,Neighbourhood & Community Services,NCS,Care Purchase - Mental Health Team 1,54230,Supporting People - External,441250,29-Oct-12,1900102539,880,Independent Living Alliance,100726
WARRINGTON BOROUGH COUNCIL,http://statistics.data.gov.uk/id/local-authority/00EU,Neighbourhood & Community Services,NCS,Care Purchase - Mental Health Team 1,54230,CP-Domicil.External,440950,29-Oct-12,1900102541,725,Independent Living Alliance,100726
WARRINGTON BOROUGH COUNCIL,http://statistics.data.gov.uk/id/local-authority/00EU,Neighbourhood & Community Services,NCS,Care Purchase - Learning Disability,54450,CP-Domicil.External,440950,29-Oct-12,1900102542,"4,538.00",Independent Living Alliance,100726
WARRINGTON BOROUGH COUNCIL,http://statistics.data.gov.uk/id/local-authority/00EU,Neighbourhood & Community Services,NCS,Care Purchase - Mental Health Team 1,54230,CP-Domicil.External,440950,29-Oct-12,1900102543,"2,922.00",Independent Living Alliance,100726
WARRINGTON BOROUGH COUNCIL,http://statistics.data.gov.uk/id/local-authority/00EU,Neighbourhood & Community Services,NCS,Care Purchase - Mental Health Team 1,54230,Supporting People - External,441250,29-Oct-12,1900102543,"1,000.00",Independent Living Alliance,100726
WARRINGTON BOROUGH COUNCIL,http://statistics.data.gov.uk/id/local-authority/00EU,Neighbourhood & Community Services,NCS,Care Purchase - Mental Health Team 1,54230,CP-Domicil.External,440950,29-Oct-12,1900102545,"1,010.00",Independent Living Alliance,100726
WARRINGTON BOROUGH COUNCIL,http://statistics.data.gov.uk/id/local-authority/00EU,Neighbourhood & Community Services,NCS,Care Purchase - Mental Health Team 1,54230,CP-Domicil.External,440950,29-Oct-12,1900102546,"3,325.00",Independent Living Alliance,100726
WARRINGTON BOROUGH COUNCIL,http://statistics.data.gov.uk/id/local-authority/00EU,Neighbourhood & Community Services,NCS,Care Purchase Budget,54490,CP - Cont Care - External,441350,29-Oct-12,1900102548,"8,702.00",Independent Living Alliance,100726
WARRINGTON BOROUGH COUNCIL,http://statistics.data.gov.uk/id/local-authority/00EU,Neighbourhood & Community Services,NCS,Care Purchase - Mental Health Team 1,54230,CP-Domicil.External,440950,29-Oct-12,1900102549,"1,863.00",Independent Living Alliance,100726
WARRINGTON BOROUGH COUNCIL,http://statistics.data.gov.uk/id/local-authority/00EU,Neighbourhood & Community Services,NCS,Care Purchase - Mental Health Team 1,54230,Supporting People - External,441250,29-Oct-12,1900102549,880,Independent Living Alliance,100726
WARRINGTON BOROUGH COUNCIL,http://statistics.data.gov.uk/id/local-authority/00EU,Neighbourhood & Community Services,NCS,Care Purchase - ABI,54260,CP-Domicil.External,440950,29-Oct-12,1900102550,"1,450.00",Independent Living Alliance,100726
WARRINGTON BOROUGH COUNCIL,http://statistics.data.gov.uk/id/local-authority/00EU,Neighbourhood & Community Services,NCS,Care Purchase - Learning Disability,54450,CP-Domicil.External,440950,30-Oct-12,1900102647,"6,196.00",Independent Living Alliance,100726
WARRINGTON BOROUGH COUNCIL,http://statistics.data.gov.uk/id/local-authority/00EU,Neighbourhood & Community Services,NCS,Care Purchase - Mental Health Team 1,54230,CP-Domicil.External,440950,30-Oct-12,1900102648,"4,231.00",Independent Living Alliance,100726
WARRINGTON BOROUGH COUNCIL,http://statistics.data.gov.uk/id/local-authority/00EU,Neighbourhood & Community Services,NCS,Care Purchase - Mental Health Team 1,54230,Supporting People - External,441250,30-Oct-12,1900102648,600,Independent Living Alliance,100726
WARRINGTON BOROUGH COUNCIL,http://statistics.data.gov.uk/id/local-authority/00EU,Neighbourhood & Community Services,NCS,Care Purchase - Mental Health Team 1,54230,CP-Domicil.External,440950,30-Oct-12,1900102649,518,Independent Living Alliance,100726
WARRINGTON BOROUGH COUNCIL,http://statistics.data.gov.uk/id/local-authority/00EU,Neighbourhood & Community Services,NCS,Care Purchase - Mental Health Team 1,54230,CP-Domicil.External,440950,30-Oct-12,1900102650,"1,241.00",Independent Living Alliance,100726
WARRINGTON BOROUGH COUNCIL,http://statistics.data.gov.uk/id/local-authority/00EU,Neighbourhood & Community Services,NCS,Care Purchase - Mental Health Team 1,54230,Supporting People - External,441250,30-Oct-12,1900102650,880,Independent Living Alliance,100726
WARRINGTON BOROUGH COUNCIL,http://statistics.data.gov.uk/id/local-authority/00EU,Neighbourhood & Community Services,NCS,Care Purchase - ABI,54260,CP-Domicil.External,440950,30-Oct-12,1900102651,"2,901.00",Independent Living Alliance,100726
WARRINGTON BOROUGH COUNCIL,http://statistics.data.gov.uk/id/local-authority/00EU,Neighbourhood & Community Services,NCS,Care Purchase - Mental Health Team 1,54230,CP-Domicil.External,440950,30-Oct-12,1900102652,"1,241.00",Independent Living Alliance,100726
WARRINGTON BOROUGH COUNCIL,http://statistics.data.gov.uk/id/local-authority/00EU,Neighbourhood & Community Services,NCS,Care Purchase - Mental Health Team 1,54230,Supporting People - External,441250,30-Oct-12,1900102652,880,Independent Living Alliance,100726
WARRINGTON BOROUGH COUNCIL,http://statistics.data.gov.uk/id/local-authority/00EU,Neighbourhood & Community Services,NCS,Care Purchase - PD,54440,CP-Domicil.External,440950,30-Oct-12,1900102653,"2,922.00",Independent Living Alliance,100726
WARRINGTON BOROUGH COUNCIL,http://statistics.data.gov.uk/id/local-authority/00EU,Neighbourhood & Community Services,NCS,Care Purchase - PD,54440,Supporting People - External,441250,30-Oct-12,1900102653,"1,000.00",Independent Living Alliance,100726
WARRINGTON BOROUGH COUNCIL,http://statistics.data.gov.uk/id/local-authority/00EU,Neighbourhood & Community Services,NCS,Care Purchase - Mental Health Team 1,54230,CP-Domicil.External,440950,30-Oct-12,1900102654,"2,383.00",Independent Living Alliance,100726
WARRINGTON BOROUGH COUNCIL,http://statistics.data.gov.uk/id/local-authority/00EU,Neighbourhood & Community Services,NCS,Care Purchase - Mental Health Team 1,54230,CP-Domicil.External,440950,30-Oct-12,1900102655,"4,282.00",Independent Living Alliance,100726
WARRINGTON BOROUGH COUNCIL,http://statistics.data.gov.uk/id/local-authority/00EU,Neighbourhood & Community Services,NCS,Care Purchase - Mental Health Team 1,54230,Supporting People - External,441250,30-Oct-12,1900102655,"1,000.00",Independent Living Alliance,100726
WARRINGTON BOROUGH COUNCIL,http://statistics.data.gov.uk/id/local-authority/00EU,Neighbourhood & Community Services,NCS,Care Purchase - Mental Health Team 1,54230,CP-Domicil.External,440950,30-Oct-12,1900102656,"3,922.00",Independent Living Alliance,100726
WARRINGTON BOROUGH COUNCIL,http://statistics.data.gov.uk/id/local-authority/00EU,Neighbourhood & Community Services,NCS,Supporting People Grant Payments,53260,People with Mental Health Problems,535200,16-Oct-12,1900101078,"3,814.00",Redacted Personal Data,100735
WARRINGTON BOROUGH COUNCIL,http://statistics.data.gov.uk/id/local-authority/00EU,Assistant Chief Executive,CEX,Coroners Service,11100,Post Mortem Fees-Rep,440250,17-Oct-12,1900101264,963,Dr D Butterworth,100765
WARRINGTON BOROUGH COUNCIL,http://statistics.data.gov.uk/id/local-authority/00EU,Neighbourhood & Community Services,NCS,Care Purchase - PD,54440,Direct Payments,552000,16-Oct-12,1900101376,851,Redacted Personal Data,100766
WARRINGTON BOROUGH COUNCIL,http://statistics.data.gov.uk/id/local-authority/00EU,Environment & Regeneration,ENO,Housing Projects,82008,Disabled Persons Grant 1996,554000,19-Oct-12,1900101914,"1,908.00",Frontis Homes Ltd,100795
WARRINGTON BOROUGH COUNCIL,http://statistics.data.gov.uk/id/local-authority/00EU,Environment & Regeneration,ENO,Housing Projects,82008,Disabled Persons Grant 1996,554000,19-Oct-12,1900101915,"2,029.00",Frontis Homes Ltd,100795
WARRINGTON BOROUGH COUNCIL,http://statistics.data.gov.uk/id/local-authority/00EU,Neighbourhood & Community Services,NCS,Care Purchase -OP & OT East,54430,CP-Domicil.External,440950,03-Oct-12,1900100341,928,Allied Healthcare Group Ltd,100796
WARRINGTON BOROUGH COUNCIL,http://statistics.data.gov.uk/id/local-authority/00EU,Neighbourhood & Community Services,NCS,Care Purchase - OP & OT Central,54420,CP-Domicil.External,440950,03-Oct-12,1900100341,673,Allied Healthcare Group Ltd,100796
WARRINGTON BOROUGH COUNCIL,http://statistics.data.gov.uk/id/local-authority/00EU,Neighbourhood & Community Services,NCS,Care Purchase -OP & OT East,54430,CP-Domicil.External,440950,03-Oct-12,1900100342,"1,086.00",Allied Healthcare Group Ltd,100796
WARRINGTON BOROUGH COUNCIL,http://statistics.data.gov.uk/id/local-authority/00EU,Neighbourhood & Community Services,NCS,Care Purchase - OP & OT Central,54420,CP-Domicil.External,440950,03-Oct-12,1900100342,685,Allied Healthcare Group Ltd,100796
WARRINGTON BOROUGH COUNCIL,http://statistics.data.gov.uk/id/local-authority/00EU,Neighbourhood & Community Services,NCS,Care Purchase -OP & OT East,54430,CP-Domicil.External,440950,10-Oct-12,1900100702,"1,273.00",Allied Healthcare Group Ltd,100796
WARRINGTON BOROUGH COUNCIL,http://statistics.data.gov.uk/id/local-authority/00EU,Neighbourhood & Community Services,NCS,Care Purchase -OP & OT East,54430,CP-Domicil.External,440950,17-Oct-12,1900101174,"1,272.00",Allied Healthcare Group Ltd,100796
WARRINGTON BOROUGH COUNCIL,http://statistics.data.gov.uk/id/local-authority/00EU,Neighbourhood & Community Services,NCS,Care Purchase - PD,54440,CP-Domicil.External,440950,19-Oct-12,1900101951,"4,258.00",Allied Healthcare Group Ltd,100796
WARRINGTON BOROUGH COUNCIL,http://statistics.data.gov.uk/id/local-authority/00EU,Neighbourhood & Community Services,NCS,Care Purchase - PD,54440,Supporting People - External,441250,19-Oct-12,1900101951,718,Allied Healthcare Group Ltd,100796
WARRINGTON BOROUGH COUNCIL,http://statistics.data.gov.uk/id/local-authority/00EU,Neighbourhood & Community Services,NCS,Care Purchase - PD,54440,CP-Domicil.External,440950,19-Oct-12,1900101954,"4,258.00",Allied Healthcare Group Ltd,100796
WARRINGTON BOROUGH COUNCIL,http://statistics.data.gov.uk/id/local-authority/00EU,Neighbourhood & Community Services,NCS,Care Purchase - PD,54440,Supporting People - External,441250,19-Oct-12,1900101954,718,Allied Healthcare Group Ltd,100796
WARRINGTON BOROUGH COUNCIL,http://statistics.data.gov.uk/id/local-authority/00EU,Neighbourhood & Community Services,NCS,Care Purchase - PD,54440,CP-Domicil.External,440950,24-Oct-12,1900102225,569,Allied Healthcare Group Ltd,100796
WARRINGTON BOROUGH COUNCIL,http://statistics.data.gov.uk/id/local-authority/00EU,Neighbourhood & Community Services,NCS,Care Purchase - PD,54440,CP-Domicil.External,440950,24-Oct-12,1900102247,572,Allied Healthcare Group Ltd,100796
WARRINGTON BOROUGH COUNCIL,http://statistics.data.gov.uk/id/local-authority/00EU,Neighbourhood & Community Services,NCS,Care Purchase -OP & OT East,54430,CP-Domicil.External,440950,29-Oct-12,1900102514,874,Allied Healthcare Group Ltd,100796
WARRINGTON BOROUGH COUNCIL,http://statistics.data.gov.uk/id/local-authority/00EU,Neighbourhood & Community Services,NCS,Care Purchase - OP & OT Central,54420,CP-Domicil.External,440950,29-Oct-12,1900102514,752,Allied Healthcare Group Ltd,100796
WARRINGTON BOROUGH COUNCIL,http://statistics.data.gov.uk/id/local-authority/00EU,Environment & Regeneration,ER0,New Town House,45168,Servicing Contracts,200150,16-Oct-12,1900101155,674,The Gilbraithe Partnership,100841
WARRINGTON BOROUGH COUNCIL,http://statistics.data.gov.uk/id/local-authority/00EU,Neighbourhood & Community Services,NCS,Care Purchase - PD,54440,Direct Payments,552000,16-Oct-12,1900101378,"3,059.00",Redacted Personal Data,100879
WARRINGTON BOROUGH COUNCIL,http://statistics.data.gov.uk/id/local-authority/00EU,Neighbourhood & Community Services,NCS,Supporting People Grant Payments,53260,Sheltd/Xtra Care Hsing and Comm Alarms,535050,16-Oct-12,1900101077,"1,487.00",Anchor Ha,100886
WARRINGTON BOROUGH COUNCIL,http://statistics.data.gov.uk/id/local-authority/00EU,Neighbourhood & Community Services,NCS,Care Purchase - PD,54440,Direct Payments,552000,16-Oct-12,1900101379,"1,160.00",Redacted Personal Data,100890
WARRINGTON BOROUGH COUNCIL,http://statistics.data.gov.uk/id/local-authority/00EU,Neighbourhood & Community Services,NCS,Care Purchase - OP & OT West,54470,CP-LongStayExternal,441150,23-Oct-12,1900102122,"3,496.00",Linear Park (Housing With Care),100897
WARRINGTON BOROUGH COUNCIL,http://statistics.data.gov.uk/id/local-authority/00EU,Neighbourhood & Community Services,NCS,Care Purchase - Mental Health Team 2,54240,CP-Domicil.External,440950,03-Oct-12,1900100388,607,Creative Support Ltd,100902
WARRINGTON BOROUGH COUNCIL,http://statistics.data.gov.uk/id/local-authority/00EU,Neighbourhood & Community Services,NCS,Care Purchase - ABI,54260,CP-Domicil.External,440950,03-Oct-12,1900100390,"3,330.00",Creative Support Ltd,100902
WARRINGTON BOROUGH COUNCIL,http://statistics.data.gov.uk/id/local-authority/00EU,Neighbourhood & Community Services,NCS,Care Purchase - Learning Disability,54450,CP-Domicil.External,440950,03-Oct-12,1900100390,"2,612.00",Creative Support Ltd,100902
WARRINGTON BOROUGH COUNCIL,http://statistics.data.gov.uk/id/local-authority/00EU,Neighbourhood & Community Services,NCS,Care Purchase - Mental Health Team 1,54230,CP-Domicil.External,440950,03-Oct-12,1900100390,"2,178.00",Creative Support Ltd,100902
WARRINGTON BOROUGH COUNCIL,http://statistics.data.gov.uk/id/local-authority/00EU,Neighbourhood & Community Services,NCS,Care Purchase - Mental Health Team 2,54240,CP-Domicil.External,440950,03-Oct-12,1900100390,852,Creative Support Ltd,100902
WARRINGTON BOROUGH COUNCIL,http://statistics.data.gov.uk/id/local-authority/00EU,Neighbourhood & Community Services,NCS,Care Purchase - Learning Disability,54450,CP-Domicil.External,440950,03-Oct-12,1900100391,506,Creative Support Ltd,100902
WARRINGTON BOROUGH COUNCIL,http://statistics.data.gov.uk/id/local-authority/00EU,Neighbourhood & Community Services,NCS,Care Purchase - Learning Disability,54450,Supporting People - External,441250,03-Oct-12,1900100396,"4,780.00",Creative Support Ltd,100902
WARRINGTON BOROUGH COUNCIL,http://statistics.data.gov.uk/id/local-authority/00EU,Neighbourhood & Community Services,NCS,Care Purchase - Learning Disability,54450,CP-Domicil.External,440950,03-Oct-12,1900100396,"2,392.00",Creative Support Ltd,100902
WARRINGTON BOROUGH COUNCIL,http://statistics.data.gov.uk/id/local-authority/00EU,Neighbourhood & Community Services,NCS,Care Purchase - PD,54440,Supporting People - External,441250,03-Oct-12,1900100396,531,Creative Support Ltd,100902
WARRINGTON BOROUGH COUNCIL,http://statistics.data.gov.uk/id/local-authority/00EU,Neighbourhood & Community Services,NCS,Care Purchase - PD,54440,CP-Domicil.External,440950,04-Oct-12,1900100407,"1,493.00",Creative Support Ltd,100902
WARRINGTON BOROUGH COUNCIL,http://statistics.data.gov.uk/id/local-authority/00EU,Neighbourhood & Community Services,NCS,Care Purchase - PD,54440,Supporting People - External,441250,04-Oct-12,1900100426,"6,302.00",Creative Support Ltd,100902
WARRINGTON BOROUGH COUNCIL,http://statistics.data.gov.uk/id/local-authority/00EU,Neighbourhood & Community Services,NCS,Care Purchase Budget,54490,Voids,515150,04-Oct-12,1900100426,730,Creative Support Ltd,100902
WARRINGTON BOROUGH COUNCIL,http://statistics.data.gov.uk/id/local-authority/00EU,Neighbourhood & Community Services,NCS,Care Purchase Budget,54490,Voids,515150,04-Oct-12,1900100427,729,Creative Support Ltd,100902
WARRINGTON BOROUGH COUNCIL,http://statistics.data.gov.uk/id/local-authority/00EU,Neighbourhood & Community Services,NCS,Care Purchase - PD,54440,CP-Domicil.External,440950,04-Oct-12,1900100428,"12,124.00",Creative Support Ltd,100902
WARRINGTON BOROUGH COUNCIL,http://statistics.data.gov.uk/id/local-authority/00EU,Neighbourhood & Community Services,NCS,Care Purchase Budget,54490,Voids,515150,04-Oct-12,1900100428,"6,062.00",Creative Support Ltd,100902
WARRINGTON BOROUGH COUNCIL,http://statistics.data.gov.uk/id/local-authority/00EU,Neighbourhood & Community Services,NCS,Care Purchase - ABI,54260,CP-Domicil.External,440950,04-Oct-12,1900100428,"3,031.00",Creative Support Ltd,100902
WARRINGTON BOROUGH COUNCIL,http://statistics.data.gov.uk/id/local-authority/00EU,Neighbourhood & Community Services,NCS,Care Purchase - PD,54440,Supporting People - External,441250,04-Oct-12,1900100429,"6,302.00",Creative Support Ltd,100902
WARRINGTON BOROUGH COUNCIL,http://statistics.data.gov.uk/id/local-authority/00EU,Neighbourhood & Community Services,NCS,Care Purchase Budget,54490,Voids,515150,04-Oct-12,1900100429,730,Creative Support Ltd,100902
WARRINGTON BOROUGH COUNCIL,http://statistics.data.gov.uk/id/local-authority/00EU,Neighbourhood & Community Services,NCS,Care Purchase - PD,54440,CP-Domicil.External,440950,04-Oct-12,1900100430,"12,124.00",Creative Support Ltd,100902
WARRINGTON BOROUGH COUNCIL,http://statistics.data.gov.uk/id/local-authority/00EU,Neighbourhood & Community Services,NCS,Care Purchase Budget,54490,Voids,515150,04-Oct-12,1900100430,"6,062.00",Creative Support Ltd,100902
WARRINGTON BOROUGH COUNCIL,http://statistics.data.gov.uk/id/local-authority/00EU,Neighbourhood & Community Services,NCS,Care Purchase - ABI,54260,CP-Domicil.External,440950,04-Oct-12,1900100430,"3,031.00",Creative Support Ltd,100902
WARRINGTON BOROUGH COUNCIL,http://statistics.data.gov.uk/id/local-authority/00EU,Neighbourhood & Community Services,NCS,Care Purchase - PD,54440,Supporting People - External,441250,04-Oct-12,1900100431,"6,302.00",Creative Support Ltd,100902
WARRINGTON BOROUGH COUNCIL,http://statistics.data.gov.uk/id/local-authority/00EU,Neighbourhood & Community Services,NCS,Care Purchase Budget,54490,Voids,515150,04-Oct-12,1900100431,730,Creative Support Ltd,100902
WARRINGTON BOROUGH COUNCIL,http://statistics.data.gov.uk/id/local-authority/00EU,Neighbourhood & Community Services,NCS,Care Purchase Budget,54490,Voids,515150,04-Oct-12,1900100433,"3,031.00",Creative Support Ltd,100902
WARRINGTON BOROUGH COUNCIL,http://statistics.data.gov.uk/id/local-authority/00EU,Neighbourhood & Community Services,NCS,Care Purchase Budget,54490,Voids,515150,04-Oct-12,1900100434,"3,031.00",Creative Support Ltd,100902
WARRINGTON BOROUGH COUNCIL,http://statistics.data.gov.uk/id/local-authority/00EU,Neighbourhood & Community Services,NCS,Care Purchase Budget,54490,Voids,515150,04-Oct-12,1900100435,729,Creative Support Ltd,100902
WARRINGTON BOROUGH COUNCIL,http://statistics.data.gov.uk/id/local-authority/00EU,Neighbourhood & Community Services,NCS,Care Purchase - PD,54440,CP-Domicil.External,440950,04-Oct-12,1900100436,"12,124.00",Creative Support Ltd,100902
WARRINGTON BOROUGH COUNCIL,http://statistics.data.gov.uk/id/local-authority/00EU,Neighbourhood & Community Services,NCS,Care Purchase Budget,54490,Voids,515150,04-Oct-12,1900100436,"6,062.00",Creative Support Ltd,100902
WARRINGTON BOROUGH COUNCIL,http://statistics.data.gov.uk/id/local-authority/00EU,Neighbourhood & Community Services,NCS,Care Purchase - ABI,54260,CP-Domicil.External,440950,04-Oct-12,1900100436,"3,031.00",Creative Support Ltd,100902
WARRINGTON BOROUGH COUNCIL,http://statistics.data.gov.uk/id/local-authority/00EU,Neighbourhood & Community Services,NCS,Care Purchase -OP & OT East,54430,Direct Payments,552000,16-Oct-12,1900101380,"1,142.00",Redacted Personal Data,100907
WARRINGTON BOROUGH COUNCIL,http://statistics.data.gov.uk/id/local-authority/00EU,Neighbourhood & Community Services,NCS,Care Purchase - OP & OT South,54480,Direct Payments,552000,16-Oct-12,1900101381,564,Redacted Personal Data,100933
WARRINGTON BOROUGH COUNCIL,http://statistics.data.gov.uk/id/local-authority/00EU,Neighbourhood & Community Services,NCS,Care Purchase - OP & OT South,54480,Direct Payments,552000,16-Oct-12,1900101382,661,Redacted Personal Data,100934
WARRINGTON BOROUGH COUNCIL,http://statistics.data.gov.uk/id/local-authority/00EU,Neighbourhood & Community Services,NCS,Care Purchase - Learning Disability,54450,Direct Payments,552000,16-Oct-12,1900101383,"1,120.00",Redacted Personal Data,100945
WARRINGTON BOROUGH COUNCIL,http://statistics.data.gov.uk/id/local-authority/00EU,Environment & Regeneration,ER0,Postal & Courier Services,52130,Postages,450000,16-Oct-12,1900101157,"1,610.00",Logistex Express Ltd,100946
WARRINGTON BOROUGH COUNCIL,http://statistics.data.gov.uk/id/local-authority/00EU,Neighbourhood & Community Services,NCS,Care Purchase - Learning Disability,54450,Direct Payments,552000,16-Oct-12,1900101384,"2,360.00",Redacted Personal Data,100954
WARRINGTON BOROUGH COUNCIL,http://statistics.data.gov.uk/id/local-authority/00EU,Children & Young People,CHL,Federation of Music Services,32220,Events Costs,490000,05-Oct-12,1900100518,750,Warrington Cultural Trust,100957
WARRINGTON BOROUGH COUNCIL,http://statistics.data.gov.uk/id/local-authority/00EU,Neighbourhood & Community Services,NCS,Care Purchase - Learning Disability,54450,Direct Payments,552000,16-Oct-12,1900101385,"3,771.00",Redacted Personal Data,100959
WARRINGTON BOROUGH COUNCIL,http://statistics.data.gov.uk/id/local-authority/00EU,Assistant Chief Executive,CEX,Coroners Service,11100,Post Mortem Fees-Rep,440250,09-Oct-12,1900100681,597,Dr S A Hales,100988
WARRINGTON BOROUGH COUNCIL,http://statistics.data.gov.uk/id/local-authority/00EU,Assistant Chief Executive,CEX,Coroners Service,11100,Post Mortem Fees-Rep,440250,24-Oct-12,1900102185,"1,092.00",Dr S A Hales,100988
WARRINGTON BOROUGH COUNCIL,http://statistics.data.gov.uk/id/local-authority/00EU,Assistant Chief Executive,CEX,CRT Apprenticeships,22470,"Campaigns,  Projects and Events",491950,12-Oct-12,1900100970,"3,888.00",Golden Gates Housing Trust,101005
WARRINGTON BOROUGH COUNCIL,http://statistics.data.gov.uk/id/local-authority/00EU,Environment & Regeneration,ER0,Non HRA Property,43611,Non BMP General Repairs,200050,19-Oct-12,1900101992,"9,030.00",Golden Gates Housing Trust,101005
WARRINGTON BOROUGH COUNCIL,http://statistics.data.gov.uk/id/local-authority/00EU,Neighbourhood & Community Services,NCS,Care Purchase - PD,54440,Direct Payments,552000,16-Oct-12,1900101386,"1,146.00",Redacted Personal Data,101007
WARRINGTON BOROUGH COUNCIL,http://statistics.data.gov.uk/id/local-authority/00EU,Neighbourhood & Community Services,NCS,Care Purchase - ABI,54260,Direct Payments,552000,16-Oct-12,1900101387,"2,390.00",Redacted Personal Data,101016
WARRINGTON BOROUGH COUNCIL,http://statistics.data.gov.uk/id/local-authority/00EU,Neighbourhood & Community Services,NCS,Fearnhead Cross CH,51235,Security Systems,250000,16-Oct-12,1900101100,670,Abel Alarm Company Ltd,101027
WARRINGTON BOROUGH COUNCIL,http://statistics.data.gov.uk/id/local-authority/00EU,Children & Young People,CHL,DSG Early Years PVI Settings,32417,Private & Voluntary 3 Year Olds,470100,23-Oct-12,1900102430,"3,832.00",The Lakes Nursery,101036
WARRINGTON BOROUGH COUNCIL,http://statistics.data.gov.uk/id/local-authority/00EU,Children & Young People,CHL,EIG Funding - 2 Year Old,31601,Payment of Grants,470050,23-Oct-12,1900102462,"4,831.00",The Lakes Nursery,101036
WARRINGTON BOROUGH COUNCIL,http://statistics.data.gov.uk/id/local-authority/00EU,Neighbourhood & Community Services,NCS,Care Purchase - Learning Disability,54450,Direct Payments,552000,16-Oct-12,1900101389,"1,760.00",Redacted Personal Data,101045
WARRINGTON BOROUGH COUNCIL,http://statistics.data.gov.uk/id/local-authority/00EU,Neighbourhood & Community Services,NCS,Care Purchase Budget,54490,CP ExternalOther Exp,440800,10-Oct-12,1900100794,"9,935.00",Ashberry Healthcare Ltd,101061
WARRINGTON BOROUGH COUNCIL,http://statistics.data.gov.uk/id/local-authority/00EU,Neighbourhood & Community Services,NCS,Care Purchase Budget,54490,CP ExternalOther Exp,440800,17-Oct-12,1900101242,"51,000.00",Ashberry Healthcare Ltd,101061
WARRINGTON BOROUGH COUNCIL,http://statistics.data.gov.uk/id/local-authority/00EU,Neighbourhood & Community Services,NCS,Care Purchase - Learning Disability,54450,Direct Payments,552000,16-Oct-12,1900101391,"2,663.00",Redacted Personal Data,101096
WARRINGTON BOROUGH COUNCIL,http://statistics.data.gov.uk/id/local-authority/00EU,Neighbourhood & Community Services,NCS,Care Purchase - Learning Disability,54450,Direct Payments,552000,16-Oct-12,1900101392,"5,546.00",Redacted Personal Data,101104
WARRINGTON BOROUGH COUNCIL,http://statistics.data.gov.uk/id/local-authority/00EU,Neighbourhood & Community Services,NCS,Care Purchase - PD,54440,Direct Payments,552000,16-Oct-12,1900101394,867,Redacted Personal Data,101147
WARRINGTON BOROUGH COUNCIL,http://statistics.data.gov.uk/id/local-authority/00EU,Neighbourhood & Community Services,NCS,Care Purchase -OP & OT East,54430,Direct Payments,552000,16-Oct-12,1900101396,812,Redacted Personal Data,101174
WARRINGTON BOROUGH COUNCIL,http://statistics.data.gov.uk/id/local-authority/00EU,Neighbourhood & Community Services,NCS,Care Purchase - Learning Disability,54450,CP Adult Placement,443450,29-Oct-12,1900102604,"1,496.00",Redacted Personal Data,101175
WARRINGTON BOROUGH COUNCIL,http://statistics.data.gov.uk/id/local-authority/00EU,Environment & Regeneration,ER1,Waste Disposal,41830,Landfill Contract,530500,12-Oct-12,1900100987,"2,718.00",Wsr Recycling Ltd,101196
WARRINGTON BOROUGH COUNCIL,http://statistics.data.gov.uk/id/local-authority/00EU,Environment & Regeneration,ER1,Waste Disposal,41830,Landfill Contract,530500,15-Oct-12,1900101044,"2,718.00",Wsr Recycling Ltd,101196
WARRINGTON BOROUGH COUNCIL,http://statistics.data.gov.uk/id/local-authority/00EU,Children & Young People,CHL,Rowland Close,31312,Rent Of Premises,220000,10-Oct-12,1900100828,"2,667.00",Warrington Housing Association,101208
WARRINGTON BOROUGH COUNCIL,http://statistics.data.gov.uk/id/local-authority/00EU,Children & Young People,CHL,Longfield Road,31311,Rent Of Premises,220000,10-Oct-12,1900100828,"2,667.00",Warrington Housing Association,101208
WARRINGTON BOROUGH COUNCIL,http://statistics.data.gov.uk/id/local-authority/00EU,Environment & Regeneration,ER0,Housing Strategy,43620,Misc (Contingency),551250,10-Oct-12,1900100842,"1,966.00",Warrington Housing Association,101208
WARRINGTON BOROUGH COUNCIL,http://statistics.data.gov.uk/id/local-authority/00EU,Environment & Regeneration,ER0,Housing Strategy,43620,Rent Of Premises,220000,11-Oct-12,1900100936,"8,261.00",Warrington Housing Association,101208
WARRINGTON BOROUGH COUNCIL,http://statistics.data.gov.uk/id/local-authority/00EU,Neighbourhood & Community Services,NCS,Supporting People Grant Payments,53260,Sheltd/Xtra Care Hsing and Comm Alarms,535050,16-Oct-12,1900101117,"4,806.00",Warrington Housing Association,101208
WARRINGTON BOROUGH COUNCIL,http://statistics.data.gov.uk/id/local-authority/00EU,Environment & Regeneration,ENO,Housing Projects,82008,Disabled Persons Grant 1996,554000,18-Oct-12,1900101328,698,Warrington Housing Association,101208
WARRINGTON BOROUGH COUNCIL,http://statistics.data.gov.uk/id/local-authority/00EU,Environment & Regeneration,ENO,Housing Projects,82008,Disabled Persons Grant 1996,554000,19-Oct-12,1900101911,753,Warrington Housing Association,101208
WARRINGTON BOROUGH COUNCIL,http://statistics.data.gov.uk/id/local-authority/00EU,Environment & Regeneration,ENO,Housing Projects,82008,Disabled Persons Grant 1996,554000,19-Oct-12,1900101912,675,Warrington Housing Association,101208
WARRINGTON BOROUGH COUNCIL,http://statistics.data.gov.uk/id/local-authority/00EU,Environment & Regeneration,ENO,Housing Projects,82008,Disabled Persons Grant 1996,554000,19-Oct-12,1900101913,"2,246.00",Warrington Housing Association,101208
WARRINGTON BOROUGH COUNCIL,http://statistics.data.gov.uk/id/local-authority/00EU,Environment & Regeneration,ER0,Housing Strategy,43620,Rent Of Premises,220000,30-Oct-12,1900102674,"25,767.00",Warrington Housing Association,101208
WARRINGTON BOROUGH COUNCIL,http://statistics.data.gov.uk/id/local-authority/00EU,Corporate Financing,COR,Corporate Planning Items,61020,Misc (Contingency),551250,30-Oct-12,1900102676,"30,000.00",Warrington Housing Association,101208
WARRINGTON BOROUGH COUNCIL,http://statistics.data.gov.uk/id/local-authority/00EU,Environment & Regeneration,ENO,Housing Projects,82008,Renewals Assistance,554050,31-Oct-12,1900102678,"1,723.00",Warrington Housing Association,101208
WARRINGTON BOROUGH COUNCIL,http://statistics.data.gov.uk/id/local-authority/00EU,Neighbourhood & Community Services,NCS,Care Purchase - Learning Disability,54450,CP-LongStayExternal,441150,03-Oct-12,1900100316,"10,471.00",Pendleton Care Limited,101213
WARRINGTON BOROUGH COUNCIL,http://statistics.data.gov.uk/id/local-authority/00EU,Neighbourhood & Community Services,NCS,Care Purchase - Learning Disability,54450,CP-LongStayExternal,441150,29-Oct-12,1900102576,"10,471.00",Pendleton Care Limited,101213
WARRINGTON BOROUGH COUNCIL,http://statistics.data.gov.uk/id/local-authority/00EU,Neighbourhood & Community Services,NCS,Care Purchase - Mental Health Team 1,54230,CP-Domicil.External,440950,15-Oct-12,1900101024,641,Next Stage A Way Forward Ltd,101217
WARRINGTON BOROUGH COUNCIL,http://statistics.data.gov.uk/id/local-authority/00EU,Neighbourhood & Community Services,NCS,Care Purchase - Mental Health Team 3,54250,CP-Domicil.External,440950,22-Oct-12,1900102025,732,Next Stage A Way Forward Ltd,101217
WARRINGTON BOROUGH COUNCIL,http://statistics.data.gov.uk/id/local-authority/00EU,Neighbourhood & Community Services,NCS,Care Purchase - Mental Health Team 3,54250,CP-Domicil.External,440950,29-Oct-12,1900102560,"1,465.00",Next Stage A Way Forward Ltd,101217
WARRINGTON BOROUGH COUNCIL,http://statistics.data.gov.uk/id/local-authority/00EU,Neighbourhood & Community Services,NCS,Care Purchase - Mental Health Team 2,54240,CP-Domicil.External,440950,29-Oct-12,1900102561,"1,923.00",Next Stage A Way Forward Ltd,101217
WARRINGTON BOROUGH COUNCIL,http://statistics.data.gov.uk/id/local-authority/00EU,Neighbourhood & Community Services,NCS,Care Purchase - Mental Health Team 3,54250,CP-Domicil.External,440950,29-Oct-12,1900102562,"1,190.00",Next Stage A Way Forward Ltd,101217
WARRINGTON BOROUGH COUNCIL,http://statistics.data.gov.uk/id/local-authority/00EU,Neighbourhood & Community Services,NCS,Care Purchase - Mental Health Team 2,54240,CP-LongStayExternal,441150,29-Oct-12,1900102564,"1,282.00",Next Stage A Way Forward Ltd,101217
WARRINGTON BOROUGH COUNCIL,http://statistics.data.gov.uk/id/local-authority/00EU,Neighbourhood & Community Services,NCS,Care Purchase - Mental Health Team 1,54230,CP-Domicil.External,440950,29-Oct-12,1900102565,"1,923.00",Next Stage A Way Forward Ltd,101217
WARRINGTON BOROUGH COUNCIL,http://statistics.data.gov.uk/id/local-authority/00EU,Neighbourhood & Community Services,NCS,Care Purchase - Mental Health Team 2,54240,CP-Domicil.External,440950,29-Oct-12,1900102566,"1,648.00",Next Stage A Way Forward Ltd,101217
WARRINGTON BOROUGH COUNCIL,http://statistics.data.gov.uk/id/local-authority/00EU,Neighbourhood & Community Services,NCS,Care Purchase - Mental Health Team 2,54240,CP-Domicil.External,440950,29-Oct-12,1900102567,"1,282.00",Next Stage A Way Forward Ltd,101217
WARRINGTON BOROUGH COUNCIL,http://statistics.data.gov.uk/id/local-authority/00EU,Neighbourhood & Community Services,NCS,Care Purchase - Mental Health Team 2,54240,CP-Domicil.External,440950,29-Oct-12,1900102568,"1,923.00",Next Stage A Way Forward Ltd,101217
WARRINGTON BOROUGH COUNCIL,http://statistics.data.gov.uk/id/local-authority/00EU,Neighbourhood & Community Services,NCS,Care Purchase - Mental Health Team 3,54250,CP-Domicil.External,440950,29-Oct-12,1900102569,"1,465.00",Next Stage A Way Forward Ltd,101217
WARRINGTON BOROUGH COUNCIL,http://statistics.data.gov.uk/id/local-authority/00EU,Neighbourhood & Community Services,NCS,Care Purchase - Mental Health Team 2,54240,CP-Domicil.External,440950,29-Oct-12,1900102570,961,Next Stage A Way Forward Ltd,101217
WARRINGTON BOROUGH COUNCIL,http://statistics.data.gov.uk/id/local-authority/00EU,Neighbourhood & Community Services,NCS,Care Purchase - Mental Health Team 2,54240,CP-Domicil.External,440950,29-Oct-12,1900102571,824,Next Stage A Way Forward Ltd,101217
WARRINGTON BOROUGH COUNCIL,http://statistics.data.gov.uk/id/local-authority/00EU,Neighbourhood & Community Services,NCS,Care Purchase - Mental Health Team 2,54240,CP-Domicil.External,440950,29-Oct-12,1900102572,"1,465.00",Next Stage A Way Forward Ltd,101217
WARRINGTON BOROUGH COUNCIL,http://statistics.data.gov.uk/id/local-authority/00EU,Neighbourhood & Community Services,NCS,Care Purchase - Mental Health Team 2,54240,CP-Domicil.External,440950,29-Oct-12,1900102573,"1,465.00",Next Stage A Way Forward Ltd,101217
WARRINGTON BOROUGH COUNCIL,http://statistics.data.gov.uk/id/local-authority/00EU,Neighbourhood & Community Services,NCS,Care Purchase - Mental Health Team 3,54250,CP-Domicil.External,440950,29-Oct-12,1900102574,"1,190.00",Next Stage A Way Forward Ltd,101217
WARRINGTON BOROUGH COUNCIL,http://statistics.data.gov.uk/id/local-authority/00EU,Assistant Chief Executive,CEX,Coroners Service,11100,Post Mortem Fees-Rep,440250,09-Oct-12,1900100679,"1,541.00",Dr Jackie Elder,101240
WARRINGTON BOROUGH COUNCIL,http://statistics.data.gov.uk/id/local-authority/00EU,Assistant Chief Executive,CEX,Coroners Service,11100,Post Mortem Fees-Rep,440250,23-Oct-12,1900102104,"2,297.00",Dr Jackie Elder,101240
WARRINGTON BOROUGH COUNCIL,http://statistics.data.gov.uk/id/local-authority/00EU,Neighbourhood & Community Services,NCS,Care Purchase - Learning Disability,54450,Direct Payments,552000,16-Oct-12,1900101401,"2,815.00",Redacted Personal Data,101246
WARRINGTON BOROUGH COUNCIL,http://statistics.data.gov.uk/id/local-authority/00EU,Environment & Regeneration,ER0,Urban Traffic Management Control,44370,Signal Management,531600,18-Oct-12,1900101349,"5,000.00",O2,101259
WARRINGTON BOROUGH COUNCIL,http://statistics.data.gov.uk/id/local-authority/00EU,Environment & Regeneration,ER0,Urban Traffic Management Control,44370,Signal Management,531600,18-Oct-12,1900101350,"5,000.00",O2,101259
WARRINGTON BOROUGH COUNCIL,http://statistics.data.gov.uk/id/local-authority/00EU,Environment & Regeneration,ER0,Urban Traffic Management Control,44370,Signal Management,531600,18-Oct-12,1900101351,"3,853.00",O2,101259
WARRINGTON BOROUGH COUNCIL,http://statistics.data.gov.uk/id/local-authority/00EU,Neighbourhood & Community Services,NCS,Care Purchase - Learning Disability,54450,Direct Payments,552000,16-Oct-12,1900101402,520,Redacted Personal Data,101261
WARRINGTON BOROUGH COUNCIL,http://statistics.data.gov.uk/id/local-authority/00EU,Neighbourhood & Community Services,NCS,Care Purchase - PD,54440,Direct Payments,552000,16-Oct-12,1900101403,"3,595.00",Redacted Personal Data,101276
WARRINGTON BOROUGH COUNCIL,http://statistics.data.gov.uk/id/local-authority/00EU,Neighbourhood & Community Services,NCS,Care Purchase - Learning Disability,54450,Direct Payments,552000,16-Oct-12,1900101404,"2,177.00",Redacted Personal Data,101310
WARRINGTON BOROUGH COUNCIL,http://statistics.data.gov.uk/id/local-authority/00EU,Children & Young People,CHL,Child Disability,32212,Direct Payments,552000,16-Oct-12,1900101405,666,Redacted Personal Data,101322
WARRINGTON BOROUGH COUNCIL,http://statistics.data.gov.uk/id/local-authority/00EU,Neighbourhood & Community Services,NCS,Care Purchase - PD,54440,Direct Payments,552000,16-Oct-12,1900101407,"2,328.00",Redacted Personal Data,101335
WARRINGTON BOROUGH COUNCIL,http://statistics.data.gov.uk/id/local-authority/00EU,Neighbourhood & Community Services,NCS,Care Purchase - PD,54440,Direct Payments,552000,16-Oct-12,1900101408,939,Redacted Personal Data,101336
WARRINGTON BOROUGH COUNCIL,http://statistics.data.gov.uk/id/local-authority/00EU,Neighbourhood & Community Services,NCS,Care Purchase - Learning Disability,54450,Direct Payments,552000,16-Oct-12,1900101409,"4,063.00",Redacted Personal Data,101341
WARRINGTON BOROUGH COUNCIL,http://statistics.data.gov.uk/id/local-authority/00EU,Neighbourhood & Community Services,NCS,Care Purchase - PD,54440,Direct Payments,552000,16-Oct-12,1900101410,"1,231.00",Redacted Personal Data,101354
WARRINGTON BOROUGH COUNCIL,http://statistics.data.gov.uk/id/local-authority/00EU,Children & Young People,CHL,DSG Early Years PVI Settings,32417,Private & Voluntary 3 Year Olds,470100,01-Oct-12,1900100198,564,Birch Grove Day Nursery Ltd,101367
WARRINGTON BOROUGH COUNCIL,http://statistics.data.gov.uk/id/local-authority/00EU,Children & Young People,CHL,DSG Early Years PVI Settings,32417,Private & Voluntary 3 Year Olds,470100,23-Oct-12,1900102369,"1,471.00",Birch Grove Day Nursery Ltd,101367
WARRINGTON BOROUGH COUNCIL,http://statistics.data.gov.uk/id/local-authority/00EU,Children & Young People,CHL,EIG Funding - 2 Year Old,31601,Payment of Grants,470050,23-Oct-12,1900102447,"2,852.00",Birch Grove Day Nursery Ltd,101367
WARRINGTON BOROUGH COUNCIL,http://statistics.data.gov.uk/id/local-authority/00EU,Neighbourhood & Community Services,NCS,Hospital Discharge Team,54390,Car Leasing Charges,350000,11-Oct-12,1900100944,"1,317.00",Lombard Vehicle Management,101395
WARRINGTON BOROUGH COUNCIL,http://statistics.data.gov.uk/id/local-authority/00EU,Neighbourhood & Community Services,NCS,Care Purchase - Learning Disability,54450,Direct Payments,552000,16-Oct-12,1900101412,800,Redacted Personal Data,101396
WARRINGTON BOROUGH COUNCIL,http://statistics.data.gov.uk/id/local-authority/00EU,Children & Young People,CHL,Child Disability,32212,Direct Payments,552000,16-Oct-12,1900101413,984,Redacted Personal Data,101407
WARRINGTON BOROUGH COUNCIL,http://statistics.data.gov.uk/id/local-authority/00EU,Neighbourhood & Community Services,NCS,Care Purchase - Learning Disability,54450,Direct Payments,552000,16-Oct-12,1900101414,"1,370.00",Redacted Personal Data,101420
WARRINGTON BOROUGH COUNCIL,http://statistics.data.gov.uk/id/local-authority/00EU,Neighbourhood & Community Services,NCS,Care Purchase - PD,54440,Direct Payments,552000,16-Oct-12,1900101416,"1,190.00",Redacted Personal Data,101431
WARRINGTON BOROUGH COUNCIL,http://statistics.data.gov.uk/id/local-authority/00EU,Neighbourhood & Community Services,NCS,Care Purchase - PD,54440,Supporting People - External,441250,16-Oct-12,1900101416,600,Redacted Personal Data,101431
WARRINGTON BOROUGH COUNCIL,http://statistics.data.gov.uk/id/local-authority/00EU,Neighbourhood & Community Services,NCS,Care Purchase - PD,54440,Direct Payments,552000,16-Oct-12,1900101417,680,Redacted Personal Data,101444
WARRINGTON BOROUGH COUNCIL,http://statistics.data.gov.uk/id/local-authority/00EU,Environment & Regeneration,ER0,Postal & Courier Services,52130,Postages,450000,16-Oct-12,1900101112,"9,723.00",Royal Mail,101445
WARRINGTON BOROUGH COUNCIL,http://statistics.data.gov.uk/id/local-authority/00EU,Environment & Regeneration,ER0,Postal & Courier Services,52130,Postages,450000,16-Oct-12,1900101159,"1,082.00",Royal Mail,101445
WARRINGTON BOROUGH COUNCIL,http://statistics.data.gov.uk/id/local-authority/00EU,Environment & Regeneration,ER0,Postal & Courier Services,52130,Postages,450000,25-Oct-12,1900102309,"1,581.00",Royal Mail,101445
WARRINGTON BOROUGH COUNCIL,http://statistics.data.gov.uk/id/local-authority/00EU,Environment & Regeneration,ER0,Postal & Courier Services,52130,Postages,450000,25-Oct-12,1900102310,"1,207.00",Royal Mail,101445
WARRINGTON BOROUGH COUNCIL,http://statistics.data.gov.uk/id/local-authority/00EU,Assistant Chief Executive,CEX,Council Tax & Recovery,10320,Consult.& Prof. Serv,440000,23-Oct-12,1900102168,729,Weightmans Office AC,101452
WARRINGTON BOROUGH COUNCIL,http://statistics.data.gov.uk/id/local-authority/00EU,Neighbourhood & Community Services,NCS,Care Purchase - Learning Disability,54450,Direct Payments,552000,16-Oct-12,1900101418,"3,647.00",Redacted Personal Data,101463
WARRINGTON BOROUGH COUNCIL,http://statistics.data.gov.uk/id/local-authority/00EU,Neighbourhood & Community Services,NCS,Care Purchase - Learning Disability,54450,Direct Payments,552000,16-Oct-12,1900101420,"4,802.00",Redacted Personal Data,101472
WARRINGTON BOROUGH COUNCIL,http://statistics.data.gov.uk/id/local-authority/00EU,Assistant Chief Executive,CEX,CRT Apprenticeships,22470,"Campaigns,  Projects and Events",491950,03-Oct-12,1900100317,840,Pink Ladies,101485
WARRINGTON BOROUGH COUNCIL,http://statistics.data.gov.uk/id/local-authority/00EU,Assistant Chief Executive,CEX,CRT Apprenticeships,22470,"Campaigns,  Projects and Events",491950,25-Oct-12,1900102320,840,Pink Ladies,101485
WARRINGTON BOROUGH COUNCIL,http://statistics.data.gov.uk/id/local-authority/00EU,Neighbourhood & Community Services,NCS,Care Purchase Budget,54490,CP ExternalOther Exp,440800,15-Oct-12,1900101004,"7,040.00",St Marys Care Centre,101503
WARRINGTON BOROUGH COUNCIL,http://statistics.data.gov.uk/id/local-authority/00EU,Neighbourhood & Community Services,NCS,Care Purchase Budget,54490,CP ExternalOther Exp,440800,17-Oct-12,1900101192,"32,000.00",St Marys Care Centre,101503
WARRINGTON BOROUGH COUNCIL,http://statistics.data.gov.uk/id/local-authority/00EU,Neighbourhood & Community Services,NCS,Care Purchase - OP & OT West,54470,CP-Nursing Care-External,441200,17-Oct-12,1900101320,"3,960.00",St Marys Care Centre,101503
WARRINGTON BOROUGH COUNCIL,http://statistics.data.gov.uk/id/local-authority/00EU,Neighbourhood & Community Services,NCS,Care Purchase - Learning Disability,54450,Direct Payments,552000,16-Oct-12,1900101422,849,Redacted Personal Data,101515
WARRINGTON BOROUGH COUNCIL,http://statistics.data.gov.uk/id/local-authority/00EU,Neighbourhood & Community Services,NCS,Care Purchase - Learning Disability,54450,Direct Payments,552000,16-Oct-12,1900101423,"1,513.00",Redacted Personal Data,101516
WARRINGTON BOROUGH COUNCIL,http://statistics.data.gov.uk/id/local-authority/00EU,Neighbourhood & Community Services,NCS,Care Purchase - ABI,54260,Direct Payments,552000,16-Oct-12,1900101425,849,Redacted Personal Data,101542
WARRINGTON BOROUGH COUNCIL,http://statistics.data.gov.uk/id/local-authority/00EU,Neighbourhood & Community Services,NCS,Care Purchase - Learning Disability,54450,Direct Payments,552000,16-Oct-12,1900101426,764,Redacted Personal Data,101547
WARRINGTON BOROUGH COUNCIL,http://statistics.data.gov.uk/id/local-authority/00EU,Neighbourhood & Community Services,NCS,Care Purchase - Learning Disability,54450,Direct Payments,552000,16-Oct-12,1900101427,"1,542.00",Redacted Personal Data,101551
WARRINGTON BOROUGH COUNCIL,http://statistics.data.gov.uk/id/local-authority/00EU,Neighbourhood & Community Services,NCS,Care Purchase - Learning Disability,54450,CP - Cont Care - External,441350,16-Oct-12,1900101427,"1,542.00",Redacted Personal Data,101551
WARRINGTON BOROUGH COUNCIL,http://statistics.data.gov.uk/id/local-authority/00EU,Neighbourhood & Community Services,NCS,Care Purchase - Learning Disability,54450,Direct Payments,552000,16-Oct-12,1900101429,"2,462.00",Redacted Personal Data,101568
WARRINGTON BOROUGH COUNCIL,http://statistics.data.gov.uk/id/local-authority/00EU,Environment & Regeneration,ENO,Housing Projects,82008,Renewals Assistance,554050,31-Oct-12,1900102679,"17,460.00",Redacted Personal Data,101578
WARRINGTON BOROUGH COUNCIL,http://statistics.data.gov.uk/id/local-authority/00EU,Neighbourhood & Community Services,NCS,Care Purchase - Learning Disability,54450,Direct Payments,552000,16-Oct-12,1900101430,"1,698.00",Redacted Personal Data,101584
WARRINGTON BOROUGH COUNCIL,http://statistics.data.gov.uk/id/local-authority/00EU,Neighbourhood & Community Services,NCS,Care Purchase - OP & OT West,54470,Direct Payments,552000,16-Oct-12,1900101431,856,Redacted Personal Data,101592
WARRINGTON BOROUGH COUNCIL,http://statistics.data.gov.uk/id/local-authority/00EU,Children & Young People,CHL,Child Disability,32212,Direct Payments,552000,16-Oct-12,1900101432,665,Redacted Personal Data,101595
WARRINGTON BOROUGH COUNCIL,http://statistics.data.gov.uk/id/local-authority/00EU,Neighbourhood & Community Services,NCS,Care Purchase - Learning Disability,54450,Direct Payments,552000,16-Oct-12,1900101433,"1,237.00",Redacted Personal Data,101614
WARRINGTON BOROUGH COUNCIL,http://statistics.data.gov.uk/id/local-authority/00EU,Neighbourhood & Community Services,NCS,Care Purchase - Learning Disability,54450,Direct Payments,552000,16-Oct-12,1900101434,"1,237.00",Redacted Personal Data,101619
WARRINGTON BOROUGH COUNCIL,http://statistics.data.gov.uk/id/local-authority/00EU,Neighbourhood & Community Services,NCS,Care Purchase - Learning Disability,54450,Direct Payments,552000,16-Oct-12,1900101435,"1,019.00",Redacted Personal Data,101625
WARRINGTON BOROUGH COUNCIL,http://statistics.data.gov.uk/id/local-authority/00EU,Children & Young People,CHL,Child Disability,32212,CP - Cont Care - External,441350,16-Oct-12,1900101437,580,Redacted Personal Data,101630
WARRINGTON BOROUGH COUNCIL,http://statistics.data.gov.uk/id/local-authority/00EU,Children & Young People,CHL,Child Disability,32212,Direct Payments,552000,16-Oct-12,1900101437,580,Redacted Personal Data,101630
WARRINGTON BOROUGH COUNCIL,http://statistics.data.gov.uk/id/local-authority/00EU,Children & Young People,CHL,CiC Team 2,31101,Personal Needs Allowance,550400,23-Oct-12,1900102151,541,Adactus Housing Association Ltd,101634
WARRINGTON BOROUGH COUNCIL,http://statistics.data.gov.uk/id/local-authority/00EU,Neighbourhood & Community Services,NCS,Care Purchase - Learning Disability,54450,CP-LongStayExternal,441150,03-Oct-12,1900100303,"12,348.00",Griffin Care Ltd,101672
WARRINGTON BOROUGH COUNCIL,http://statistics.data.gov.uk/id/local-authority/00EU,Neighbourhood & Community Services,NCS,Care Purchase - Learning Disability,54450,CP-LongStayExternal,441150,03-Oct-12,1900100304,"12,348.00",Griffin Care Ltd,101672
WARRINGTON BOROUGH COUNCIL,http://statistics.data.gov.uk/id/local-authority/00EU,Neighbourhood & Community Services,NCS,Care Purchase - PD,54440,Direct Payments,552000,16-Oct-12,1900101440,560,Redacted Personal Data,101677
WARRINGTON BOROUGH COUNCIL,http://statistics.data.gov.uk/id/local-authority/00EU,Neighbourhood & Community Services,NCS,Supporting People Grant Payments,53260,Sheltd/Xtra Care Hsing and Comm Alarms,535050,16-Oct-12,1900101079,"14,950.00",Frontis Homes,101685
WARRINGTON BOROUGH COUNCIL,http://statistics.data.gov.uk/id/local-authority/00EU,Neighbourhood & Community Services,NCS,Care Purchase - Learning Disability,54450,Direct Payments,552000,16-Oct-12,1900101441,880,Redacted Personal Data,101686
WARRINGTON BOROUGH COUNCIL,http://statistics.data.gov.uk/id/local-authority/00EU,Neighbourhood & Community Services,NCS,Care Purchase - Learning Disability,54450,Direct Payments,552000,16-Oct-12,1900101442,"3,533.00",Redacted Personal Data,101701
WARRINGTON BOROUGH COUNCIL,http://statistics.data.gov.uk/id/local-authority/00EU,Neighbourhood & Community Services,NCS,Care Purchase - Learning Disability,54450,Direct Payments,552000,16-Oct-12,1900101443,"3,533.00",Redacted Personal Data,101704
WARRINGTON BOROUGH COUNCIL,http://statistics.data.gov.uk/id/local-authority/00EU,Assistant Chief Executive,CEX,Coroners Service,11100,Post Mortem Fees-Rep,440250,10-Oct-12,1900100726,572,Dr Natalie Meara,101727
WARRINGTON BOROUGH COUNCIL,http://statistics.data.gov.uk/id/local-authority/00EU,Assistant Chief Executive,CEX,Coroners Service,11100,Post Mortem Fees-Rep,440250,10-Oct-12,1900100735,778,Dr Natalie Meara,101727
WARRINGTON BOROUGH COUNCIL,http://statistics.data.gov.uk/id/local-authority/00EU,Neighbourhood & Community Services,NCS,Care Purchase - Learning Disability,54450,Direct Payments,552000,16-Oct-12,1900101445,"1,347.00",Redacted Personal Data,101730
WARRINGTON BOROUGH COUNCIL,http://statistics.data.gov.uk/id/local-authority/00EU,Environment & Regeneration,ER0,Estates & Valuation,43520,Agency Supply - GF,180000,02-Oct-12,1900100250,627,Judd Farris Property Recruitment,101741
WARRINGTON BOROUGH COUNCIL,http://statistics.data.gov.uk/id/local-authority/00EU,Environment & Regeneration,ER0,Estates & Valuation,43520,Agency Supply - GF,180000,02-Oct-12,1900100253,"1,008.00",Judd Farris Property Recruitment,101741
WARRINGTON BOROUGH COUNCIL,http://statistics.data.gov.uk/id/local-authority/00EU,Environment & Regeneration,ER0,Estates & Valuation,43520,Agency Supply - GF,180000,09-Oct-12,1900100700,"1,021.00",Judd Farris Property Recruitment,101741
WARRINGTON BOROUGH COUNCIL,http://statistics.data.gov.uk/id/local-authority/00EU,Neighbourhood & Community Services,NCS,Care Purchase Budget,54490,CP ExternalOther Exp,440800,05-Oct-12,1900100534,"2,191.00",Wcl - Heathside Mews,101742
WARRINGTON BOROUGH COUNCIL,http://statistics.data.gov.uk/id/local-authority/00EU,Neighbourhood & Community Services,NCS,Care Purchase Budget,54490,CP ExternalOther Exp,440800,17-Oct-12,1900101196,"40,000.00",Wcl - Heathside Mews,101742
WARRINGTON BOROUGH COUNCIL,http://statistics.data.gov.uk/id/local-authority/00EU,Environment & Regeneration,ER0,P.F.I.,43630,PFI,480000,10-Oct-12,1900100814,"44,933.00",Arena Options,101746
WARRINGTON BOROUGH COUNCIL,http://statistics.data.gov.uk/id/local-authority/00EU,Neighbourhood & Community Services,NCS,Care Purchase - Learning Disability,54450,Direct Payments,552000,16-Oct-12,1900101446,599,Redacted Personal Data,101748
WARRINGTON BOROUGH COUNCIL,http://statistics.data.gov.uk/id/local-authority/00EU,Environment & Regeneration,ER1,Walton Hall Catering,41433,Snack Foods,410150,05-Oct-12,1900100520,576,Woodward Foodservice Ltd,101749
WARRINGTON BOROUGH COUNCIL,http://statistics.data.gov.uk/id/local-authority/00EU,Neighbourhood & Community Services,NCS,Care Purchase - PD,54440,Direct Payments,552000,16-Oct-12,1900101447,679,Redacted Personal Data,101752
WARRINGTON BOROUGH COUNCIL,http://statistics.data.gov.uk/id/local-authority/00EU,Children & Young People,CHL,Child Disability,32212,Direct Payments,552000,16-Oct-12,1900101448,"1,002.00",Redacted Personal Data,101758
WARRINGTON BOROUGH COUNCIL,http://statistics.data.gov.uk/id/local-authority/00EU,Neighbourhood & Community Services,NCS,Care Purchase - Learning Disability,54450,Direct Payments,552000,16-Oct-12,1900101449,509,Redacted Personal Data,101759
WARRINGTON BOROUGH COUNCIL,http://statistics.data.gov.uk/id/local-authority/00EU,Neighbourhood & Community Services,NCS,Care Purchase - Mental Health Team 2,54240,Direct Payments,552000,16-Oct-12,1900101450,"1,949.00",Redacted Personal Data,101808
WARRINGTON BOROUGH COUNCIL,http://statistics.data.gov.uk/id/local-authority/00EU,Neighbourhood & Community Services,NCS,Care Purchase - PD,54440,CP-Nursing Care-External,441200,24-Oct-12,1900102227,"4,136.00",Abbey Lawns Care Home Ltd,101816
WARRINGTON BOROUGH COUNCIL,http://statistics.data.gov.uk/id/local-authority/00EU,Neighbourhood & Community Services,NCS,Care Purchase - Learning Disability,54450,CP-LongStayExternal,441150,29-Oct-12,1900102578,"11,238.00",Progress Adult Services Ltd,101817
WARRINGTON BOROUGH COUNCIL,http://statistics.data.gov.uk/id/local-authority/00EU,Neighbourhood & Community Services,NCS,Care Purchase - Learning Disability,54450,CP-LongStayExternal,441150,29-Oct-12,1900102579,"11,238.00",Progress Adult Services Ltd,101817
WARRINGTON BOROUGH COUNCIL,http://statistics.data.gov.uk/id/local-authority/00EU,Neighbourhood & Community Services,NCS,Care Purchase - Learning Disability,54450,CP-Domicil.External,440950,29-Oct-12,1900102579,687,Progress Adult Services Ltd,101817
WARRINGTON BOROUGH COUNCIL,http://statistics.data.gov.uk/id/local-authority/00EU,Neighbourhood & Community Services,NCS,Care Purchase - OP & OT South,54480,Direct Payments,552000,16-Oct-12,1900101451,912,Redacted Personal Data,101825
WARRINGTON BOROUGH COUNCIL,http://statistics.data.gov.uk/id/local-authority/00EU,Children & Young People,CHL,Child Disability,32212,Direct Payments,552000,16-Oct-12,1900101452,577,Redacted Personal Data,101826
WARRINGTON BOROUGH COUNCIL,http://statistics.data.gov.uk/id/local-authority/00EU,Assistant Chief Executive,CEX,Coroners Service,11100,Consult.& Prof. Serv,440000,09-Oct-12,1900100695,"1,663.00",Geoff Roberts Assoc Ltd,101833
WARRINGTON BOROUGH COUNCIL,http://statistics.data.gov.uk/id/local-authority/00EU,Neighbourhood & Community Services,NCS,Care Purchase - Learning Disability,54450,CP-Domicil.External,440950,10-Oct-12,1900100763,"1,482.00",Inclusive Lifestyles Ltd,101840
WARRINGTON BOROUGH COUNCIL,http://statistics.data.gov.uk/id/local-authority/00EU,Neighbourhood & Community Services,NCS,Care Purchase - Learning Disability,54450,CP-LongStayExternal,441150,10-Oct-12,1900100765,"12,744.00",Inclusive Lifestyles Ltd,101840
WARRINGTON BOROUGH COUNCIL,http://statistics.data.gov.uk/id/local-authority/00EU,Neighbourhood & Community Services,NCS,Care Purchase - Learning Disability,54450,CP-LongStayExternal,441150,10-Oct-12,1900100767,"12,532.00",Inclusive Lifestyles Ltd,101840
WARRINGTON BOROUGH COUNCIL,http://statistics.data.gov.uk/id/local-authority/00EU,Neighbourhood & Community Services,NCS,Care Purchase - Learning Disability,54450,CP-Domicil.External,440950,10-Oct-12,1900100768,"1,258.00",Inclusive Lifestyles Ltd,101840
WARRINGTON BOROUGH COUNCIL,http://statistics.data.gov.uk/id/local-authority/00EU,Neighbourhood & Community Services,NCS,Care Purchase - Learning Disability,54450,CP-LongStayExternal,441150,29-Oct-12,1900102551,"12,744.00",Inclusive Lifestyles Ltd,101840
WARRINGTON BOROUGH COUNCIL,http://statistics.data.gov.uk/id/local-authority/00EU,Neighbourhood & Community Services,NCS,Care Purchase - Learning Disability,54450,CP-LongStayExternal,441150,29-Oct-12,1900102553,"1,482.00",Inclusive Lifestyles Ltd,101840
WARRINGTON BOROUGH COUNCIL,http://statistics.data.gov.uk/id/local-authority/00EU,Neighbourhood & Community Services,NCS,Care Purchase - Learning Disability,54450,CP-LongStayExternal,441150,29-Oct-12,1900102554,"12,532.00",Inclusive Lifestyles Ltd,101840
WARRINGTON BOROUGH COUNCIL,http://statistics.data.gov.uk/id/local-authority/00EU,Neighbourhood & Community Services,NCS,Care Purchase - Learning Disability,54450,CP-LongStayExternal,441150,29-Oct-12,1900102555,"1,258.00",Inclusive Lifestyles Ltd,101840
WARRINGTON BOROUGH COUNCIL,http://statistics.data.gov.uk/id/local-authority/00EU,Neighbourhood & Community Services,NCS,Care Purchase - OP & OT Central,54420,CP-Nursing Care-External,441200,19-Oct-12,1900102006,"1,965.00",Meridian Healthcare Ltd,101845
WARRINGTON BOROUGH COUNCIL,http://statistics.data.gov.uk/id/local-authority/00EU,Neighbourhood & Community Services,NCS,Care Purchase - OP & OT Central,54420,CP-Nursing Care-External,441200,24-Oct-12,1900102229,"1,695.00",Meridian Healthcare Ltd,101845
WARRINGTON BOROUGH COUNCIL,http://statistics.data.gov.uk/id/local-authority/00EU,Neighbourhood & Community Services,NCS,Care Purchase - OP & OT South,54480,CP-LongStayExternal,441150,24-Oct-12,1900102279,"1,507.00",Meridian Healthcare Ltd,101845
WARRINGTON BOROUGH COUNCIL,http://statistics.data.gov.uk/id/local-authority/00EU,Neighbourhood & Community Services,NCS,Care Purchase - OP & OT South,54480,CP-Nursing Care-External,441200,24-Oct-12,1900102280,"1,965.00",Meridian Healthcare Ltd,101845
WARRINGTON BOROUGH COUNCIL,http://statistics.data.gov.uk/id/local-authority/00EU,Children & Young People,CHL,Child Disability,32212,Direct Payments,552000,16-Oct-12,1900101454,"1,278.00",Redacted Personal Data,101849
WARRINGTON BOROUGH COUNCIL,http://statistics.data.gov.uk/id/local-authority/00EU,Neighbourhood & Community Services,NCS,Care Purchase -OP & OT East,54430,CP-LongStayExternal,441150,03-Oct-12,1900100307,"1,516.00",Mayfield House Care Home Ltd,101862
WARRINGTON BOROUGH COUNCIL,http://statistics.data.gov.uk/id/local-authority/00EU,Children & Young People,CHL,Special Schools,33208,Warrington BC Schools Transport,300700,05-Oct-12,1900100562,"1,850.00",Direct Taxis,101873
WARRINGTON BOROUGH COUNCIL,http://statistics.data.gov.uk/id/local-authority/00EU,Children & Young People,CHL,Special Schools,33208,Independent School Transport,301550,05-Oct-12,1900100563,"1,785.00",Direct Taxis,101873
WARRINGTON BOROUGH COUNCIL,http://statistics.data.gov.uk/id/local-authority/00EU,Holding Accounts,HOL,Single Billing Holding Account,91130,Electricity,210000,03-Oct-12,1900100360,"40,456.00",Npower Electricity,101884
WARRINGTON BOROUGH COUNCIL,http://statistics.data.gov.uk/id/local-authority/00EU,Holding Accounts,HOL,Single Billing Holding Account,91130,Electricity,210000,19-Oct-12,1900101817,"33,860.00",Npower Electricity,101884
WARRINGTON BOROUGH COUNCIL,http://statistics.data.gov.uk/id/local-authority/00EU,Holding Accounts,HOL,Single Billing Holding Account,91130,Electricity,210000,19-Oct-12,1900101817,"2,170.00",Npower Electricity,101884
WARRINGTON BOROUGH COUNCIL,http://statistics.data.gov.uk/id/local-authority/00EU,Holding Accounts,HOL,Single Billing Holding Account,91130,Electricity,210000,19-Oct-12,1900102007,"35,238.00",Npower Electricity,101884
WARRINGTON BOROUGH COUNCIL,http://statistics.data.gov.uk/id/local-authority/00EU,Holding Accounts,HOL,Single Billing Holding Account,91130,Electricity,210000,19-Oct-12,1900102007,"2,451.00",Npower Electricity,101884
WARRINGTON BOROUGH COUNCIL,http://statistics.data.gov.uk/id/local-authority/00EU,Holding Accounts,HOL,Single Billing Holding Account,91130,Electricity,210000,23-Oct-12,1900102167,"59,232.00",Npower Electricity,101884
WARRINGTON BOROUGH COUNCIL,http://statistics.data.gov.uk/id/local-authority/00EU,Holding Accounts,HOL,Single Billing Holding Account,91130,Electricity,210000,23-Oct-12,1900102170,"73,825.00",Npower Electricity,101884
WARRINGTON BOROUGH COUNCIL,http://statistics.data.gov.uk/id/local-authority/00EU,Holding Accounts,HOL,Single Billing Holding Account,91130,Electricity,210000,23-Oct-12,1900102170,"1,406.00",Npower Electricity,101884
WARRINGTON BOROUGH COUNCIL,http://statistics.data.gov.uk/id/local-authority/00EU,Holding Accounts,HOL,Single Billing Holding Account,91130,Electricity,210000,23-Oct-12,1900102172,"118,485.00",Npower Electricity,101884
WARRINGTON BOROUGH COUNCIL,http://statistics.data.gov.uk/id/local-authority/00EU,Environment & Regeneration,ER0,Development Control,43430,Legal Costs Incurred,440200,03-Oct-12,1900100305,"2,048.00",Kings Chambers,101921
WARRINGTON BOROUGH COUNCIL,http://statistics.data.gov.uk/id/local-authority/00EU,Assistant Chief Executive,CEX,Council Tax & Recovery,10320,Consult.& Prof. Serv,440000,11-Oct-12,1900100876,850,Kings Chambers,101921
WARRINGTON BOROUGH COUNCIL,http://statistics.data.gov.uk/id/local-authority/00EU,Neighbourhood & Community Services,NCS,Care Purchase - OP & OT South,54480,CP-Domicil.External,440950,19-Oct-12,1900101996,"19,527.00",Dh Homecare,101961
WARRINGTON BOROUGH COUNCIL,http://statistics.data.gov.uk/id/local-authority/00EU,Neighbourhood & Community Services,NCS,Care Purchase - PD,54440,CP-Domicil.External,440950,19-Oct-12,1900101996,"3,453.00",Dh Homecare,101961
WARRINGTON BOROUGH COUNCIL,http://statistics.data.gov.uk/id/local-authority/00EU,Neighbourhood & Community Services,NCS,Care Purchase - OP & OT Central,54420,CP-Domicil.External,440950,19-Oct-12,1900101996,611,Dh Homecare,101961
WARRINGTON BOROUGH COUNCIL,http://statistics.data.gov.uk/id/local-authority/00EU,Neighbourhood & Community Services,NCS,Care Purchase Budget,54490,CP - Cont Care - External,441350,19-Oct-12,1900101996,556,Dh Homecare,101961
WARRINGTON BOROUGH COUNCIL,http://statistics.data.gov.uk/id/local-authority/00EU,Neighbourhood & Community Services,NCS,Care Purchase - OP & OT West,54470,CP-Domicil.External,440950,19-Oct-12,1900101996,553,Dh Homecare,101961
WARRINGTON BOROUGH COUNCIL,http://statistics.data.gov.uk/id/local-authority/00EU,Children & Young People,CYP,Primary,81001,Furniture & Fittings,400150,03-Oct-12,1900100356,"2,640.00",Gemini Blinds,102005
WARRINGTON BOROUGH COUNCIL,http://statistics.data.gov.uk/id/local-authority/00EU,Holding Accounts,HOL,Single Billing Holding Account,91130,Agency Supply - GF,180000,10-Oct-12,1900100823,"54,251.00",Comensura,102009
WARRINGTON BOROUGH COUNCIL,http://statistics.data.gov.uk/id/local-authority/00EU,Holding Accounts,HOL,Single Billing Holding Account,91130,Agency Supply - GF,180000,10-Oct-12,1900100824,"50,897.00",Comensura,102009
WARRINGTON BOROUGH COUNCIL,http://statistics.data.gov.uk/id/local-authority/00EU,Holding Accounts,HOL,Single Billing Holding Account,91130,Agency Supply - GF,180000,22-Oct-12,1900102085,"46,862.00",Comensura,102009
WARRINGTON BOROUGH COUNCIL,http://statistics.data.gov.uk/id/local-authority/00EU,Holding Accounts,HOL,Single Billing Holding Account,91130,Agency Supply - GF,180000,22-Oct-12,1900102086,"48,113.00",Comensura,102009
WARRINGTON BOROUGH COUNCIL,http://statistics.data.gov.uk/id/local-authority/00EU,Holding Accounts,HOL,Single Billing Holding Account,91130,Agency Supply - GF,180000,24-Oct-12,1900102277,"36,190.00",Comensura,102009
WARRINGTON BOROUGH COUNCIL,http://statistics.data.gov.uk/id/local-authority/00EU,Neighbourhood & Community Services,NCS,Care Purchase - PD,54440,Direct Payments,552000,16-Oct-12,1900101457,652,Redacted Personal Data,102010
WARRINGTON BOROUGH COUNCIL,http://statistics.data.gov.uk/id/local-authority/00EU,Neighbourhood & Community Services,NCS,Care Purchase - OP & OT West,54470,CP-Day Care-External,441100,04-Oct-12,1900100449,"1,660.00",Manor Park Care Home,102013
WARRINGTON BOROUGH COUNCIL,http://statistics.data.gov.uk/id/local-authority/00EU,Neighbourhood & Community Services,NCS,Administration,51010,Gen. Personal Needs,490850,10-Oct-12,1900100707,"10,814.00",Redacted Personal Data,102113
WARRINGTON BOROUGH COUNCIL,http://statistics.data.gov.uk/id/local-authority/00EU,Neighbourhood & Community Services,NCS,Administration,51010,Gen. Personal Needs,490850,25-Oct-12,1900102351,"1,362.00",Redacted Personal Data,102113
WARRINGTON BOROUGH COUNCIL,http://statistics.data.gov.uk/id/local-authority/00EU,Neighbourhood & Community Services,NCS,Care Purchase - ABI,54260,CP-LongStayExternal,441150,09-Oct-12,1900100682,"5,660.00",Thames Health Care Ltd,102170
WARRINGTON BOROUGH COUNCIL,http://statistics.data.gov.uk/id/local-authority/00EU,Neighbourhood & Community Services,NCS,Care Purchase - OP & OT Central,54420,Direct Payments,552000,16-Oct-12,1900101461,661,Redacted Personal Data,102183
WARRINGTON BOROUGH COUNCIL,http://statistics.data.gov.uk/id/local-authority/00EU,Children & Young People,CHL,Child Disability,32212,CP-Domicil.External,440950,16-Oct-12,1900101059,"1,692.00",M-Power Activity Services Ltd,102186
WARRINGTON BOROUGH COUNCIL,http://statistics.data.gov.uk/id/local-authority/00EU,Children & Young People,CHL,Child Disability,32212,CP-Domicil.External,440950,16-Oct-12,1900101084,"1,613.00",M-Power Activity Services Ltd,102186
WARRINGTON BOROUGH COUNCIL,http://statistics.data.gov.uk/id/local-authority/00EU,Neighbourhood & Community Services,NCS,Care Purchase - Learning Disability,54450,CP-Domicil.External,440950,29-Oct-12,1900102538,"1,507.00",M-Power Activity Services Ltd,102186
WARRINGTON BOROUGH COUNCIL,http://statistics.data.gov.uk/id/local-authority/00EU,Neighbourhood & Community Services,NCS,Care Purchase - OP & OT West,54470,CP-Domicil.External,440950,29-Oct-12,1900102538,635,M-Power Activity Services Ltd,102186
WARRINGTON BOROUGH COUNCIL,http://statistics.data.gov.uk/id/local-authority/00EU,Neighbourhood & Community Services,NCS,Supporting People Grant Payments,53260,Sheltd/Xtra Care Hsing and Comm Alarms,535050,16-Oct-12,1900101076,"18,043.00",Arena Housing,102199
WARRINGTON BOROUGH COUNCIL,http://statistics.data.gov.uk/id/local-authority/00EU,Assistant Chief Executive,CEX,Coroners Service,11100,Post Mortem Fees-Rep,440250,17-Oct-12,1900101285,"2,486.00",Dr P Simcock,102209
WARRINGTON BOROUGH COUNCIL,http://statistics.data.gov.uk/id/local-authority/00EU,Neighbourhood & Community Services,NCS,Care Purchase - Learning Disability,54450,Direct Payments,552000,16-Oct-12,1900101462,719,Redacted Personal Data,102217
WARRINGTON BOROUGH COUNCIL,http://statistics.data.gov.uk/id/local-authority/00EU,Neighbourhood & Community Services,NCS,Care Purchase - PD,54440,Direct Payments,552000,16-Oct-12,1900101463,"1,509.00",Redacted Personal Data,102222
WARRINGTON BOROUGH COUNCIL,http://statistics.data.gov.uk/id/local-authority/00EU,Environment & Regeneration,ER0,Time Square,43551,Service Charges,220050,02-Oct-12,1900100256,"15,754.00",Knight Frank Llp,102232
WARRINGTON BOROUGH COUNCIL,http://statistics.data.gov.uk/id/local-authority/00EU,Neighbourhood & Community Services,NCS,Care Purchase - PD,54440,CP Adult Placement,443450,02-Oct-12,1900100227,"1,528.00",Redacted Personal Data,102249
WARRINGTON BOROUGH COUNCIL,http://statistics.data.gov.uk/id/local-authority/00EU,Neighbourhood & Community Services,NCS,Care Purchase - PD,54440,CP Adult Placement,443450,30-Oct-12,1900102637,"1,528.00",Redacted Personal Data,102249
WARRINGTON BOROUGH COUNCIL,http://statistics.data.gov.uk/id/local-authority/00EU,Assistant Chief Executive,CEX,Council Tax & Recovery,10320,Court Costs,460100,09-Oct-12,1900100652,"2,244.00",Hmcs North Cheshire Collections,102261
WARRINGTON BOROUGH COUNCIL,http://statistics.data.gov.uk/id/local-authority/00EU,Neighbourhood & Community Services,NCS,Care Purchase - Learning Disability,54450,CP-Domicil.External,440950,03-Oct-12,1900100276,"1,998.00",Care Uk Care Solutions Ltd,102263
WARRINGTON BOROUGH COUNCIL,http://statistics.data.gov.uk/id/local-authority/00EU,Neighbourhood & Community Services,NCS,Care Purchase - Learning Disability,54450,CP-Domicil.External,440950,03-Oct-12,1900100278,"2,145.00",Care Uk Care Solutions Ltd,102263
WARRINGTON BOROUGH COUNCIL,http://statistics.data.gov.uk/id/local-authority/00EU,Neighbourhood & Community Services,NCS,Care Purchase - Learning Disability,54450,CP-Domicil.External,440950,03-Oct-12,1900100279,"10,154.00",Care Uk Care Solutions Ltd,102263
WARRINGTON BOROUGH COUNCIL,http://statistics.data.gov.uk/id/local-authority/00EU,Neighbourhood & Community Services,NCS,Care Purchase - Learning Disability,54450,CP-Domicil.External,440950,03-Oct-12,1900100280,"2,096.00",Care Uk Care Solutions Ltd,102263
WARRINGTON BOROUGH COUNCIL,http://statistics.data.gov.uk/id/local-authority/00EU,Neighbourhood & Community Services,NCS,Care Purchase - Learning Disability,54450,CP-Domicil.External,440950,03-Oct-12,1900100281,"1,865.00",Care Uk Care Solutions Ltd,102263
WARRINGTON BOROUGH COUNCIL,http://statistics.data.gov.uk/id/local-authority/00EU,Neighbourhood & Community Services,NCS,Care Purchase - Learning Disability,54450,Supporting People - External,441250,03-Oct-12,1900100282,683,Care Uk Care Solutions Ltd,102263
WARRINGTON BOROUGH COUNCIL,http://statistics.data.gov.uk/id/local-authority/00EU,Neighbourhood & Community Services,NCS,Care Purchase - Learning Disability,54450,CP-Domicil.External,440950,03-Oct-12,1900100284,732,Care Uk Care Solutions Ltd,102263
WARRINGTON BOROUGH COUNCIL,http://statistics.data.gov.uk/id/local-authority/00EU,Neighbourhood & Community Services,NCS,Care Purchase - Learning Disability,54450,Supporting People - External,441250,03-Oct-12,1900100287,976,Care Uk Care Solutions Ltd,102263
WARRINGTON BOROUGH COUNCIL,http://statistics.data.gov.uk/id/local-authority/00EU,Neighbourhood & Community Services,NCS,Care Purchase - Learning Disability,54450,CP-Domicil.External,440950,03-Oct-12,1900100288,"3,294.00",Care Uk Care Solutions Ltd,102263
WARRINGTON BOROUGH COUNCIL,http://statistics.data.gov.uk/id/local-authority/00EU,Neighbourhood & Community Services,NCS,Care Purchase - Learning Disability,54450,CP-Domicil.External,440950,03-Oct-12,1900100289,"4,050.00",Care Uk Care Solutions Ltd,102263
WARRINGTON BOROUGH COUNCIL,http://statistics.data.gov.uk/id/local-authority/00EU,Neighbourhood & Community Services,NCS,Care Purchase - Learning Disability,54450,CP-Domicil.External,440950,03-Oct-12,1900100290,"4,172.00",Care Uk Care Solutions Ltd,102263
WARRINGTON BOROUGH COUNCIL,http://statistics.data.gov.uk/id/local-authority/00EU,Neighbourhood & Community Services,NCS,Care Purchase - Learning Disability,54450,CP-Domicil.External,440950,03-Oct-12,1900100291,"4,224.00",Care Uk Care Solutions Ltd,102263
WARRINGTON BOROUGH COUNCIL,http://statistics.data.gov.uk/id/local-authority/00EU,Neighbourhood & Community Services,NCS,Care Purchase - Learning Disability,54450,Supporting People - External,441250,03-Oct-12,1900100291,927,Care Uk Care Solutions Ltd,102263
WARRINGTON BOROUGH COUNCIL,http://statistics.data.gov.uk/id/local-authority/00EU,Neighbourhood & Community Services,NCS,Care Purchase - Learning Disability,54450,CP-Domicil.External,440950,03-Oct-12,1900100293,"3,953.00",Care Uk Care Solutions Ltd,102263
WARRINGTON BOROUGH COUNCIL,http://statistics.data.gov.uk/id/local-authority/00EU,Neighbourhood & Community Services,NCS,Care Purchase - Learning Disability,54450,Supporting People - External,441250,03-Oct-12,1900100298,732,Care Uk Care Solutions Ltd,102263
WARRINGTON BOROUGH COUNCIL,http://statistics.data.gov.uk/id/local-authority/00EU,Neighbourhood & Community Services,NCS,Care Purchase - Learning Disability,54450,CP-Domicil.External,440950,03-Oct-12,1900100299,659,Care Uk Care Solutions Ltd,102263
WARRINGTON BOROUGH COUNCIL,http://statistics.data.gov.uk/id/local-authority/00EU,Neighbourhood & Community Services,NCS,Care Purchase - Learning Disability,54450,CP-Domicil.External,440950,19-Oct-12,1900101950,"1,490.00",Care Uk Care Solutions Ltd,102263
WARRINGTON BOROUGH COUNCIL,http://statistics.data.gov.uk/id/local-authority/00EU,Neighbourhood & Community Services,NCS,Care Purchase - Learning Disability,54450,Supporting People - External,441250,19-Oct-12,1900101950,708,Care Uk Care Solutions Ltd,102263
WARRINGTON BOROUGH COUNCIL,http://statistics.data.gov.uk/id/local-authority/00EU,Neighbourhood & Community Services,NCS,Care Purchase - Learning Disability,54450,Supporting People - External,441250,19-Oct-12,1900101963,708,Care Uk Care Solutions Ltd,102263
WARRINGTON BOROUGH COUNCIL,http://statistics.data.gov.uk/id/local-authority/00EU,Environment & Regeneration,ER0,New Town House,43119,Trade Refuse Charges,440700,26-Oct-12,1900102499,792,B & M Waste,102293
WARRINGTON BOROUGH COUNCIL,http://statistics.data.gov.uk/id/local-authority/00EU,Neighbourhood & Community Services,NCS,Care Purchase - OP & OT South,54480,CP-Nursing Care-External,441200,03-Oct-12,1900100311,"1,532.00",Flightcare Limited,102299
WARRINGTON BOROUGH COUNCIL,http://statistics.data.gov.uk/id/local-authority/00EU,Neighbourhood & Community Services,NCS,Care Purchase - Learning Disability,54450,Direct Payments,552000,16-Oct-12,1900101465,"1,103.00",Redacted Personal Data,102348
WARRINGTON BOROUGH COUNCIL,http://statistics.data.gov.uk/id/local-authority/00EU,Environment & Regeneration,ER0,Estates & Valuation,43520,Agency Supply - GF,180000,02-Oct-12,1900100252,912,Nuttallroberts Ltd,102450
WARRINGTON BOROUGH COUNCIL,http://statistics.data.gov.uk/id/local-authority/00EU,Environment & Regeneration,ER0,Estates & Valuation,43520,Agency Supply - GF,180000,10-Oct-12,1900100762,"1,094.00",Nuttallroberts Ltd,102450
WARRINGTON BOROUGH COUNCIL,http://statistics.data.gov.uk/id/local-authority/00EU,Neighbourhood & Community Services,NCS,Care Purchase - Learning Disability,54450,CP-LongStayExternal,441150,29-Oct-12,1900102577,"3,508.00",Potens Ltd TA Heath Lodge,102481
WARRINGTON BOROUGH COUNCIL,http://statistics.data.gov.uk/id/local-authority/00EU,Assistant Chief Executive,ACO,Assistant Chief Executive Other,84003,Legal Costs Incurred,440200,24-Oct-12,1900102265,"4,000.00",Cobbetts Llp,102496
WARRINGTON BOROUGH COUNCIL,http://statistics.data.gov.uk/id/local-authority/00EU,Assistant Chief Executive,ACO,Assistant Chief Executive Other,84003,Legal Costs Incurred,440200,30-Oct-12,1900102663,"1,250.00",Cobbetts Llp,102496
WARRINGTON BOROUGH COUNCIL,http://statistics.data.gov.uk/id/local-authority/00EU,Environment & Regeneration,ER0,Other Commercial Prop.,43560,Gen. Personal Needs,490850,31-Oct-12,1900102685,"1,196.00",Cobbetts Llp,102496
WARRINGTON BOROUGH COUNCIL,http://statistics.data.gov.uk/id/local-authority/00EU,Neighbourhood & Community Services,NCS,Care Purchase - Learning Disability,54450,CP-Nursing Care-External,441200,05-Oct-12,1900100535,"3,588.00",Stocks Hall Care Homes Ltd,102512
WARRINGTON BOROUGH COUNCIL,http://statistics.data.gov.uk/id/local-authority/00EU,Neighbourhood & Community Services,NCS,Care Purchase - Learning Disability,54450,CP-Nursing Care-External,441200,30-Oct-12,1900102657,"3,588.00",Stocks Hall Care Homes Ltd,102512
WARRINGTON BOROUGH COUNCIL,http://statistics.data.gov.uk/id/local-authority/00EU,Neighbourhood & Community Services,NCS,Care Purchase Budget,54490,CP ExternalOther Exp,440800,10-Oct-12,1900100808,"6,742.00",Leyton Healthcare,102517
WARRINGTON BOROUGH COUNCIL,http://statistics.data.gov.uk/id/local-authority/00EU,Neighbourhood & Community Services,NCS,Care Purchase Budget,54490,CP ExternalOther Exp,440800,17-Oct-12,1900101230,"167,000.00",Leyton Healthcare,102517
WARRINGTON BOROUGH COUNCIL,http://statistics.data.gov.uk/id/local-authority/00EU,Neighbourhood & Community Services,NCS,Care Purchase - OP & OT West,54470,CP-LongStayExternal,441150,15-Oct-12,1900101002,"1,904.00",Orchard Care Homes,102524
WARRINGTON BOROUGH COUNCIL,http://statistics.data.gov.uk/id/local-authority/00EU,Neighbourhood & Community Services,NCS,Care Purchase - Learning Disability,54450,Direct Payments,552000,16-Oct-12,1900101466,600,Redacted Personal Data,102547
WARRINGTON BOROUGH COUNCIL,http://statistics.data.gov.uk/id/local-authority/00EU,Environment & Regeneration,ENO,Housing Projects,82008,Disabled Persons Grant 1996,554000,04-Oct-12,1900100452,"3,472.00",R Hough & Co,102596
WARRINGTON BOROUGH COUNCIL,http://statistics.data.gov.uk/id/local-authority/00EU,Neighbourhood & Community Services,NCS,Care Purchase - Learning Disability,54450,Direct Payments,552000,16-Oct-12,1900101471,849,Redacted Personal Data,102667
WARRINGTON BOROUGH COUNCIL,http://statistics.data.gov.uk/id/local-authority/00EU,Neighbourhood & Community Services,NCS,Care Purchase - Learning Disability,54450,Direct Payments,552000,16-Oct-12,1900101472,"1,570.00",Redacted Personal Data,102688
WARRINGTON BOROUGH COUNCIL,http://statistics.data.gov.uk/id/local-authority/00EU,Neighbourhood & Community Services,NCS,Care Purchase - Learning Disability,54450,Direct Payments,552000,16-Oct-12,1900101473,"1,273.00",Redacted Personal Data,102710
WARRINGTON BOROUGH COUNCIL,http://statistics.data.gov.uk/id/local-authority/00EU,Neighbourhood & Community Services,NCS,Care Purchase - Learning Disability,54450,Direct Payments,552000,16-Oct-12,1900101474,849,Redacted Personal Data,102718
WARRINGTON BOROUGH COUNCIL,http://statistics.data.gov.uk/id/local-authority/00EU,Neighbourhood & Community Services,NCS,Care Purchase - Learning Disability,54450,Direct Payments,552000,16-Oct-12,1900101475,900,Redacted Personal Data,102759
WARRINGTON BOROUGH COUNCIL,http://statistics.data.gov.uk/id/local-authority/00EU,Neighbourhood & Community Services,NCS,Care Purchase Budget,54490,CP - Cont Care - External,441350,23-Oct-12,1900102157,"20,100.00",Community Care Matters Limited,102791
WARRINGTON BOROUGH COUNCIL,http://statistics.data.gov.uk/id/local-authority/00EU,Neighbourhood & Community Services,NCS,Care Purchase - Learning Disability,54450,CP-LongStayExternal,441150,23-Oct-12,1900102157,"8,464.00",Community Care Matters Limited,102791
WARRINGTON BOROUGH COUNCIL,http://statistics.data.gov.uk/id/local-authority/00EU,Neighbourhood & Community Services,NCS,Care Purchase Budget,54490,CP - Cont Care - External,441350,23-Oct-12,1900102164,"19,408.00",Community Care Matters Limited,102791
WARRINGTON BOROUGH COUNCIL,http://statistics.data.gov.uk/id/local-authority/00EU,Neighbourhood & Community Services,NCS,Care Purchase - Learning Disability,54450,CP-Nursing Care-External,441200,23-Oct-12,1900102164,"8,212.00",Community Care Matters Limited,102791
WARRINGTON BOROUGH COUNCIL,http://statistics.data.gov.uk/id/local-authority/00EU,Neighbourhood & Community Services,NCS,Care Purchase - Learning Disability,54450,CP ExternalOther Exp,440800,22-Oct-12,1900102041,957,Your Housing Group,102933
WARRINGTON BOROUGH COUNCIL,http://statistics.data.gov.uk/id/local-authority/00EU,Neighbourhood & Community Services,NCS,Care Purchase - Learning Disability,54450,CP ExternalOther Exp,440800,22-Oct-12,1900102042,972,Your Housing Group,102933
WARRINGTON BOROUGH COUNCIL,http://statistics.data.gov.uk/id/local-authority/00EU,Children & Young People,CHL,DSG Early Years PVI Settings,32417,Private & Voluntary 3 Year Olds,470100,23-Oct-12,1900102395,"8,983.00",Kids Planet Day Nursery Lymm,102992
WARRINGTON BOROUGH COUNCIL,http://statistics.data.gov.uk/id/local-authority/00EU,Neighbourhood & Community Services,NCS,Care Purchase - OP & OT South,54480,Direct Payments,552000,16-Oct-12,1900101478,627,Redacted Personal Data,103028
WARRINGTON BOROUGH COUNCIL,http://statistics.data.gov.uk/id/local-authority/00EU,Neighbourhood & Community Services,NCS,Care Purchase - OP & OT South,54480,CP-LongStayExternal,441150,03-Oct-12,1900100312,"5,846.00",Ashley House Residential Home,103045
WARRINGTON BOROUGH COUNCIL,http://statistics.data.gov.uk/id/local-authority/00EU,Children & Young People,CHL,DSG Early Years PVI Settings,32417,Private & Voluntary 3 Year Olds,470100,23-Oct-12,1900102421,"8,817.00",St Monica Catholic Pre School,103081
WARRINGTON BOROUGH COUNCIL,http://statistics.data.gov.uk/id/local-authority/00EU,Neighbourhood & Community Services,NCS,Care Purchase - Learning Disability,54450,CP-Domicil.External,440950,17-Oct-12,1900101216,"1,156.00",Safehands Network Ltd,103226
WARRINGTON BOROUGH COUNCIL,http://statistics.data.gov.uk/id/local-authority/00EU,Neighbourhood & Community Services,NCS,Care Purchase - OP & OT West,54470,CP-Domicil.External,440950,29-Oct-12,1900102582,"12,136.00",Safehands Network Ltd,103226
WARRINGTON BOROUGH COUNCIL,http://statistics.data.gov.uk/id/local-authority/00EU,Neighbourhood & Community Services,NCS,Care Purchase -OP & OT East,54430,CP-Domicil.External,440950,29-Oct-12,1900102582,"11,505.00",Safehands Network Ltd,103226
WARRINGTON BOROUGH COUNCIL,http://statistics.data.gov.uk/id/local-authority/00EU,Neighbourhood & Community Services,NCS,Care Purchase - OP & OT South,54480,CP-Domicil.External,440950,29-Oct-12,1900102582,"10,703.00",Safehands Network Ltd,103226
WARRINGTON BOROUGH COUNCIL,http://statistics.data.gov.uk/id/local-authority/00EU,Neighbourhood & Community Services,NCS,Care Purchase - OP & OT Central,54420,CP-Domicil.External,440950,29-Oct-12,1900102582,"5,873.00",Safehands Network Ltd,103226
WARRINGTON BOROUGH COUNCIL,http://statistics.data.gov.uk/id/local-authority/00EU,Neighbourhood & Community Services,NCS,Care Purchase - PD,54440,CP-Domicil.External,440950,29-Oct-12,1900102582,"1,582.00",Safehands Network Ltd,103226
WARRINGTON BOROUGH COUNCIL,http://statistics.data.gov.uk/id/local-authority/00EU,Neighbourhood & Community Services,NCS,Carers Co-ordinator,53240,CP - Cont Care - External,441350,29-Oct-12,1900102582,727,Safehands Network Ltd,103226
WARRINGTON BOROUGH COUNCIL,http://statistics.data.gov.uk/id/local-authority/00EU,Neighbourhood & Community Services,NCS,Care Purchase Budget,54490,CP - Cont Care - External,441350,19-Oct-12,1900101995,"2,178.00",Home Instead Senior Care,103236
WARRINGTON BOROUGH COUNCIL,http://statistics.data.gov.uk/id/local-authority/00EU,Environment & Regeneration,ER0,Housing Strategy,43620,Misc (Contingency),551250,02-Oct-12,1900100272,"1,330.00",Barrier Energy Ltd,103239
WARRINGTON BOROUGH COUNCIL,http://statistics.data.gov.uk/id/local-authority/00EU,Environment & Regeneration,ENP,Environment & Regeneration,82000,Building Work,200850,04-Oct-12,1900100446,"16,844.00",Barrier Energy Ltd,103239
WARRINGTON BOROUGH COUNCIL,http://statistics.data.gov.uk/id/local-authority/00EU,Neighbourhood & Community Services,NCS,Asst Director - Int Hlth & Scl Cr Comm,53000,Car Leasing Charges,350000,04-Oct-12,1900100422,"2,254.00",Arnold Clark Finance Ltd,103263
WARRINGTON BOROUGH COUNCIL,http://statistics.data.gov.uk/id/local-authority/00EU,Children & Young People,CHL,Adoption Team,31107,Car Leasing Charges,350000,04-Oct-12,1900100423,"4,092.00",Arnold Clark Finance Ltd,103263
WARRINGTON BOROUGH COUNCIL,http://statistics.data.gov.uk/id/local-authority/00EU,Children & Young People,CHL,Longfield Road,31311,Car Leasing Charges,350000,18-Oct-12,1900101325,510,Arnold Clark Finance Ltd,103263
WARRINGTON BOROUGH COUNCIL,http://statistics.data.gov.uk/id/local-authority/00EU,Environment & Regeneration,ER1,Head of Service - Env Management,41210,Car Leasing Charges,350000,25-Oct-12,1900102341,"2,641.00",Arnold Clark Finance Ltd,103263
WARRINGTON BOROUGH COUNCIL,http://statistics.data.gov.uk/id/local-authority/00EU,Neighbourhood & Community Services,NCS,OP & OT - West,54350,Car Leasing Charges,350000,25-Oct-12,1900102344,"2,859.00",Arnold Clark Finance Ltd,103263
WARRINGTON BOROUGH COUNCIL,http://statistics.data.gov.uk/id/local-authority/00EU,Neighbourhood & Community Services,NCS,Alert,54130,Car Leasing Charges,350000,25-Oct-12,1900102346,"2,977.00",Arnold Clark Finance Ltd,103263
WARRINGTON BOROUGH COUNCIL,http://statistics.data.gov.uk/id/local-authority/00EU,Environment & Regeneration,ER0,Highways Cont. Serv.,44220,Car Leasing Charges,350000,26-Oct-12,1900102484,"1,133.00",Arnold Clark Finance Ltd,103263
WARRINGTON BOROUGH COUNCIL,http://statistics.data.gov.uk/id/local-authority/00EU,Neighbourhood & Community Services,NCS,Neighbourhood Enga,51305,Car Leasing Charges,350000,25-Oct-12,1900102332,"2,353.00",Lex Autolease Ltd,103319
WARRINGTON BOROUGH COUNCIL,http://statistics.data.gov.uk/id/local-authority/00EU,Neighbourhood & Community Services,NCS,Neighbourhood Enga,51305,Car Leasing Charges,350000,25-Oct-12,1900102332,726,Lex Autolease Ltd,103319
WARRINGTON BOROUGH COUNCIL,http://statistics.data.gov.uk/id/local-authority/00EU,Neighbourhood & Community Services,NCS,Care Purchase - PD,54440,Direct Payments,552000,16-Oct-12,1900101486,935,Redacted Personal Data,103320
WARRINGTON BOROUGH COUNCIL,http://statistics.data.gov.uk/id/local-authority/00EU,People & Improvement,PIP,People & Improvement,85000,Actuarial Costs,190500,17-Oct-12,1900101321,"156,178.00",Cheshire West And Chester,103357
WARRINGTON BOROUGH COUNCIL,http://statistics.data.gov.uk/id/local-authority/00EU,Environment & Regeneration,ER0,ICT & Business Improvement,23020,ICT Comms - Line Usage,450300,25-Oct-12,1900102303,"2,844.00",Cheshire West And Chester,103357
WARRINGTON BOROUGH COUNCIL,http://statistics.data.gov.uk/id/local-authority/00EU,Neighbourhood & Community Services,NCS,Care Purchase - PD,54440,Direct Payments,552000,16-Oct-12,1900101487,"1,740.00",Redacted Personal Data,103372
WARRINGTON BOROUGH COUNCIL,http://statistics.data.gov.uk/id/local-authority/00EU,Neighbourhood & Community Services,NCS,Care Purchase - PD,54440,Direct Payments,552000,16-Oct-12,1900101488,"1,732.00",Redacted Personal Data,103404
WARRINGTON BOROUGH COUNCIL,http://statistics.data.gov.uk/id/local-authority/00EU,Assistant Chief Executive,CEX,Housing Benefit,10340,Legal Costs Incurred,440200,08-Oct-12,1900100592,850,Redacted Personal Data,103456
WARRINGTON BOROUGH COUNCIL,http://statistics.data.gov.uk/id/local-authority/00EU,Neighbourhood & Community Services,NCS,Care Purchase - PD,54440,CP ExternalOther Exp,440800,10-Oct-12,1900100704,"1,000.00",Bed Space,103530
WARRINGTON BOROUGH COUNCIL,http://statistics.data.gov.uk/id/local-authority/00EU,Neighbourhood & Community Services,NCS,Care Purchase - PD,54440,Direct Payments,552000,16-Oct-12,1900101496,"1,109.00",Redacted Personal Data,103587
WARRINGTON BOROUGH COUNCIL,http://statistics.data.gov.uk/id/local-authority/00EU,Neighbourhood & Community Services,NCS,Care Purchase - PD,54440,Direct Payments,552000,16-Oct-12,1900101497,952,Redacted Personal Data,103593
WARRINGTON BOROUGH COUNCIL,http://statistics.data.gov.uk/id/local-authority/00EU,Neighbourhood & Community Services,NCS,Care Purchase - OP & OT South,54480,CP-LongStayExternal,441150,17-Oct-12,1900101183,"1,894.00",Lady Elsie Finney House Lancashire,103595
WARRINGTON BOROUGH COUNCIL,http://statistics.data.gov.uk/id/local-authority/00EU,Children & Young People,CHL,EIG Funding - Quality Support Grants,31604,Other Advertising & Publicity,450050,16-Oct-12,1900101087,518,Redacted Personal Data,103600
WARRINGTON BOROUGH COUNCIL,http://statistics.data.gov.uk/id/local-authority/00EU,Neighbourhood & Community Services,NCS,Care Purchase - Learning Disability,54450,Direct Payments,552000,16-Oct-12,1900101498,"1,167.00",Redacted Personal Data,103611
WARRINGTON BOROUGH COUNCIL,http://statistics.data.gov.uk/id/local-authority/00EU,Neighbourhood & Community Services,NCS,Care Purchase - PD,54440,Direct Payments,552000,16-Oct-12,1900101499,"1,594.00",Redacted Personal Data,103613
WARRINGTON BOROUGH COUNCIL,http://statistics.data.gov.uk/id/local-authority/00EU,Neighbourhood & Community Services,NCS,Care Purchase - Learning Disability,54450,Direct Payments,552000,16-Oct-12,1900101500,"1,080.00",Redacted Personal Data,103614
WARRINGTON BOROUGH COUNCIL,http://statistics.data.gov.uk/id/local-authority/00EU,Environment & Regeneration,ENP,Environment & Regeneration,82000,Consult.& Prof. Serv,440000,05-Oct-12,1900100544,"1,200.00",Sda Consulting Llp,103628
WARRINGTON BOROUGH COUNCIL,http://statistics.data.gov.uk/id/local-authority/00EU,Children & Young People,CHL,CiC Team 2,31101,Grants Allowance,550700,02-Oct-12,1900100236,667,Redacted Personal Data,103629
WARRINGTON BOROUGH COUNCIL,http://statistics.data.gov.uk/id/local-authority/00EU,Neighbourhood & Community Services,NCS,Care Purchase - Learning Disability,54450,Direct Payments,552000,16-Oct-12,1900101502,964,Redacted Personal Data,103660
WARRINGTON BOROUGH COUNCIL,http://statistics.data.gov.uk/id/local-authority/00EU,Neighbourhood & Community Services,NCS,Care Purchase - PD,54440,Direct Payments,552000,16-Oct-12,1900101503,"1,105.00",Redacted Personal Data,103668
WARRINGTON BOROUGH COUNCIL,http://statistics.data.gov.uk/id/local-authority/00EU,Neighbourhood & Community Services,NCS,Care Purchase - PD,54440,Direct Payments,552000,16-Oct-12,1900101504,896,Redacted Personal Data,103674
WARRINGTON BOROUGH COUNCIL,http://statistics.data.gov.uk/id/local-authority/00EU,Neighbourhood & Community Services,NCS,Care Purchase - Learning Disability,54450,CP-LongStayExternal,441150,24-Oct-12,1900102212,"10,388.00",Bank Hall Farm,103693
WARRINGTON BOROUGH COUNCIL,http://statistics.data.gov.uk/id/local-authority/00EU,Neighbourhood & Community Services,NCS,Care Purchase - ABI,54260,CP-Nursing Care-External,441200,24-Oct-12,1900102213,"4,140.00",Bank Hall Farm,103693
WARRINGTON BOROUGH COUNCIL,http://statistics.data.gov.uk/id/local-authority/00EU,Neighbourhood & Community Services,NCS,Care Purchase - PD,54440,Direct Payments,552000,16-Oct-12,1900101505,"1,947.00",Redacted Personal Data,103696
WARRINGTON BOROUGH COUNCIL,http://statistics.data.gov.uk/id/local-authority/00EU,Neighbourhood & Community Services,NCS,Care Purchase - Learning Disability,54450,Direct Payments,552000,16-Oct-12,1900101506,"1,122.00",Redacted Personal Data,103697
WARRINGTON BOROUGH COUNCIL,http://statistics.data.gov.uk/id/local-authority/00EU,Neighbourhood & Community Services,NCS,Care Purchase - OPMH,54220,Direct Payments,552000,16-Oct-12,1900101508,881,Redacted Personal Data,103723
WARRINGTON BOROUGH COUNCIL,http://statistics.data.gov.uk/id/local-authority/00EU,Neighbourhood & Community Services,NCS,Care Purchase - PD,54440,Direct Payments,552000,16-Oct-12,1900101511,"2,443.00",Redacted Personal Data,103730
WARRINGTON BOROUGH COUNCIL,http://statistics.data.gov.uk/id/local-authority/00EU,Neighbourhood & Community Services,NCS,Care Purchase - Learning Disability,54450,Direct Payments,552000,16-Oct-12,1900101515,"9,177.00",Redacted Personal Data,103771
WARRINGTON BOROUGH COUNCIL,http://statistics.data.gov.uk/id/local-authority/00EU,Neighbourhood & Community Services,NCS,Care Purchase - PD,54440,Direct Payments,552000,16-Oct-12,1900101516,"1,061.00",Redacted Personal Data,103794
WARRINGTON BOROUGH COUNCIL,http://statistics.data.gov.uk/id/local-authority/00EU,Children & Young People,CHL,Child Disability,32212,Direct Payments,552000,16-Oct-12,1900101517,502,Redacted Personal Data,103820
WARRINGTON BOROUGH COUNCIL,http://statistics.data.gov.uk/id/local-authority/00EU,Neighbourhood & Community Services,NCS,Care Purchase - Learning Disability,54450,CP-LongStayExternal,441150,29-Oct-12,1900102558,"3,477.00",Manor Care Centre,103831
WARRINGTON BOROUGH COUNCIL,http://statistics.data.gov.uk/id/local-authority/00EU,Neighbourhood & Community Services,NCS,Care Purchase - Learning Disability,54450,Direct Payments,552000,16-Oct-12,1900101519,672,Redacted Personal Data,103832
WARRINGTON BOROUGH COUNCIL,http://statistics.data.gov.uk/id/local-authority/00EU,Neighbourhood & Community Services,NCS,Care Purchase - PD,54440,Direct Payments,552000,16-Oct-12,1900101520,800,Redacted Personal Data,103871
WARRINGTON BOROUGH COUNCIL,http://statistics.data.gov.uk/id/local-authority/00EU,Neighbourhood & Community Services,NEO,Neighbourhood & Community Other,83002,Works Contract Paymt,442500,12-Oct-12,1900100966,"1,590.00",Hcc Promotions Ltd,103915
WARRINGTON BOROUGH COUNCIL,http://statistics.data.gov.uk/id/local-authority/00EU,Children & Young People,CYP,Primary,81001,Furniture & Fittings,400150,31-Oct-12,1900102711,512,Office Furniture Online,103928
WARRINGTON BOROUGH COUNCIL,http://statistics.data.gov.uk/id/local-authority/00EU,Neighbourhood & Community Services,NCS,Care Purchase - OP & OT South,54480,CP-Nursing Care-External,441200,04-Oct-12,1900100450,"2,064.00",St Monica Trust,104021
WARRINGTON BOROUGH COUNCIL,http://statistics.data.gov.uk/id/local-authority/00EU,Neighbourhood & Community Services,NCS,Care Purchase -OP & OT East,54430,CP-Domicil.External,440950,03-Oct-12,1900100339,"14,330.00",Bluebird Care Warrington,104094
WARRINGTON BOROUGH COUNCIL,http://statistics.data.gov.uk/id/local-authority/00EU,Neighbourhood & Community Services,NCS,Care Purchase - PD,54440,CP-Domicil.External,440950,03-Oct-12,1900100339,"12,802.00",Bluebird Care Warrington,104094
WARRINGTON BOROUGH COUNCIL,http://statistics.data.gov.uk/id/local-authority/00EU,Neighbourhood & Community Services,NCS,Care Purchase - OP & OT South,54480,CP-Domicil.External,440950,03-Oct-12,1900100339,"11,540.00",Bluebird Care Warrington,104094
WARRINGTON BOROUGH COUNCIL,http://statistics.data.gov.uk/id/local-authority/00EU,Neighbourhood & Community Services,NCS,Care Purchase - OP & OT West,54470,CP-Domicil.External,440950,03-Oct-12,1900100339,"8,736.00",Bluebird Care Warrington,104094
WARRINGTON BOROUGH COUNCIL,http://statistics.data.gov.uk/id/local-authority/00EU,Neighbourhood & Community Services,NCS,Care Purchase - OP & OT Central,54420,CP-Domicil.External,440950,03-Oct-12,1900100339,"4,322.00",Bluebird Care Warrington,104094
WARRINGTON BOROUGH COUNCIL,http://statistics.data.gov.uk/id/local-authority/00EU,Neighbourhood & Community Services,NCS,Care Purchase Budget,54490,CP - Cont Care - External,441350,03-Oct-12,1900100339,"1,803.00",Bluebird Care Warrington,104094
WARRINGTON BOROUGH COUNCIL,http://statistics.data.gov.uk/id/local-authority/00EU,Neighbourhood & Community Services,NCS,Care Purchase - Hospital Discharge Team,54280,CP-Domicil.External,440950,03-Oct-12,1900100339,"1,230.00",Bluebird Care Warrington,104094
WARRINGTON BOROUGH COUNCIL,http://statistics.data.gov.uk/id/local-authority/00EU,Neighbourhood & Community Services,NCS,Care Purchase - Mental Health Team 2,54240,CP-Domicil.External,440950,03-Oct-12,1900100339,786,Bluebird Care Warrington,104094
WARRINGTON BOROUGH COUNCIL,http://statistics.data.gov.uk/id/local-authority/00EU,Neighbourhood & Community Services,NCS,Care Purchase - OPMH,54220,CP-Domicil.External,440950,03-Oct-12,1900100339,630,Bluebird Care Warrington,104094
WARRINGTON BOROUGH COUNCIL,http://statistics.data.gov.uk/id/local-authority/00EU,Neighbourhood & Community Services,NCS,Care Purchase - Mental Health Team 1,54230,CP-Domicil.External,440950,03-Oct-12,1900100339,629,Bluebird Care Warrington,104094
WARRINGTON BOROUGH COUNCIL,http://statistics.data.gov.uk/id/local-authority/00EU,Neighbourhood & Community Services,NCS,Care Purchase - OP & OT Telecare,54460,CP-Domicil.External,440950,03-Oct-12,1900100339,538,Bluebird Care Warrington,104094
WARRINGTON BOROUGH COUNCIL,http://statistics.data.gov.uk/id/local-authority/00EU,Neighbourhood & Community Services,NCS,Care Purchase - PD,54440,Direct Payments,552000,16-Oct-12,1900101529,"1,179.00",Redacted Personal Data,104205
WARRINGTON BOROUGH COUNCIL,http://statistics.data.gov.uk/id/local-authority/00EU,Neighbourhood & Community Services,NCS,DAT Pooled Budget,53860,Drug Action,443600,22-Oct-12,1900102071,622,Hall And Stevens Pharmacy,104278
WARRINGTON BOROUGH COUNCIL,http://statistics.data.gov.uk/id/local-authority/00EU,Neighbourhood & Community Services,NCS,Care Purchase - OP & OT Central,54420,CP-Nursing Care-External,441200,23-Oct-12,1900102126,"2,208.00",HC1 Ltd County Homes,104325
WARRINGTON BOROUGH COUNCIL,http://statistics.data.gov.uk/id/local-authority/00EU,Neighbourhood & Community Services,NCS,Care Purchase - OP & OT Central,54420,CP-LongStayExternal,441150,23-Oct-12,1900102131,"2,208.00",HC1 Ltd County Homes,104325
WARRINGTON BOROUGH COUNCIL,http://statistics.data.gov.uk/id/local-authority/00EU,Neighbourhood & Community Services,NCS,Care Purchase - PD,54440,Direct Payments,552000,16-Oct-12,1900101531,849,Redacted Personal Data,104327
WARRINGTON BOROUGH COUNCIL,http://statistics.data.gov.uk/id/local-authority/00EU,Children & Young People,CHL,Fostering Team,31105,Training,190150,25-Oct-12,1900102301,745,Action Training Services,104449
WARRINGTON BOROUGH COUNCIL,http://statistics.data.gov.uk/id/local-authority/00EU,Assistant Chief Executive,CEX,Coroners Service,11100,Post Mortem Fees-Rep,440250,17-Oct-12,1900101282,"2,927.00",Dr M S Al-Jafari,104464
WARRINGTON BOROUGH COUNCIL,http://statistics.data.gov.uk/id/local-authority/00EU,Neighbourhood & Community Services,NCS,Care Purchase Budget,54490,CP ExternalOther Exp,440800,03-Oct-12,1900100395,"4,672.00",Arlington House,104491
WARRINGTON BOROUGH COUNCIL,http://statistics.data.gov.uk/id/local-authority/00EU,Neighbourhood & Community Services,NCS,Care Purchase Budget,54490,CP ExternalOther Exp,440800,17-Oct-12,1900101218,"22,000.00",Arlington House,104491
WARRINGTON BOROUGH COUNCIL,http://statistics.data.gov.uk/id/local-authority/00EU,Environment & Regeneration,ENP,Environment & Regeneration,82000,Stationery Curriculum,430200,09-Oct-12,1900100693,"2,458.00",Asco Educational Supplies Ltd,104495
WARRINGTON BOROUGH COUNCIL,http://statistics.data.gov.uk/id/local-authority/00EU,Neighbourhood & Community Services,NCS,Care Purchase - Learning Disability,54450,CP-Day Care-External,441100,03-Oct-12,1900100274,"3,468.00",Autism Initiatives,104503
WARRINGTON BOROUGH COUNCIL,http://statistics.data.gov.uk/id/local-authority/00EU,Neighbourhood & Community Services,NCS,Care Purchase - Learning Disability,54450,CP-Domicil.External,440950,10-Oct-12,1900100778,643,Autism Initiatives,104503
WARRINGTON BOROUGH COUNCIL,http://statistics.data.gov.uk/id/local-authority/00EU,Neighbourhood & Community Services,NCS,Care Purchase - Learning Disability,54450,CP-Domicil.External,440950,10-Oct-12,1900100779,"1,074.00",Autism Initiatives,104503
WARRINGTON BOROUGH COUNCIL,http://statistics.data.gov.uk/id/local-authority/00EU,Neighbourhood & Community Services,NCS,Care Purchase - Learning Disability,54450,CP-Day Care-External,441100,19-Oct-12,1900101962,"5,362.00",Autism Initiatives,104503
WARRINGTON BOROUGH COUNCIL,http://statistics.data.gov.uk/id/local-authority/00EU,Neighbourhood & Community Services,NCS,Care Purchase - Learning Disability,54450,CP-Day Care-External,441100,19-Oct-12,1900101964,"5,362.00",Autism Initiatives,104503
WARRINGTON BOROUGH COUNCIL,http://statistics.data.gov.uk/id/local-authority/00EU,Neighbourhood & Community Services,NCS,Care Purchase - Learning Disability,54450,CP-Day Care-External,441100,19-Oct-12,1900101966,"4,259.00",Autism Initiatives,104503
WARRINGTON BOROUGH COUNCIL,http://statistics.data.gov.uk/id/local-authority/00EU,Neighbourhood & Community Services,NCS,Care Purchase - Learning Disability,54450,CP-Day Care-External,441100,19-Oct-12,1900101967,948,Autism Initiatives,104503
WARRINGTON BOROUGH COUNCIL,http://statistics.data.gov.uk/id/local-authority/00EU,Neighbourhood & Community Services,NCS,Care Purchase - Learning Disability,54450,CP-Day Care-External,441100,23-Oct-12,1900102137,"1,081.00",Autism Initiatives,104503
WARRINGTON BOROUGH COUNCIL,http://statistics.data.gov.uk/id/local-authority/00EU,Neighbourhood & Community Services,NCS,Care Purchase - Learning Disability,54450,CP-Domicil.External,440950,23-Oct-12,1900102137,885,Autism Initiatives,104503
WARRINGTON BOROUGH COUNCIL,http://statistics.data.gov.uk/id/local-authority/00EU,Neighbourhood & Community Services,NCS,Care Purchase - Learning Disability,54450,CP-LongStayExternal,441150,23-Oct-12,1900102138,"4,496.00",Autism Initiatives,104503
WARRINGTON BOROUGH COUNCIL,http://statistics.data.gov.uk/id/local-authority/00EU,Neighbourhood & Community Services,NCS,Care Purchase - Learning Disability,54450,CP-Domicil.External,440950,24-Oct-12,1900102214,"6,926.00",Autism Initiatives,104503
WARRINGTON BOROUGH COUNCIL,http://statistics.data.gov.uk/id/local-authority/00EU,Neighbourhood & Community Services,NCS,Care Purchase - Learning Disability,54450,CP-Day Care-External,441100,29-Oct-12,1900102515,"3,651.00",Autism Initiatives,104503
WARRINGTON BOROUGH COUNCIL,http://statistics.data.gov.uk/id/local-authority/00EU,Children & Young People,CHL,Early Intervention Grant Youth,31900,Paymt Of Prof.Subs.,490150,24-Oct-12,1900102237,"1,265.00",Brakes,104536
WARRINGTON BOROUGH COUNCIL,http://statistics.data.gov.uk/id/local-authority/00EU,Children & Young People,CHL,Early Intervention Grant Youth,31900,Paymt Of Prof.Subs.,490150,24-Oct-12,1900102237,642,Brakes,104536
WARRINGTON BOROUGH COUNCIL,http://statistics.data.gov.uk/id/local-authority/00EU,Environment & Regeneration,ER0,Urban Traffic Management Control,44370,Signal Management,531600,24-Oct-12,1900102203,"10,514.00",British Telecommunications Plc,104543
WARRINGTON BOROUGH COUNCIL,http://statistics.data.gov.uk/id/local-authority/00EU,Neighbourhood & Community Services,NCS,Care Purchase - OP & OT Central,54420,CP-LongStayExternal,441150,24-Oct-12,1900102228,"1,764.00",Bupa Care Homes - Broadoak Manor,104546
WARRINGTON BOROUGH COUNCIL,http://statistics.data.gov.uk/id/local-authority/00EU,Neighbourhood & Community Services,NCS,Care Purchase - OP & OT South,54480,CP-LongStayExternal,441150,10-Oct-12,1900100709,"2,080.00",Barchester Healthcare Ltd,104548
WARRINGTON BOROUGH COUNCIL,http://statistics.data.gov.uk/id/local-authority/00EU,Neighbourhood & Community Services,NCS,Care Purchase - OP & OT South,54480,CP-LongStayExternal,441150,10-Oct-12,1900100711,"1,540.00",Barchester Healthcare Ltd,104548
WARRINGTON BOROUGH COUNCIL,http://statistics.data.gov.uk/id/local-authority/00EU,Neighbourhood & Community Services,NCS,Care Purchase - Mental Health Team 1,54230,CP-LongStayExternal,441150,10-Oct-12,1900100712,"1,540.00",Barchester Healthcare Ltd,104548
WARRINGTON BOROUGH COUNCIL,http://statistics.data.gov.uk/id/local-authority/00EU,Neighbourhood & Community Services,NCS,Care Purchase - OP & OT South,54480,CP-LongStayExternal,441150,10-Oct-12,1900100713,"1,540.00",Barchester Healthcare Ltd,104548
WARRINGTON BOROUGH COUNCIL,http://statistics.data.gov.uk/id/local-authority/00EU,Neighbourhood & Community Services,NCS,Care Purchase - OP & OT South,54480,CP-LongStayExternal,441150,10-Oct-12,1900100714,"1,540.00",Barchester Healthcare Ltd,104548
WARRINGTON BOROUGH COUNCIL,http://statistics.data.gov.uk/id/local-authority/00EU,Children & Young People,CHL,EIG Funding - Westy Childrens Centre,31541,Servicing Contracts,200150,04-Oct-12,1900100489,575,Cannon Hygiene Ltd,104565
WARRINGTON BOROUGH COUNCIL,http://statistics.data.gov.uk/id/local-authority/00EU,Neighbourhood & Community Services,NCS,Care Purchase - Learning Disability,54450,CP-Domicil.External,440950,24-Oct-12,1900102278,"6,926.00",Care First Health Care Ltd - Bedfor,104569
WARRINGTON BOROUGH COUNCIL,http://statistics.data.gov.uk/id/local-authority/00EU,Neighbourhood & Community Services,NCS,Care Purchase Budget,54490,CP ExternalOther Exp,440800,04-Oct-12,1900100425,"10,194.00",Bupa Care Homes,104572
WARRINGTON BOROUGH COUNCIL,http://statistics.data.gov.uk/id/local-authority/00EU,Neighbourhood & Community Services,NCS,Care Purchase Budget,54490,CP ExternalOther Exp,440800,17-Oct-12,1900101219,"188,000.00",Bupa Care Homes,104572
WARRINGTON BOROUGH COUNCIL,http://statistics.data.gov.uk/id/local-authority/00EU,Children & Young People,CHL,Child Disability,32212,CP-Domicil.External,440950,16-Oct-12,1900101056,"2,083.00",Carewatch North Cheshire,104573
WARRINGTON BOROUGH COUNCIL,http://statistics.data.gov.uk/id/local-authority/00EU,Children & Young People,CHL,Child Disability,32212,CP-Domicil.External,440950,16-Oct-12,1900101065,"2,000.00",Carewatch North Cheshire,104573
WARRINGTON BOROUGH COUNCIL,http://statistics.data.gov.uk/id/local-authority/00EU,Neighbourhood & Community Services,NCS,Care Purchase - Learning Disability,54450,CP ExternalOther Exp,440800,29-Oct-12,1900102518,955,Carewatch North Cheshire,104573
WARRINGTON BOROUGH COUNCIL,http://statistics.data.gov.uk/id/local-authority/00EU,Neighbourhood & Community Services,NCS,Care Purchase -OP & OT East,54430,CP-Domicil.External,440950,29-Oct-12,1900102520,"8,727.00",Carewatch North Cheshire,104573
WARRINGTON BOROUGH COUNCIL,http://statistics.data.gov.uk/id/local-authority/00EU,Neighbourhood & Community Services,NCS,Care Purchase - Learning Disability,54450,CP-Domicil.External,440950,29-Oct-12,1900102520,"6,696.00",Carewatch North Cheshire,104573
WARRINGTON BOROUGH COUNCIL,http://statistics.data.gov.uk/id/local-authority/00EU,Neighbourhood & Community Services,NCS,Care Purchase - PD,54440,CP-Domicil.External,440950,29-Oct-12,1900102520,"1,691.00",Carewatch North Cheshire,104573
WARRINGTON BOROUGH COUNCIL,http://statistics.data.gov.uk/id/local-authority/00EU,Corporate Financing,COR,General Contingencies,61000,Corporate Initiative,491000,19-Oct-12,1900101919,"3,000.00",University Of Chester,104599
WARRINGTON BOROUGH COUNCIL,http://statistics.data.gov.uk/id/local-authority/00EU,Neighbourhood & Community Services,NCS,Care Purchase - OP & OT West,54470,CP-LongStayExternal,441150,03-Oct-12,1900100318,"1,912.00",Cls Care Services Ltd,104615
WARRINGTON BOROUGH COUNCIL,http://statistics.data.gov.uk/id/local-authority/00EU,Neighbourhood & Community Services,NCS,Care Purchase Budget,54490,CP ExternalOther Exp,440800,17-Oct-12,1900101181,"10,894.00",Cls Care Services Ltd,104615
WARRINGTON BOROUGH COUNCIL,http://statistics.data.gov.uk/id/local-authority/00EU,Neighbourhood & Community Services,NCS,Care Purchase Budget,54490,CP ExternalOther Exp,440800,17-Oct-12,1900101225,"65,000.00",Cls Care Services Ltd,104615
WARRINGTON BOROUGH COUNCIL,http://statistics.data.gov.uk/id/local-authority/00EU,Neighbourhood & Community Services,NCS,Care Purchase - OP & OT West,54470,CP-LongStayExternal,441150,30-Oct-12,1900102643,"1,912.00",Cls Care Services Ltd,104615
WARRINGTON BOROUGH COUNCIL,http://statistics.data.gov.uk/id/local-authority/00EU,Assistant Chief Executive,CEX,Coroners Service,11100,Removal Bodies & Exc,440350,10-Oct-12,1900100832,568,Co-Operative Funeralcare,104637
WARRINGTON BOROUGH COUNCIL,http://statistics.data.gov.uk/id/local-authority/00EU,Neighbourhood & Community Services,NCS,Care Purchase - PD,54440,CP-Day Care-External,441100,24-Oct-12,1900102255,"1,609.00",Cotebrook,104638
WARRINGTON BOROUGH COUNCIL,http://statistics.data.gov.uk/id/local-authority/00EU,Neighbourhood & Community Services,NCS,Care Purchase - PD,54440,CP-LongStayExternal,441150,24-Oct-12,1900102256,"14,239.00",Cotebrook,104638
WARRINGTON BOROUGH COUNCIL,http://statistics.data.gov.uk/id/local-authority/00EU,Neighbourhood & Community Services,NCS,Care Purchase - OP & OT South,54480,CP-LongStayExternal,441150,24-Oct-12,1900102256,"3,928.00",Cotebrook,104638
WARRINGTON BOROUGH COUNCIL,http://statistics.data.gov.uk/id/local-authority/00EU,Neighbourhood & Community Services,NCS,Care Purchase - ABI,54260,CP-LongStayExternal,441150,24-Oct-12,1900102256,"2,764.00",Cotebrook,104638
WARRINGTON BOROUGH COUNCIL,http://statistics.data.gov.uk/id/local-authority/00EU,Neighbourhood & Community Services,NCS,Care Purchase - Learning Disability,54450,CP-LongStayExternal,441150,24-Oct-12,1900102256,912,Cotebrook,104638
WARRINGTON BOROUGH COUNCIL,http://statistics.data.gov.uk/id/local-authority/00EU,Neighbourhood & Community Services,NCS,Care Purchase -OP & OT East,54430,CP-LongStayExternal,441150,24-Oct-12,1900102256,631,Cotebrook,104638
WARRINGTON BOROUGH COUNCIL,http://statistics.data.gov.uk/id/local-authority/00EU,Neighbourhood & Community Services,NCS,Care Purchase Budget,54490,Voids,515150,24-Oct-12,1900102256,561,Cotebrook,104638
WARRINGTON BOROUGH COUNCIL,http://statistics.data.gov.uk/id/local-authority/00EU,Neighbourhood & Community Services,NCS,Care Purchase - OP & OT South,54480,CP-LongStayExternal,441150,24-Oct-12,1900102258,"9,820.00",Cotebrook,104638
WARRINGTON BOROUGH COUNCIL,http://statistics.data.gov.uk/id/local-authority/00EU,Children & Young People,CYP,Special,81003,Contract Works,492550,03-Oct-12,1900100355,"2,608.00",Dart Office Supplies,104651
WARRINGTON BOROUGH COUNCIL,http://statistics.data.gov.uk/id/local-authority/00EU,Neighbourhood & Community Services,NCS,Care Purchase - Learning Disability,54450,CP-Day Care-External,441100,04-Oct-12,1900100453,"2,217.00",Deafness Support Network,104657
WARRINGTON BOROUGH COUNCIL,http://statistics.data.gov.uk/id/local-authority/00EU,Assistant Chief Executive,CEX,CRT Apprenticeships,22470,"Campaigns,  Projects and Events",491950,22-Oct-12,1900102022,560,Deafness Support Network,104657
WARRINGTON BOROUGH COUNCIL,http://statistics.data.gov.uk/id/local-authority/00EU,Neighbourhood & Community Services,NCS,Care Purchase - Learning Disability,54450,CP-Day Care-External,441100,30-Oct-12,1900102646,"2,217.00",Deafness Support Network,104657
WARRINGTON BOROUGH COUNCIL,http://statistics.data.gov.uk/id/local-authority/00EU,Assistant Chief Executive,CEX,Coroners Service,11100,Consult.& Prof. Serv,440000,24-Oct-12,1900102204,"1,551.00",De Vere Daresbury Park,104664
WARRINGTON BOROUGH COUNCIL,http://statistics.data.gov.uk/id/local-authority/00EU,Children & Young People,CHL,Special Schools,33208,Warrington BC Schools Transport,300700,10-Oct-12,1900100719,"1,188.00",Diamond Travel,104665
WARRINGTON BOROUGH COUNCIL,http://statistics.data.gov.uk/id/local-authority/00EU,Environment & Regeneration,ER1,Facilities Management,41422,Grounds Maintenance - External,280000,17-Oct-12,1900101287,"3,170.00",Earth Anchors Ltd,104682
WARRINGTON BOROUGH COUNCIL,http://statistics.data.gov.uk/id/local-authority/00EU,Environment & Regeneration,ENO,Housing Projects,82008,Renewals Assistance,554050,16-Oct-12,1900101075,616,Easymove Removals,104684
WARRINGTON BOROUGH COUNCIL,http://statistics.data.gov.uk/id/local-authority/00EU,Environment & Regeneration,ENO,Housing Projects,82008,Renewals Assistance,554050,31-Oct-12,1900102680,578,Easymove Removals,104684
WARRINGTON BOROUGH COUNCIL,http://statistics.data.gov.uk/id/local-authority/00EU,Children & Young People,CHL,Administration,33006,Agency Supply - GF,180000,26-Oct-12,1900102472,546,Forrest Recruitment,104728
WARRINGTON BOROUGH COUNCIL,http://statistics.data.gov.uk/id/local-authority/00EU,Children & Young People,CHL,Administration,33006,Agency Supply - GF,180000,26-Oct-12,1900102474,546,Forrest Recruitment,104728
WARRINGTON BOROUGH COUNCIL,http://statistics.data.gov.uk/id/local-authority/00EU,Children & Young People,CHL,Administration,33006,Agency Supply - GF,180000,26-Oct-12,1900102476,546,Forrest Recruitment,104728
WARRINGTON BOROUGH COUNCIL,http://statistics.data.gov.uk/id/local-authority/00EU,Environment & Regeneration,ER1,Waste Collection Staffing,41846,Training,190150,17-Oct-12,1900101227,850,Freight Transport Association Ltd,104733
WARRINGTON BOROUGH COUNCIL,http://statistics.data.gov.uk/id/local-authority/00EU,Holding Accounts,HOL,Insurance Fund,91100,Insurance Claims,443400,08-Oct-12,1900100588,"17,707.00",Gallagher Bassett International Ltd,104739
WARRINGTON BOROUGH COUNCIL,http://statistics.data.gov.uk/id/local-authority/00EU,Assistant Chief Executive,CEX,People & Improvement,20000,Veh Maint. Materials,300000,31-Oct-12,1900102702,"34,092.00",Halfords Ltd,104764
WARRINGTON BOROUGH COUNCIL,http://statistics.data.gov.uk/id/local-authority/00EU,Neighbourhood & Community Services,NCS,Care Purchase Budget,54490,CP ExternalOther Exp,440800,10-Oct-12,1900100761,"8,115.00",Ashberry Healthcare Ltd,104776
WARRINGTON BOROUGH COUNCIL,http://statistics.data.gov.uk/id/local-authority/00EU,Neighbourhood & Community Services,NCS,Care Purchase Budget,54490,CP ExternalOther Exp,440800,17-Oct-12,1900101232,"135,000.00",Ashberry Healthcare Ltd,104776
WARRINGTON BOROUGH COUNCIL,http://statistics.data.gov.uk/id/local-authority/00EU,Neighbourhood & Community Services,NCS,Care Purchase Budget,54490,CP ExternalOther Exp,440800,15-Oct-12,1900101042,"6,084.00",Heathside Elderly Persons Home,104777
WARRINGTON BOROUGH COUNCIL,http://statistics.data.gov.uk/id/local-authority/00EU,Neighbourhood & Community Services,NCS,Care Purchase Budget,54490,CP ExternalOther Exp,440800,17-Oct-12,1900101233,"50,000.00",Heathside Elderly Persons Home,104777
WARRINGTON BOROUGH COUNCIL,http://statistics.data.gov.uk/id/local-authority/00EU,Corporate Financing,COR,General Contingencies,61000,Corporate Initiative,491000,19-Oct-12,1900101918,"5,600.00",Hemming Group Ltd,104779
WARRINGTON BOROUGH COUNCIL,http://statistics.data.gov.uk/id/local-authority/00EU,Neighbourhood & Community Services,NCS,Care Purchase - Mental Health Team 1,54230,CP-LongStayExternal,441150,24-Oct-12,1900102231,"1,564.00",Hilton Residential Homes Ltd,104783
WARRINGTON BOROUGH COUNCIL,http://statistics.data.gov.uk/id/local-authority/00EU,Environment & Regeneration,ER0,Markets,43711,Cleaning Materials,400450,15-Oct-12,1900100994,748,Hss Hire Service Group Plc,104800
WARRINGTON BOROUGH COUNCIL,http://statistics.data.gov.uk/id/local-authority/00EU,Neighbourhood & Community Services,NCS,Care Purchase Budget,54490,CP ExternalOther Exp,440800,17-Oct-12,1900101235,"50,000.00",Keate House Residential Home,104849
WARRINGTON BOROUGH COUNCIL,http://statistics.data.gov.uk/id/local-authority/00EU,Assistant Chief Executive,CEX,Coroners Service,11100,Post Mortem Fees-Rep,440250,10-Oct-12,1900100706,"1,524.00",Dr W E Kenyon,104851
WARRINGTON BOROUGH COUNCIL,http://statistics.data.gov.uk/id/local-authority/00EU,Neighbourhood & Community Services,NCS,Care Purchase - PD,54440,CP-LongStayExternal,441150,03-Oct-12,1900100275,"6,895.00",The David Lewis Centre,104879
WARRINGTON BOROUGH COUNCIL,http://statistics.data.gov.uk/id/local-authority/00EU,Neighbourhood & Community Services,NCS,Care Purchase - Learning Disability,54450,CP-LongStayExternal,441150,29-Oct-12,1900102583,"2,466.00",The David Lewis Centre,104879
WARRINGTON BOROUGH COUNCIL,http://statistics.data.gov.uk/id/local-authority/00EU,Neighbourhood & Community Services,NCS,Care Purchase - Learning Disability,54450,CP-LongStayExternal,441150,29-Oct-12,1900102584,"1,124.00",The David Lewis Centre,104879
WARRINGTON BOROUGH COUNCIL,http://statistics.data.gov.uk/id/local-authority/00EU,Corporate Financing,COR,Debt Management Expenses,62080,ICT Comms - Device Rental,450400,17-Oct-12,1900101239,"2,550.00",Logotech Systems,104898
WARRINGTON BOROUGH COUNCIL,http://statistics.data.gov.uk/id/local-authority/00EU,Neighbourhood & Community Services,NCS,Care Purchase - Learning Disability,54450,CP-Day Care-External,441100,04-Oct-12,1900100437,910,Macintyre Care,104907
WARRINGTON BOROUGH COUNCIL,http://statistics.data.gov.uk/id/local-authority/00EU,Neighbourhood & Community Services,NCS,Care Purchase - Learning Disability,54450,CP-Day Care-External,441100,04-Oct-12,1900100440,910,Macintyre Care,104907
WARRINGTON BOROUGH COUNCIL,http://statistics.data.gov.uk/id/local-authority/00EU,Neighbourhood & Community Services,NCS,Care Purchase - Learning Disability,54450,CP-Domicil.External,440950,10-Oct-12,1900100790,"14,209.00",Macintyre Care,104907
WARRINGTON BOROUGH COUNCIL,http://statistics.data.gov.uk/id/local-authority/00EU,Neighbourhood & Community Services,NCS,Care Purchase - Learning Disability,54450,CP-Domicil.External,440950,10-Oct-12,1900100793,"7,420.00",Macintyre Care,104907
WARRINGTON BOROUGH COUNCIL,http://statistics.data.gov.uk/id/local-authority/00EU,Neighbourhood & Community Services,NCS,Care Purchase - Learning Disability,54450,CP-Domicil.External,440950,11-Oct-12,1900100880,"107,935.00",Macintyre Care,104907
WARRINGTON BOROUGH COUNCIL,http://statistics.data.gov.uk/id/local-authority/00EU,Neighbourhood & Community Services,NCS,Care Purchase - Learning Disability,54450,Supporting People - External,441250,11-Oct-12,1900100880,"26,188.00",Macintyre Care,104907
WARRINGTON BOROUGH COUNCIL,http://statistics.data.gov.uk/id/local-authority/00EU,Neighbourhood & Community Services,NCS,Care Purchase - Learning Disability,54450,CP-Day Care-External,441100,19-Oct-12,1900102004,"7,284.00",Macintyre Care,104907
WARRINGTON BOROUGH COUNCIL,http://statistics.data.gov.uk/id/local-authority/00EU,Neighbourhood & Community Services,NCS,Care Purchase - Learning Disability,54450,CP ExternalOther Exp,440800,19-Oct-12,1900102005,920,Macintyre Care,104907
WARRINGTON BOROUGH COUNCIL,http://statistics.data.gov.uk/id/local-authority/00EU,Neighbourhood & Community Services,NCS,Care Purchase - Learning Disability,54450,CP-LongStayExternal,441150,23-Oct-12,1900102124,"5,076.00",Macintyre Care,104907
WARRINGTON BOROUGH COUNCIL,http://statistics.data.gov.uk/id/local-authority/00EU,Neighbourhood & Community Services,NCS,Care Purchase - Learning Disability,54450,CP-Day Care-External,441100,23-Oct-12,1900102125,"16,423.00",Macintyre Care,104907
WARRINGTON BOROUGH COUNCIL,http://statistics.data.gov.uk/id/local-authority/00EU,Neighbourhood & Community Services,NCS,Care Purchase Budget,54490,CP - Cont Care - External,441350,03-Oct-12,1900100343,"10,316.00",Mayfield Home Care Agency,104928
WARRINGTON BOROUGH COUNCIL,http://statistics.data.gov.uk/id/local-authority/00EU,Neighbourhood & Community Services,NCS,Care Purchase - Learning Disability,54450,CP-Domicil.External,440950,03-Oct-12,1900100343,"5,039.00",Mayfield Home Care Agency,104928
WARRINGTON BOROUGH COUNCIL,http://statistics.data.gov.uk/id/local-authority/00EU,Neighbourhood & Community Services,NCS,Care Purchase - OP & OT West,54470,CP-Domicil.External,440950,03-Oct-12,1900100343,"1,419.00",Mayfield Home Care Agency,104928
WARRINGTON BOROUGH COUNCIL,http://statistics.data.gov.uk/id/local-authority/00EU,Neighbourhood & Community Services,NCS,Care Purchase - Mental Health Team 1,54230,CP-Domicil.External,440950,03-Oct-12,1900100343,831,Mayfield Home Care Agency,104928
WARRINGTON BOROUGH COUNCIL,http://statistics.data.gov.uk/id/local-authority/00EU,Environment & Regeneration,ER0,Markets,43711,Resaleables,400600,09-Oct-12,1900100642,"3,131.00",National Express Ltd,104957
WARRINGTON BOROUGH COUNCIL,http://statistics.data.gov.uk/id/local-authority/00EU,Assistant Chief Executive,CEX,Coroners Service,11100,Post Mortem Fees-Rep,440250,10-Oct-12,1900100731,"1,428.00",Dr A Nicol,104970
WARRINGTON BOROUGH COUNCIL,http://statistics.data.gov.uk/id/local-authority/00EU,Neighbourhood & Community Services,NCS,Care Purchase - OP & OT South,54480,CP-Domicil.External,440950,03-Oct-12,1900100329,"18,120.00",Nightingales Homecare Services Agen,104972
WARRINGTON BOROUGH COUNCIL,http://statistics.data.gov.uk/id/local-authority/00EU,Neighbourhood & Community Services,NCS,Care Purchase - OP & OT West,54470,CP-Domicil.External,440950,03-Oct-12,1900100329,"13,187.00",Nightingales Homecare Services Agen,104972
WARRINGTON BOROUGH COUNCIL,http://statistics.data.gov.uk/id/local-authority/00EU,Neighbourhood & Community Services,NCS,Care Purchase -OP & OT East,54430,CP-Domicil.External,440950,03-Oct-12,1900100329,"9,456.00",Nightingales Homecare Services Agen,104972
WARRINGTON BOROUGH COUNCIL,http://statistics.data.gov.uk/id/local-authority/00EU,Neighbourhood & Community Services,NCS,Care Purchase - PD,54440,CP-Domicil.External,440950,03-Oct-12,1900100329,"7,075.00",Nightingales Homecare Services Agen,104972
WARRINGTON BOROUGH COUNCIL,http://statistics.data.gov.uk/id/local-authority/00EU,Neighbourhood & Community Services,NCS,Care Purchase - Learning Disability,54450,CP-Domicil.External,440950,03-Oct-12,1900100329,"6,488.00",Nightingales Homecare Services Agen,104972
WARRINGTON BOROUGH COUNCIL,http://statistics.data.gov.uk/id/local-authority/00EU,Neighbourhood & Community Services,NCS,Care Purchase - OP & OT Central,54420,CP-Domicil.External,440950,03-Oct-12,1900100329,"5,535.00",Nightingales Homecare Services Agen,104972
WARRINGTON BOROUGH COUNCIL,http://statistics.data.gov.uk/id/local-authority/00EU,Neighbourhood & Community Services,NCS,Care Purchase - Hospital Discharge Team,54280,CP-Domicil.External,440950,03-Oct-12,1900100329,"3,889.00",Nightingales Homecare Services Agen,104972
WARRINGTON BOROUGH COUNCIL,http://statistics.data.gov.uk/id/local-authority/00EU,Neighbourhood & Community Services,NCS,Care Purchase - OP & OT South,54480,CP-Domicil.External,440950,29-Oct-12,1900102519,"17,245.00",Nightingales Homecare Services Agen,104972
WARRINGTON BOROUGH COUNCIL,http://statistics.data.gov.uk/id/local-authority/00EU,Neighbourhood & Community Services,NCS,Care Purchase - OP & OT West,54470,CP-Domicil.External,440950,29-Oct-12,1900102519,"12,991.00",Nightingales Homecare Services Agen,104972
WARRINGTON BOROUGH COUNCIL,http://statistics.data.gov.uk/id/local-authority/00EU,Neighbourhood & Community Services,NCS,Care Purchase -OP & OT East,54430,CP-Domicil.External,440950,29-Oct-12,1900102519,"9,135.00",Nightingales Homecare Services Agen,104972
WARRINGTON BOROUGH COUNCIL,http://statistics.data.gov.uk/id/local-authority/00EU,Neighbourhood & Community Services,NCS,Care Purchase - OP & OT Central,54420,CP-Domicil.External,440950,29-Oct-12,1900102519,"6,894.00",Nightingales Homecare Services Agen,104972
WARRINGTON BOROUGH COUNCIL,http://statistics.data.gov.uk/id/local-authority/00EU,Neighbourhood & Community Services,NCS,Care Purchase - PD,54440,CP-Domicil.External,440950,29-Oct-12,1900102519,"6,679.00",Nightingales Homecare Services Agen,104972
WARRINGTON BOROUGH COUNCIL,http://statistics.data.gov.uk/id/local-authority/00EU,Neighbourhood & Community Services,NCS,Care Purchase - Learning Disability,54450,CP-Domicil.External,440950,29-Oct-12,1900102519,"6,472.00",Nightingales Homecare Services Agen,104972
WARRINGTON BOROUGH COUNCIL,http://statistics.data.gov.uk/id/local-authority/00EU,Neighbourhood & Community Services,NCS,Care Purchase - Hospital Discharge Team,54280,CP-Domicil.External,440950,29-Oct-12,1900102519,"3,770.00",Nightingales Homecare Services Agen,104972
WARRINGTON BOROUGH COUNCIL,http://statistics.data.gov.uk/id/local-authority/00EU,Neighbourhood & Community Services,NCS,Care Purchase - OP & OT South,54480,CP-Domicil.External,440950,29-Oct-12,1900102580,"17,245.00",Nightingales Homecare Services Agen,104972
WARRINGTON BOROUGH COUNCIL,http://statistics.data.gov.uk/id/local-authority/00EU,Neighbourhood & Community Services,NCS,Care Purchase - OP & OT West,54470,CP-Domicil.External,440950,29-Oct-12,1900102580,"12,991.00",Nightingales Homecare Services Agen,104972
WARRINGTON BOROUGH COUNCIL,http://statistics.data.gov.uk/id/local-authority/00EU,Neighbourhood & Community Services,NCS,Care Purchase -OP & OT East,54430,CP-Domicil.External,440950,29-Oct-12,1900102580,"9,135.00",Nightingales Homecare Services Agen,104972
WARRINGTON BOROUGH COUNCIL,http://statistics.data.gov.uk/id/local-authority/00EU,Neighbourhood & Community Services,NCS,Care Purchase - OP & OT Central,54420,CP-Domicil.External,440950,29-Oct-12,1900102580,"6,894.00",Nightingales Homecare Services Agen,104972
WARRINGTON BOROUGH COUNCIL,http://statistics.data.gov.uk/id/local-authority/00EU,Neighbourhood & Community Services,NCS,Care Purchase - PD,54440,CP-Domicil.External,440950,29-Oct-12,1900102580,"6,679.00",Nightingales Homecare Services Agen,104972
WARRINGTON BOROUGH COUNCIL,http://statistics.data.gov.uk/id/local-authority/00EU,Neighbourhood & Community Services,NCS,Care Purchase - Learning Disability,54450,CP-Domicil.External,440950,29-Oct-12,1900102580,"6,472.00",Nightingales Homecare Services Agen,104972
WARRINGTON BOROUGH COUNCIL,http://statistics.data.gov.uk/id/local-authority/00EU,Neighbourhood & Community Services,NCS,Care Purchase - Hospital Discharge Team,54280,CP-Domicil.External,440950,29-Oct-12,1900102580,"3,770.00",Nightingales Homecare Services Agen,104972
WARRINGTON BOROUGH COUNCIL,http://statistics.data.gov.uk/id/local-authority/00EU,Children & Young People,CHL,DSG Micellaneous Contingency,32406,Misc (Contingency),551250,03-Oct-12,1900100354,"6,882.00",United Utilities Water Limited,104982
WARRINGTON BOROUGH COUNCIL,http://statistics.data.gov.uk/id/local-authority/00EU,Environment & Regeneration,ER0,Bewsey Old School,43120,Water & Sewerage Chg,240000,08-Oct-12,1900100604,"3,272.00",United Utilities Water Limited,104982
WARRINGTON BOROUGH COUNCIL,http://statistics.data.gov.uk/id/local-authority/00EU,Environment & Regeneration,ER0,Markets,43711,Water & Sewerage Chg,240000,09-Oct-12,1900100645,"15,084.00",United Utilities Water Limited,104982
WARRINGTON BOROUGH COUNCIL,http://statistics.data.gov.uk/id/local-authority/00EU,Environment & Regeneration,ER1,Woolston Depot,41331,Water & Sewerage Chg,240000,09-Oct-12,1900100645,"4,814.00",United Utilities Water Limited,104982
WARRINGTON BOROUGH COUNCIL,http://statistics.data.gov.uk/id/local-authority/00EU,Neighbourhood & Community Services,NCS,Woodleigh,54740,Water & Sewerage Chg,240000,09-Oct-12,1900100645,"3,756.00",United Utilities Water Limited,104982
WARRINGTON BOROUGH COUNCIL,http://statistics.data.gov.uk/id/local-authority/00EU,Environment & Regeneration,ER1,School Brow Depot,41330,Water & Sewerage Chg,240000,09-Oct-12,1900100645,"3,521.00",United Utilities Water Limited,104982
WARRINGTON BOROUGH COUNCIL,http://statistics.data.gov.uk/id/local-authority/00EU,Environment & Regeneration,ER1,Smallholdings,41425,Water & Sewerage Chg,240000,09-Oct-12,1900100645,"2,427.00",United Utilities Water Limited,104982
WARRINGTON BOROUGH COUNCIL,http://statistics.data.gov.uk/id/local-authority/00EU,Environment & Regeneration,ER1,Walton Estate,41430,Water & Sewerage Chg,240000,09-Oct-12,1900100645,"1,834.00",United Utilities Water Limited,104982
WARRINGTON BOROUGH COUNCIL,http://statistics.data.gov.uk/id/local-authority/00EU,Environment & Regeneration,ER1,Games In Parks,41431,Water & Sewerage Chg,240000,09-Oct-12,1900100645,"1,805.00",United Utilities Water Limited,104982
WARRINGTON BOROUGH COUNCIL,http://statistics.data.gov.uk/id/local-authority/00EU,Neighbourhood & Community Services,NCS,Padgate House,54760,Water & Sewerage Chg,240000,09-Oct-12,1900100645,"1,799.00",United Utilities Water Limited,104982
WARRINGTON BOROUGH COUNCIL,http://statistics.data.gov.uk/id/local-authority/00EU,Neighbourhood & Community Services,NCS,Harrison Centre,54180,Water & Sewerage Chg,240000,09-Oct-12,1900100645,"1,693.00",United Utilities Water Limited,104982
WARRINGTON BOROUGH COUNCIL,http://statistics.data.gov.uk/id/local-authority/00EU,Neighbourhood & Community Services,NCS,Specialist Day Services,54750,Water & Sewerage Chg,240000,09-Oct-12,1900100645,"1,671.00",United Utilities Water Limited,104982
WARRINGTON BOROUGH COUNCIL,http://statistics.data.gov.uk/id/local-authority/00EU,Neighbourhood & Community Services,NCS,OP Daycare,54540,Water & Sewerage Chg,240000,09-Oct-12,1900100645,"1,640.00",United Utilities Water Limited,104982
WARRINGTON BOROUGH COUNCIL,http://statistics.data.gov.uk/id/local-authority/00EU,Environment & Regeneration,ER1,Games In Parks,41431,Water & Sewerage Chg,240000,09-Oct-12,1900100645,"1,607.00",United Utilities Water Limited,104982
WARRINGTON BOROUGH COUNCIL,http://statistics.data.gov.uk/id/local-authority/00EU,Neighbourhood & Community Services,NCS,Culcheth CC -  Age Concern,51219,Water & Sewerage Chg,240000,09-Oct-12,1900100645,"1,455.00",United Utilities Water Limited,104982
WARRINGTON BOROUGH COUNCIL,http://statistics.data.gov.uk/id/local-authority/00EU,Environment & Regeneration,ER0,Bus Interchange,44460,Water & Sewerage Chg,240000,09-Oct-12,1900100645,"1,313.00",United Utilities Water Limited,104982
WARRINGTON BOROUGH COUNCIL,http://statistics.data.gov.uk/id/local-authority/00EU,Environment & Regeneration,ER0,Housing Strategy,43620,Water & Sewerage Chg,240000,09-Oct-12,1900100645,976,United Utilities Water Limited,104982
WARRINGTON BOROUGH COUNCIL,http://statistics.data.gov.uk/id/local-authority/00EU,Neighbourhood & Community Services,NCS,James Phoenix House,54720,Water & Sewerage Chg,240000,09-Oct-12,1900100645,958,United Utilities Water Limited,104982
WARRINGTON BOROUGH COUNCIL,http://statistics.data.gov.uk/id/local-authority/00EU,Children & Young People,CHL,EIG Funding - Westy Childrens Centre,31541,Water & Sewerage Chg,240000,09-Oct-12,1900100645,920,United Utilities Water Limited,104982
WARRINGTON BOROUGH COUNCIL,http://statistics.data.gov.uk/id/local-authority/00EU,Neighbourhood & Community Services,NCS,LD Supported Tenancies,54730,Water & Sewerage Chg,240000,09-Oct-12,1900100645,862,United Utilities Water Limited,104982
WARRINGTON BOROUGH COUNCIL,http://statistics.data.gov.uk/id/local-authority/00EU,Environment & Regeneration,ER0,East Annexe,43113,Water & Sewerage Chg,240000,09-Oct-12,1900100645,860,United Utilities Water Limited,104982
WARRINGTON BOROUGH COUNCIL,http://statistics.data.gov.uk/id/local-authority/00EU,Neighbourhood & Community Services,NCS,Specialist Day Services,54750,Water & Sewerage Chg,240000,09-Oct-12,1900100645,832,United Utilities Water Limited,104982
WARRINGTON BOROUGH COUNCIL,http://statistics.data.gov.uk/id/local-authority/00EU,Environment & Regeneration,ER0,Rylands Street,43118,Water & Sewerage Chg,240000,09-Oct-12,1900100645,811,United Utilities Water Limited,104982
WARRINGTON BOROUGH COUNCIL,http://statistics.data.gov.uk/id/local-authority/00EU,Environment & Regeneration,ER1,Crematorium,41411,Water & Sewerage Chg,240000,09-Oct-12,1900100645,750,United Utilities Water Limited,104982
WARRINGTON BOROUGH COUNCIL,http://statistics.data.gov.uk/id/local-authority/00EU,Neighbourhood & Community Services,NCS,Nora Street CH,51236,Water & Sewerage Chg,240000,09-Oct-12,1900100645,688,United Utilities Water Limited,104982
WARRINGTON BOROUGH COUNCIL,http://statistics.data.gov.uk/id/local-authority/00EU,Neighbourhood & Community Services,NCS,Croft CC,51222,Water & Sewerage Chg,240000,09-Oct-12,1900100645,674,United Utilities Water Limited,104982
WARRINGTON BOROUGH COUNCIL,http://statistics.data.gov.uk/id/local-authority/00EU,Environment & Regeneration,ER1,Parks & Open Spaces,41426,Water & Sewerage Chg,240000,09-Oct-12,1900100645,627,United Utilities Water Limited,104982
WARRINGTON BOROUGH COUNCIL,http://statistics.data.gov.uk/id/local-authority/00EU,Neighbourhood & Community Services,NCS,Radley Common CC,51227,Water & Sewerage Chg,240000,09-Oct-12,1900100645,612,United Utilities Water Limited,104982
WARRINGTON BOROUGH COUNCIL,http://statistics.data.gov.uk/id/local-authority/00EU,Environment & Regeneration,ER0,Sandy Lane Depot,44230,Water & Sewerage Chg,240000,09-Oct-12,1900100645,593,United Utilities Water Limited,104982
WARRINGTON BOROUGH COUNCIL,http://statistics.data.gov.uk/id/local-authority/00EU,Assistant Chief Executive,CEX,Irwell Road Training Centre,21000,Water & Sewerage Chg,240000,09-Oct-12,1900100645,586,United Utilities Water Limited,104982
WARRINGTON BOROUGH COUNCIL,http://statistics.data.gov.uk/id/local-authority/00EU,Environment & Regeneration,ER0,Bank House,43116,Water & Sewerage Chg,240000,09-Oct-12,1900100645,552,United Utilities Water Limited,104982
WARRINGTON BOROUGH COUNCIL,http://statistics.data.gov.uk/id/local-authority/00EU,Environment & Regeneration,ER0,Town Hall,43111,Water & Sewerage Chg,240000,09-Oct-12,1900100645,546,United Utilities Water Limited,104982
WARRINGTON BOROUGH COUNCIL,http://statistics.data.gov.uk/id/local-authority/00EU,Neighbourhood & Community Services,NCS,Westy CC,51217,Water & Sewerage Chg,240000,09-Oct-12,1900100645,527,United Utilities Water Limited,104982
WARRINGTON BOROUGH COUNCIL,http://statistics.data.gov.uk/id/local-authority/00EU,Neighbourhood & Community Services,NCS,Care Purchase Budget,54490,CP ExternalOther Exp,440800,15-Oct-12,1900101048,"8,852.00",Old Rectory Private Nursing Home,104990
WARRINGTON BOROUGH COUNCIL,http://statistics.data.gov.uk/id/local-authority/00EU,Neighbourhood & Community Services,NCS,Care Purchase Budget,54490,CP ExternalOther Exp,440800,17-Oct-12,1900101184,"25,000.00",Old Rectory Private Nursing Home,104990
WARRINGTON BOROUGH COUNCIL,http://statistics.data.gov.uk/id/local-authority/00EU,Children & Young People,CHL,DSG Early Years PVI Settings,32417,Private & Voluntary 3 Year Olds,470100,23-Oct-12,1900102432,"4,258.00",The Old Vicarage,104991
WARRINGTON BOROUGH COUNCIL,http://statistics.data.gov.uk/id/local-authority/00EU,Environment & Regeneration,ER0,New Town House,43119,Feasibility Study,440900,05-Oct-12,1700005865,583,Phs Group Ltd,105024
WARRINGTON BOROUGH COUNCIL,http://statistics.data.gov.uk/id/local-authority/00EU,Environment & Regeneration,ER0,New Town House,43119,Trade Refuse Charges,440700,05-Oct-12,1900100552,595,Phs Group Ltd,105024
WARRINGTON BOROUGH COUNCIL,http://statistics.data.gov.uk/id/local-authority/00EU,Neighbourhood & Community Services,NCS,Care Purchase - Learning Disability,54450,CP-Domicil.External,440950,17-Oct-12,1900101203,650,P S S,105048
WARRINGTON BOROUGH COUNCIL,http://statistics.data.gov.uk/id/local-authority/00EU,Neighbourhood & Community Services,NCS,Care Purchase - Learning Disability,54450,CP-Domicil.External,440950,29-Oct-12,1900102540,650,P S S,105048
WARRINGTON BOROUGH COUNCIL,http://statistics.data.gov.uk/id/local-authority/00EU,Children & Young People,CHL,DSG Early Years PVI Settings,32417,Private & Voluntary 3 Year Olds,470100,23-Oct-12,1900102433,"4,404.00",The Quays Day Nursery,105052
WARRINGTON BOROUGH COUNCIL,http://statistics.data.gov.uk/id/local-authority/00EU,Children & Young People,CYP,Primary,81001,Equipment Purchase & Contract,400000,31-Oct-12,1900102703,"5,754.00",Rm Education Plc,105066
WARRINGTON BOROUGH COUNCIL,http://statistics.data.gov.uk/id/local-authority/00EU,Children & Young People,CYP,Childrens Other,81004,Equipment Purchase & Contract,400000,31-Oct-12,1900102703,"5,754.00",Rm Education Plc,105066
WARRINGTON BOROUGH COUNCIL,http://statistics.data.gov.uk/id/local-authority/00EU,Children & Young People,CYP,Primary,81001,Equipment Purchase & Contract,400000,31-Oct-12,1900102706,"1,568.00",Rm Education Plc,105066
WARRINGTON BOROUGH COUNCIL,http://statistics.data.gov.uk/id/local-authority/00EU,Children & Young People,CYP,Primary,81001,Equipment Purchase & Contract,400000,31-Oct-12,1900102710,820,Rm Education Plc,105066
WARRINGTON BOROUGH COUNCIL,http://statistics.data.gov.uk/id/local-authority/00EU,Children & Young People,CYP,Childrens Other,81004,Equipment Purchase & Contract,400000,31-Oct-12,1900102710,820,Rm Education Plc,105066
WARRINGTON BOROUGH COUNCIL,http://statistics.data.gov.uk/id/local-authority/00EU,Neighbourhood & Community Services,NCS,Care Purchase Budget,54490,CP ExternalOther Exp,440800,03-Oct-12,1900100345,"7,104.00",Rosevilla Residential Home,105084
WARRINGTON BOROUGH COUNCIL,http://statistics.data.gov.uk/id/local-authority/00EU,Neighbourhood & Community Services,NCS,Care Purchase Budget,54490,CP ExternalOther Exp,440800,17-Oct-12,1900101190,"13,000.00",Rosevilla Residential Home,105084
WARRINGTON BOROUGH COUNCIL,http://statistics.data.gov.uk/id/local-authority/00EU,Neighbourhood & Community Services,NCS,Care Purchase - Learning Disability,54450,CP-LongStayExternal,441150,23-Oct-12,1900102160,"18,003.00",St Helens Mbc,105097
WARRINGTON BOROUGH COUNCIL,http://statistics.data.gov.uk/id/local-authority/00EU,Neighbourhood & Community Services,NCS,Care Purchase - Learning Disability,54450,CP-LongStayExternal,441150,23-Oct-12,1900102161,"18,603.00",St Helens Mbc,105097
WARRINGTON BOROUGH COUNCIL,http://statistics.data.gov.uk/id/local-authority/00EU,Children & Young People,CHL,Commissioning,33001,CP ExternalOther Exp,440800,04-Oct-12,1900100457,"4,899.00",St Josephs Family Centre,105100
WARRINGTON BOROUGH COUNCIL,http://statistics.data.gov.uk/id/local-authority/00EU,Neighbourhood & Community Services,NCS,Care Purchase - PD,54440,CP-LongStayExternal,441150,23-Oct-12,1900102116,"4,584.00",Scope,105109
WARRINGTON BOROUGH COUNCIL,http://statistics.data.gov.uk/id/local-authority/00EU,Assistant Chief Executive,CEX,Coroners Service,11100,Post Mortem Fees-Rep,440250,09-Oct-12,1900100694,"1,348.00",Dr D S Shareef,105121
WARRINGTON BOROUGH COUNCIL,http://statistics.data.gov.uk/id/local-authority/00EU,Neighbourhood & Community Services,NCS,Care Purchase - OP & OT West,54470,CP-Domicil.External,440950,03-Oct-12,1900100335,"19,548.00",Premier Care Cheshire Ltd,105142
WARRINGTON BOROUGH COUNCIL,http://statistics.data.gov.uk/id/local-authority/00EU,Neighbourhood & Community Services,NCS,Care Purchase - OP & OT Central,54420,CP-Domicil.External,440950,03-Oct-12,1900100335,"17,074.00",Premier Care Cheshire Ltd,105142
WARRINGTON BOROUGH COUNCIL,http://statistics.data.gov.uk/id/local-authority/00EU,Neighbourhood & Community Services,NCS,Care Purchase -OP & OT East,54430,CP-Domicil.External,440950,03-Oct-12,1900100335,"16,664.00",Premier Care Cheshire Ltd,105142
WARRINGTON BOROUGH COUNCIL,http://statistics.data.gov.uk/id/local-authority/00EU,Neighbourhood & Community Services,NCS,Care Purchase - PD,54440,CP-Domicil.External,440950,03-Oct-12,1900100335,"10,250.00",Premier Care Cheshire Ltd,105142
WARRINGTON BOROUGH COUNCIL,http://statistics.data.gov.uk/id/local-authority/00EU,Neighbourhood & Community Services,NCS,Care Purchase - OP & OT South,54480,CP-Domicil.External,440950,03-Oct-12,1900100335,"9,691.00",Premier Care Cheshire Ltd,105142
WARRINGTON BOROUGH COUNCIL,http://statistics.data.gov.uk/id/local-authority/00EU,Neighbourhood & Community Services,NCS,Care Purchase Budget,54490,CP - Cont Care - External,441350,03-Oct-12,1900100335,"3,120.00",Premier Care Cheshire Ltd,105142
WARRINGTON BOROUGH COUNCIL,http://statistics.data.gov.uk/id/local-authority/00EU,Neighbourhood & Community Services,NCS,Care Purchase - Learning Disability,54450,CP-Domicil.External,440950,03-Oct-12,1900100335,"1,789.00",Premier Care Cheshire Ltd,105142
WARRINGTON BOROUGH COUNCIL,http://statistics.data.gov.uk/id/local-authority/00EU,Neighbourhood & Community Services,NCS,Care Purchase - Mental Health Team 2,54240,CP-Domicil.External,440950,03-Oct-12,1900100335,"1,534.00",Premier Care Cheshire Ltd,105142
WARRINGTON BOROUGH COUNCIL,http://statistics.data.gov.uk/id/local-authority/00EU,Neighbourhood & Community Services,NCS,Care Purchase - PD,54440,Supporting People - External,441250,03-Oct-12,1900100335,561,Premier Care Cheshire Ltd,105142
WARRINGTON BOROUGH COUNCIL,http://statistics.data.gov.uk/id/local-authority/00EU,Neighbourhood & Community Services,NCS,Care Purchase - Mental Health Team 1,54230,CP-Domicil.External,440950,03-Oct-12,1900100335,557,Premier Care Cheshire Ltd,105142
WARRINGTON BOROUGH COUNCIL,http://statistics.data.gov.uk/id/local-authority/00EU,Neighbourhood & Community Services,NCS,Care Purchase Budget,54490,CP Free Nursing Care External,443500,15-Oct-12,1900101005,870,Summerville Nursing Home -Private C,105162
WARRINGTON BOROUGH COUNCIL,http://statistics.data.gov.uk/id/local-authority/00EU,Neighbourhood & Community Services,NCS,Care Purchase Budget,54490,CP ExternalOther Exp,440800,15-Oct-12,1900101046,"5,648.00",Summerville Nursing Home -Private C,105162
WARRINGTON BOROUGH COUNCIL,http://statistics.data.gov.uk/id/local-authority/00EU,Neighbourhood & Community Services,NCS,Care Purchase Budget,54490,CP ExternalOther Exp,440800,17-Oct-12,1900101250,"63,000.00",Summerville Nursing Home -Private C,105162
WARRINGTON BOROUGH COUNCIL,http://statistics.data.gov.uk/id/local-authority/00EU,Neighbourhood & Community Services,NCS,Care Purchase Budget,54490,CP ExternalOther Exp,440800,17-Oct-12,1900101191,"25,000.00",Thelwall Grange Nursing Home,105174
WARRINGTON BOROUGH COUNCIL,http://statistics.data.gov.uk/id/local-authority/00EU,Neighbourhood & Community Services,NCS,Care Purchase Budget,54490,CP ExternalOther Exp,440800,22-Oct-12,1900102036,"13,046.00",Thelwall Grange Nursing Home,105174
WARRINGTON BOROUGH COUNCIL,http://statistics.data.gov.uk/id/local-authority/00EU,Neighbourhood & Community Services,NCS,Care Purchase Budget,54490,CP ExternalOther Exp,440800,17-Oct-12,1900101252,"64,000.00",Minster Care Management Ltd,105179
WARRINGTON BOROUGH COUNCIL,http://statistics.data.gov.uk/id/local-authority/00EU,Children & Young People,CYP,Primary,81001,ICT Comms - Equipment Purchase,450100,22-Oct-12,1900102059,"7,959.00",Unitec Communications Ltd,105211
WARRINGTON BOROUGH COUNCIL,http://statistics.data.gov.uk/id/local-authority/00EU,Neighbourhood & Community Services,NCS,Care Purchase Budget,54490,CP ExternalOther Exp,440800,10-Oct-12,1900100795,"2,782.00",Warrington Community Care,105229
WARRINGTON BOROUGH COUNCIL,http://statistics.data.gov.uk/id/local-authority/00EU,Neighbourhood & Community Services,NCS,Care Purchase Budget,54490,CP ExternalOther Exp,440800,17-Oct-12,1900101256,"72,000.00",Warrington Community Care,105229
WARRINGTON BOROUGH COUNCIL,http://statistics.data.gov.uk/id/local-authority/00EU,Neighbourhood & Community Services,NCS,Care Purchase - Learning Disability,54450,CP-LongStayExternal,441150,03-Oct-12,1900100337,"32,781.00",WCL - Warrington Community Living,105230
WARRINGTON BOROUGH COUNCIL,http://statistics.data.gov.uk/id/local-authority/00EU,Neighbourhood & Community Services,NCS,Care Purchase Budget,54490,Voids,515150,03-Oct-12,1900100337,"3,549.00",WCL - Warrington Community Living,105230
WARRINGTON BOROUGH COUNCIL,http://statistics.data.gov.uk/id/local-authority/00EU,Neighbourhood & Community Services,NCS,Care Purchase - Learning Disability,54450,CP-Domicil.External,440950,11-Oct-12,1900100877,"95,300.00",WCL - Warrington Community Living,105230
WARRINGTON BOROUGH COUNCIL,http://statistics.data.gov.uk/id/local-authority/00EU,Neighbourhood & Community Services,NCS,Care Purchase - Learning Disability,54450,Supporting People - External,441250,11-Oct-12,1900100877,"11,783.00",WCL - Warrington Community Living,105230
WARRINGTON BOROUGH COUNCIL,http://statistics.data.gov.uk/id/local-authority/00EU,Neighbourhood & Community Services,NCS,Care Purchase Budget,54490,Voids,515150,11-Oct-12,1900100877,"9,947.00",WCL - Warrington Community Living,105230
WARRINGTON BOROUGH COUNCIL,http://statistics.data.gov.uk/id/local-authority/00EU,Neighbourhood & Community Services,NCS,Care Purchase - Learning Disability,54450,CP-Nursing Care-External,441200,17-Oct-12,1900101257,"57,161.00",WCL - Warrington Community Living,105230
WARRINGTON BOROUGH COUNCIL,http://statistics.data.gov.uk/id/local-authority/00EU,Neighbourhood & Community Services,NCS,Care Purchase Budget,54490,CP Free Nursing Care External,443500,17-Oct-12,1900101257,"3,100.00",WCL - Warrington Community Living,105230
WARRINGTON BOROUGH COUNCIL,http://statistics.data.gov.uk/id/local-authority/00EU,Neighbourhood & Community Services,NCS,Care Purchase - Learning Disability,54450,CP-LongStayExternal,441150,29-Oct-12,1900102552,"32,781.00",WCL - Warrington Community Living,105230
WARRINGTON BOROUGH COUNCIL,http://statistics.data.gov.uk/id/local-authority/00EU,Neighbourhood & Community Services,NCS,Care Purchase Budget,54490,Voids,515150,29-Oct-12,1900102552,"3,549.00",WCL - Warrington Community Living,105230
WARRINGTON BOROUGH COUNCIL,http://statistics.data.gov.uk/id/local-authority/00EU,Neighbourhood & Community Services,NCS,Care Purchase Budget,54490,CP ExternalOther Exp,440800,04-Oct-12,1900100448,"1,230.00",Waverley House,105242
WARRINGTON BOROUGH COUNCIL,http://statistics.data.gov.uk/id/local-authority/00EU,Neighbourhood & Community Services,NCS,Care Purchase Budget,54490,CP ExternalOther Exp,440800,17-Oct-12,1900101188,"33,000.00",Waverley House,105242
WARRINGTON BOROUGH COUNCIL,http://statistics.data.gov.uk/id/local-authority/00EU,Neighbourhood & Community Services,NCS,Care Purchase - OP & OT West,54470,CP-Nursing Care-External,441200,03-Oct-12,1900100336,"1,520.00",Barchester Homes Ltd,105246
WARRINGTON BOROUGH COUNCIL,http://statistics.data.gov.uk/id/local-authority/00EU,Neighbourhood & Community Services,NCS,Care Purchase - OP & OT West,54470,CP-Nursing Care-External,441200,04-Oct-12,1900100444,"29,043.00",Barchester Homes Ltd,105246
WARRINGTON BOROUGH COUNCIL,http://statistics.data.gov.uk/id/local-authority/00EU,Neighbourhood & Community Services,NCS,Care Purchase Budget,54490,CP - Cont Care - External,441350,04-Oct-12,1900100444,"7,649.00",Barchester Homes Ltd,105246
WARRINGTON BOROUGH COUNCIL,http://statistics.data.gov.uk/id/local-authority/00EU,Neighbourhood & Community Services,NCS,Care Purchase - OP & OT Central,54420,CP-Nursing Care-External,441200,04-Oct-12,1900100444,"2,460.00",Barchester Homes Ltd,105246
WARRINGTON BOROUGH COUNCIL,http://statistics.data.gov.uk/id/local-authority/00EU,Neighbourhood & Community Services,NCS,Care Purchase - Mental Health Team 1,54230,CP-Nursing Care-External,441200,04-Oct-12,1900100444,"1,712.00",Barchester Homes Ltd,105246
WARRINGTON BOROUGH COUNCIL,http://statistics.data.gov.uk/id/local-authority/00EU,Neighbourhood & Community Services,NCS,Care Purchase -OP & OT East,54430,CP-Nursing Care-External,441200,04-Oct-12,1900100444,"1,712.00",Barchester Homes Ltd,105246
WARRINGTON BOROUGH COUNCIL,http://statistics.data.gov.uk/id/local-authority/00EU,Neighbourhood & Community Services,NCS,Care Purchase - OP & OT West,54470,CP-LongStayExternal,441150,04-Oct-12,1900100444,"1,540.00",Barchester Homes Ltd,105246
WARRINGTON BOROUGH COUNCIL,http://statistics.data.gov.uk/id/local-authority/00EU,Neighbourhood & Community Services,NCS,Care Purchase - OP & OT South,54480,CP-Nursing Care-External,441200,04-Oct-12,1900100444,"1,406.00",Barchester Homes Ltd,105246
WARRINGTON BOROUGH COUNCIL,http://statistics.data.gov.uk/id/local-authority/00EU,Neighbourhood & Community Services,NCS,Care Purchase - PD,54440,CP-Nursing Care-External,441200,04-Oct-12,1900100444,529,Barchester Homes Ltd,105246
WARRINGTON BOROUGH COUNCIL,http://statistics.data.gov.uk/id/local-authority/00EU,Neighbourhood & Community Services,NCS,Care Purchase Budget,54490,CP Free Nursing Care External,443500,04-Oct-12,1900100445,"18,208.00",Barchester Homes Ltd,105246
WARRINGTON BOROUGH COUNCIL,http://statistics.data.gov.uk/id/local-authority/00EU,Neighbourhood & Community Services,NCS,Care Purchase - OP & OT West,54470,CP-Nursing Care-External,441200,30-Oct-12,1900102658,"27,392.00",Barchester Homes Ltd,105246
WARRINGTON BOROUGH COUNCIL,http://statistics.data.gov.uk/id/local-authority/00EU,Neighbourhood & Community Services,NCS,Care Purchase Budget,54490,CP - Cont Care - External,441350,30-Oct-12,1900102658,"7,221.00",Barchester Homes Ltd,105246
WARRINGTON BOROUGH COUNCIL,http://statistics.data.gov.uk/id/local-authority/00EU,Neighbourhood & Community Services,NCS,Care Purchase - OP & OT Central,54420,CP-Nursing Care-External,441200,30-Oct-12,1900102658,"4,035.00",Barchester Homes Ltd,105246
WARRINGTON BOROUGH COUNCIL,http://statistics.data.gov.uk/id/local-authority/00EU,Neighbourhood & Community Services,NCS,Care Purchase - Mental Health Team 1,54230,CP-Nursing Care-External,441200,30-Oct-12,1900102658,"1,712.00",Barchester Homes Ltd,105246
WARRINGTON BOROUGH COUNCIL,http://statistics.data.gov.uk/id/local-authority/00EU,Neighbourhood & Community Services,NCS,Care Purchase - OP & OT South,54480,CP-Nursing Care-External,441200,30-Oct-12,1900102658,"1,712.00",Barchester Homes Ltd,105246
WARRINGTON BOROUGH COUNCIL,http://statistics.data.gov.uk/id/local-authority/00EU,Neighbourhood & Community Services,NCS,Care Purchase -OP & OT East,54430,CP-Nursing Care-External,441200,30-Oct-12,1900102658,"1,712.00",Barchester Homes Ltd,105246
WARRINGTON BOROUGH COUNCIL,http://statistics.data.gov.uk/id/local-authority/00EU,Neighbourhood & Community Services,NCS,Care Purchase - OP & OT West,54470,CP-LongStayExternal,441150,30-Oct-12,1900102658,"1,540.00",Barchester Homes Ltd,105246
WARRINGTON BOROUGH COUNCIL,http://statistics.data.gov.uk/id/local-authority/00EU,Neighbourhood & Community Services,NCS,Care Purchase - PD,54440,CP-Nursing Care-External,441200,30-Oct-12,1900102658,728,Barchester Homes Ltd,105246
WARRINGTON BOROUGH COUNCIL,http://statistics.data.gov.uk/id/local-authority/00EU,Neighbourhood & Community Services,NCS,Care Purchase - PD,54440,CP-Nursing Care-External,441200,17-Oct-12,1900101210,"1,200.00",Woodlands Respite Care Centre,105252
WARRINGTON BOROUGH COUNCIL,http://statistics.data.gov.uk/id/local-authority/00EU,Assistant Chief Executive,CEX,Car Leasing Scheme - Salary Sacrifice,52126,Car Leasing Charges,350000,19-Oct-12,1900101901,"2,528.00",Xerox Finance,105255
WARRINGTON BOROUGH COUNCIL,http://statistics.data.gov.uk/id/local-authority/00EU,Assistant Chief Executive,CEX,Car Leasing Scheme - Salary Sacrifice,52126,Car Leasing Charges,350000,19-Oct-12,1900101901,670,Xerox Finance,105255
WARRINGTON BOROUGH COUNCIL,http://statistics.data.gov.uk/id/local-authority/00EU,Assistant Chief Executive,CEX,Car Leasing Scheme - Salary Sacrifice,52126,Car Leasing Charges,350000,19-Oct-12,1900101902,"3,608.00",Xerox Finance,105255
WARRINGTON BOROUGH COUNCIL,http://statistics.data.gov.uk/id/local-authority/00EU,Assistant Chief Executive,CEX,Car Leasing Scheme - Salary Sacrifice,52126,Car Leasing Charges,350000,19-Oct-12,1900101902,670,Xerox Finance,105255
WARRINGTON BOROUGH COUNCIL,http://statistics.data.gov.uk/id/local-authority/00EU,Neighbourhood & Community Services,NCS,Care Purchase - OP & OT Central,54420,CP-Domicil.External,440950,17-Oct-12,1900101177,"2,499.00",Castlerock Care Services,105279
WARRINGTON BOROUGH COUNCIL,http://statistics.data.gov.uk/id/local-authority/00EU,Neighbourhood & Community Services,NCS,Care Purchase - OP & OT South,54480,CP-Domicil.External,440950,17-Oct-12,1900101177,"1,450.00",Castlerock Care Services,105279
WARRINGTON BOROUGH COUNCIL,http://statistics.data.gov.uk/id/local-authority/00EU,Neighbourhood & Community Services,NCS,Care Purchase -OP & OT East,54430,CP-Domicil.External,440950,17-Oct-12,1900101177,"1,063.00",Castlerock Care Services,105279
WARRINGTON BOROUGH COUNCIL,http://statistics.data.gov.uk/id/local-authority/00EU,Neighbourhood & Community Services,NCS,Care Purchase - PD,54440,CP-Domicil.External,440950,17-Oct-12,1900101177,715,Castlerock Care Services,105279
WARRINGTON BOROUGH COUNCIL,http://statistics.data.gov.uk/id/local-authority/00EU,Neighbourhood & Community Services,NCS,Care Purchase - OP & OT Central,54420,CP-Domicil.External,440950,17-Oct-12,1900101178,"2,538.00",Castlerock Care Services,105279
WARRINGTON BOROUGH COUNCIL,http://statistics.data.gov.uk/id/local-authority/00EU,Neighbourhood & Community Services,NCS,Care Purchase - OP & OT South,54480,CP-Domicil.External,440950,17-Oct-12,1900101178,"1,457.00",Castlerock Care Services,105279
WARRINGTON BOROUGH COUNCIL,http://statistics.data.gov.uk/id/local-authority/00EU,Neighbourhood & Community Services,NCS,Care Purchase -OP & OT East,54430,CP-Domicil.External,440950,17-Oct-12,1900101178,959,Castlerock Care Services,105279
WARRINGTON BOROUGH COUNCIL,http://statistics.data.gov.uk/id/local-authority/00EU,Neighbourhood & Community Services,NCS,Care Purchase - PD,54440,CP-Domicil.External,440950,17-Oct-12,1900101178,750,Castlerock Care Services,105279
WARRINGTON BOROUGH COUNCIL,http://statistics.data.gov.uk/id/local-authority/00EU,Neighbourhood & Community Services,NCS,Care Purchase - OP & OT Central,54420,CP-Domicil.External,440950,17-Oct-12,1900101179,"2,535.00",Castlerock Care Services,105279
WARRINGTON BOROUGH COUNCIL,http://statistics.data.gov.uk/id/local-authority/00EU,Neighbourhood & Community Services,NCS,Care Purchase - OP & OT South,54480,CP-Domicil.External,440950,17-Oct-12,1900101179,"1,434.00",Castlerock Care Services,105279
WARRINGTON BOROUGH COUNCIL,http://statistics.data.gov.uk/id/local-authority/00EU,Neighbourhood & Community Services,NCS,Care Purchase -OP & OT East,54430,CP-Domicil.External,440950,17-Oct-12,1900101179,988,Castlerock Care Services,105279
WARRINGTON BOROUGH COUNCIL,http://statistics.data.gov.uk/id/local-authority/00EU,Neighbourhood & Community Services,NCS,Care Purchase - PD,54440,CP-Domicil.External,440950,17-Oct-12,1900101179,777,Castlerock Care Services,105279
WARRINGTON BOROUGH COUNCIL,http://statistics.data.gov.uk/id/local-authority/00EU,Neighbourhood & Community Services,NCS,Care Purchase - OP & OT Central,54420,CP-Domicil.External,440950,17-Oct-12,1900101180,"2,580.00",Castlerock Care Services,105279
WARRINGTON BOROUGH COUNCIL,http://statistics.data.gov.uk/id/local-authority/00EU,Neighbourhood & Community Services,NCS,Care Purchase - OP & OT South,54480,CP-Domicil.External,440950,17-Oct-12,1900101180,"1,413.00",Castlerock Care Services,105279
WARRINGTON BOROUGH COUNCIL,http://statistics.data.gov.uk/id/local-authority/00EU,Neighbourhood & Community Services,NCS,Care Purchase -OP & OT East,54430,CP-Domicil.External,440950,17-Oct-12,1900101180,"1,074.00",Castlerock Care Services,105279
WARRINGTON BOROUGH COUNCIL,http://statistics.data.gov.uk/id/local-authority/00EU,Neighbourhood & Community Services,NCS,Care Purchase - PD,54440,CP-Domicil.External,440950,17-Oct-12,1900101180,697,Castlerock Care Services,105279
WARRINGTON BOROUGH COUNCIL,http://statistics.data.gov.uk/id/local-authority/00EU,Assistant Chief Executive,CEX,Coroners Service,11100,Analysts Fees,440300,10-Oct-12,1900100727,"1,197.00",Roar Forensics Ltd,105295
WARRINGTON BOROUGH COUNCIL,http://statistics.data.gov.uk/id/local-authority/00EU,Assistant Chief Executive,CEX,Coroners Service,11100,Analysts Fees,440300,10-Oct-12,1900100734,"1,944.00",Roar Forensics Ltd,105295
WARRINGTON BOROUGH COUNCIL,http://statistics.data.gov.uk/id/local-authority/00EU,Assistant Chief Executive,CEX,Coroners Service,11100,Analysts Fees,440300,10-Oct-12,1900100757,"2,025.00",Roar Forensics Ltd,105295
WARRINGTON BOROUGH COUNCIL,http://statistics.data.gov.uk/id/local-authority/00EU,Assistant Chief Executive,CEX,Coroners Service,11100,Analysts Fees,440300,10-Oct-12,1900100835,"2,367.00",Roar Forensics Ltd,105295
WARRINGTON BOROUGH COUNCIL,http://statistics.data.gov.uk/id/local-authority/00EU,Assistant Chief Executive,CEX,Coroners Service,11100,Analysts Fees,440300,17-Oct-12,1900101268,"1,730.00",Roar Forensics Ltd,105295
WARRINGTON BOROUGH COUNCIL,http://statistics.data.gov.uk/id/local-authority/00EU,Assistant Chief Executive,CEX,Coroners Service,11100,Analysts Fees,440300,17-Oct-12,1900101269,"2,365.00",Roar Forensics Ltd,105295
WARRINGTON BOROUGH COUNCIL,http://statistics.data.gov.uk/id/local-authority/00EU,Assistant Chief Executive,CEX,Coroners Service,11100,Analysts Fees,440300,23-Oct-12,1900102091,666,Roar Forensics Ltd,105295
WARRINGTON BOROUGH COUNCIL,http://statistics.data.gov.uk/id/local-authority/00EU,Assistant Chief Executive,CEX,Coroners Service,11100,Analysts Fees,440300,24-Oct-12,1900102186,"1,053.00",Roar Forensics Ltd,105295
WARRINGTON BOROUGH COUNCIL,http://statistics.data.gov.uk/id/local-authority/00EU,Assistant Chief Executive,CEX,Coroners Service,11100,Analysts Fees,440300,24-Oct-12,1900102187,"2,583.00",Roar Forensics Ltd,105295
WARRINGTON BOROUGH COUNCIL,http://statistics.data.gov.uk/id/local-authority/00EU,Assistant Chief Executive,CEX,Coroners Service,11100,Analysts Fees,440300,24-Oct-12,1900102240,729,Roar Forensics Ltd,105295
WARRINGTON BOROUGH COUNCIL,http://statistics.data.gov.uk/id/local-authority/00EU,Neighbourhood & Community Services,NCS,James Phoenix House,54720,Equipment Purchase & Contract,400000,24-Oct-12,1900102273,"1,029.00",Arjo Ltd,105319
WARRINGTON BOROUGH COUNCIL,http://statistics.data.gov.uk/id/local-authority/00EU,Children & Young People,CYP,Childrens & Young People,81000,Works Contract Paymt,442500,05-Oct-12,1900100539,"118,308.00",Bam Construction Ltd,105324
WARRINGTON BOROUGH COUNCIL,http://statistics.data.gov.uk/id/local-authority/00EU,Children & Young People,CYP,Childrens Other,81004,Contract Works,492550,17-Oct-12,1900101309,"24,115.00",Cunningham Brown Ltd,105344
WARRINGTON BOROUGH COUNCIL,http://statistics.data.gov.uk/id/local-authority/00EU,Children & Young People,CYP,Childrens Other,81004,Contract Works,492550,18-Oct-12,1900101334,"3,820.00",Entrance Technology Services Ltd,105354
WARRINGTON BOROUGH COUNCIL,http://statistics.data.gov.uk/id/local-authority/00EU,Children & Young People,CYP,Secondary,81002,Building Work,200850,09-Oct-12,1900100640,"11,143.00",Globe Management Services Limited,105366
WARRINGTON BOROUGH COUNCIL,http://statistics.data.gov.uk/id/local-authority/00EU,Environment & Regeneration,ENO,Housing Projects,82008,Disabled Persons Grant 1996,554000,10-Oct-12,1900100845,"1,612.00",Independent Lifestyles Northwest Lt,105371
WARRINGTON BOROUGH COUNCIL,http://statistics.data.gov.uk/id/local-authority/00EU,Environment & Regeneration,ENO,Housing Projects,82008,Disabled Persons Grant 1996,554000,16-Oct-12,1900101074,"1,766.00",ThyssenKrupp Encasa Ltd,105382
WARRINGTON BOROUGH COUNCIL,http://statistics.data.gov.uk/id/local-authority/00EU,Environment & Regeneration,ENO,Housing Projects,82008,Disabled Persons Grant 1996,554000,26-Oct-12,1900102466,"4,406.00",ThyssenKrupp Encasa Ltd,105382
WARRINGTON BOROUGH COUNCIL,http://statistics.data.gov.uk/id/local-authority/00EU,Environment & Regeneration,ENO,Housing Projects,82008,Disabled Persons Grant 1996,554000,26-Oct-12,1900102488,"4,027.00",ThyssenKrupp Encasa Ltd,105382
WARRINGTON BOROUGH COUNCIL,http://statistics.data.gov.uk/id/local-authority/00EU,Environment & Regeneration,ENP,Environment & Regeneration,82000,Consult.& Prof. Serv,440000,05-Oct-12,1900100519,"3,200.00",Capita Business Services Ltd,105516
WARRINGTON BOROUGH COUNCIL,http://statistics.data.gov.uk/id/local-authority/00EU,Children & Young People,CHL,Aming High,32213,People with Physical or Sensory Disabili,535250,29-Oct-12,1900102556,"6,264.00",Leisure for Autism,105527
WARRINGTON BOROUGH COUNCIL,http://statistics.data.gov.uk/id/local-authority/00EU,Environment & Regeneration,ER0,Private Sector Hsg.,43660,Environmental Works,531050,16-Oct-12,1900101111,"1,407.00",Acorn Building Projects Ltd,105557
WARRINGTON BOROUGH COUNCIL,http://statistics.data.gov.uk/id/local-authority/00EU,Neighbourhood & Community Services,NCS,Care Purchase - Learning Disability,54450,Direct Payments,552000,16-Oct-12,1900101533,"1,240.00",Redacted Personal Data,105576
WARRINGTON BOROUGH COUNCIL,http://statistics.data.gov.uk/id/local-authority/00EU,Neighbourhood & Community Services,NCS,Care Purchase - Learning Disability,54450,Direct Payments,552000,16-Oct-12,1900101535,538,Redacted Personal Data,105598
WARRINGTON BOROUGH COUNCIL,http://statistics.data.gov.uk/id/local-authority/00EU,Neighbourhood & Community Services,NCS,Care Purchase - Learning Disability,54450,Direct Payments,552000,16-Oct-12,1900101537,"1,010.00",Redacted Personal Data,105621
WARRINGTON BOROUGH COUNCIL,http://statistics.data.gov.uk/id/local-authority/00EU,Neighbourhood & Community Services,NCS,Care Purchase - Learning Disability,54450,Direct Payments,552000,16-Oct-12,1900101541,638,Redacted Personal Data,105625
WARRINGTON BOROUGH COUNCIL,http://statistics.data.gov.uk/id/local-authority/00EU,Neighbourhood & Community Services,NCS,Care Purchase - Learning Disability,54450,Direct Payments,552000,16-Oct-12,1900101547,669,Redacted Personal Data,105641
WARRINGTON BOROUGH COUNCIL,http://statistics.data.gov.uk/id/local-authority/00EU,Children & Young People,CHL,EIG Funding - Dallam Childrens Centre,31511,Non BMP General Repairs,200050,02-Oct-12,1900100264,640,Manchester Working Limited,105646
WARRINGTON BOROUGH COUNCIL,http://statistics.data.gov.uk/id/local-authority/00EU,Neighbourhood & Community Services,NCS,Padgate House,54760,Non BMP General Repairs,200050,02-Oct-12,1900100267,850,Manchester Working Limited,105646
WARRINGTON BOROUGH COUNCIL,http://statistics.data.gov.uk/id/local-authority/00EU,Environment & Regeneration,ER0,Industrial Estates,43570,Non BMP General Repairs,200050,16-Oct-12,1900101167,"7,044.00",Manchester Working Limited,105646
WARRINGTON BOROUGH COUNCIL,http://statistics.data.gov.uk/id/local-authority/00EU,Neighbourhood & Community Services,NCS,Arts Development,51203,Equipment Purchase & Contract,400000,16-Oct-12,1900101167,"5,376.00",Manchester Working Limited,105646
WARRINGTON BOROUGH COUNCIL,http://statistics.data.gov.uk/id/local-authority/00EU,Neighbourhood & Community Services,NCS,Parr Hall - Build Mangt,51134,Non BMP General Repairs,200050,16-Oct-12,1900101167,"4,254.00",Manchester Working Limited,105646
WARRINGTON BOROUGH COUNCIL,http://statistics.data.gov.uk/id/local-authority/00EU,Environment & Regeneration,ER1,Woolston Depot,41331,Response Maintenance,200000,16-Oct-12,1900101167,"1,971.00",Manchester Working Limited,105646
WARRINGTON BOROUGH COUNCIL,http://statistics.data.gov.uk/id/local-authority/00EU,Environment & Regeneration,ER0,GGL Joint Use,43310,Response Maintenance,200000,16-Oct-12,1900101167,"1,030.00",Manchester Working Limited,105646
WARRINGTON BOROUGH COUNCIL,http://statistics.data.gov.uk/id/local-authority/00EU,Environment & Regeneration,ER1,Parks & Open Spaces,41426,Non BMP General Repairs,200050,16-Oct-12,1900101168,"1,214.00",Manchester Working Limited,105646
WARRINGTON BOROUGH COUNCIL,http://statistics.data.gov.uk/id/local-authority/00EU,Children & Young People,CHL,EIG Funding - Beaches Childrens Centre,31521,Specific Work,200200,16-Oct-12,1900101169,627,Manchester Working Limited,105646
WARRINGTON BOROUGH COUNCIL,http://statistics.data.gov.uk/id/local-authority/00EU,Holding Accounts,HOL,Single Billing Holding Account,91130,Servicing Contracts,200150,18-Oct-12,1900101347,"12,725.00",Manchester Working Limited,105646
WARRINGTON BOROUGH COUNCIL,http://statistics.data.gov.uk/id/local-authority/00EU,Neighbourhood & Community Services,NCS,Woodleigh,54740,Non BMP General Repairs,200050,22-Oct-12,1900102037,557,Manchester Working Limited,105646
WARRINGTON BOROUGH COUNCIL,http://statistics.data.gov.uk/id/local-authority/00EU,Holding Accounts,HOL,Single Billing Holding Account,91130,Specific Work,200200,22-Oct-12,1900102089,"32,800.00",Manchester Working Limited,105646
WARRINGTON BOROUGH COUNCIL,http://statistics.data.gov.uk/id/local-authority/00EU,Corporate Financing,COR,General Contingencies,61000,Non BMP General Repairs,200050,31-Oct-12,1900102682,580,Manchester Working Limited,105646
WARRINGTON BOROUGH COUNCIL,http://statistics.data.gov.uk/id/local-authority/00EU,Neighbourhood & Community Services,NCS,Care Purchase - PD,54440,Direct Payments,552000,16-Oct-12,1900101548,784,Redacted Personal Data,105665
WARRINGTON BOROUGH COUNCIL,http://statistics.data.gov.uk/id/local-authority/00EU,Neighbourhood & Community Services,NCS,Care Purchase - OP & OT Central,54420,Direct Payments,552000,16-Oct-12,1900101549,693,Redacted Personal Data,105666
WARRINGTON BOROUGH COUNCIL,http://statistics.data.gov.uk/id/local-authority/00EU,Neighbourhood & Community Services,NCS,Care Purchase - OPMH,54220,Direct Payments,552000,16-Oct-12,1900101555,"1,570.00",Redacted Personal Data,105687
WARRINGTON BOROUGH COUNCIL,http://statistics.data.gov.uk/id/local-authority/00EU,Children & Young People,CHL,DSG Early Years PVI Settings,32417,Private & Voluntary 3 Year Olds,470100,23-Oct-12,1900102394,"9,998.00",Kids Planet Warrington,105710
WARRINGTON BOROUGH COUNCIL,http://statistics.data.gov.uk/id/local-authority/00EU,Children & Young People,CHL,EIG Funding - 2 Year Old,31601,Payment of Grants,470050,23-Oct-12,1900102456,"1,528.00",Kids Planet Warrington,105710
WARRINGTON BOROUGH COUNCIL,http://statistics.data.gov.uk/id/local-authority/00EU,Neighbourhood & Community Services,NCS,Care Purchase - PD,54440,Direct Payments,552000,16-Oct-12,1900101558,"2,912.00",Redacted Personal Data,105727
WARRINGTON BOROUGH COUNCIL,http://statistics.data.gov.uk/id/local-authority/00EU,Neighbourhood & Community Services,NCS,Care Purchase - OP & OT South,54480,Direct Payments,552000,16-Oct-12,1900101560,964,Redacted Personal Data,105729
WARRINGTON BOROUGH COUNCIL,http://statistics.data.gov.uk/id/local-authority/00EU,Children & Young People,CHL,Foster Allowances,31106,Fostering Allowance,550050,09-Oct-12,1900100634,"1,180.00",Redacted Personal Data,105750
WARRINGTON BOROUGH COUNCIL,http://statistics.data.gov.uk/id/local-authority/00EU,Children & Young People,CHL,Foster Allowances,31106,Fostering Allowance,550050,02-Oct-12,1900100244,520,Redacted Personal Data,105753
WARRINGTON BOROUGH COUNCIL,http://statistics.data.gov.uk/id/local-authority/00EU,Neighbourhood & Community Services,NCS,Care Purchase - OP & OT South,54480,CP-Nursing Care-External,441200,11-Oct-12,1900100879,"26,304.00",CareConcepts (Appleton) Ltd,105804
WARRINGTON BOROUGH COUNCIL,http://statistics.data.gov.uk/id/local-authority/00EU,Neighbourhood & Community Services,NCS,Care Purchase Budget,54490,CP - Cont Care - External,441350,11-Oct-12,1900100879,"21,680.00",CareConcepts (Appleton) Ltd,105804
WARRINGTON BOROUGH COUNCIL,http://statistics.data.gov.uk/id/local-authority/00EU,Neighbourhood & Community Services,NCS,Care Purchase Budget,54490,CP Free Nursing Care External,443500,11-Oct-12,1900100879,"14,628.00",CareConcepts (Appleton) Ltd,105804
WARRINGTON BOROUGH COUNCIL,http://statistics.data.gov.uk/id/local-authority/00EU,Neighbourhood & Community Services,NCS,Care Purchase - OP & OT South,54480,CP-LongStayExternal,441150,11-Oct-12,1900100879,"7,088.00",CareConcepts (Appleton) Ltd,105804
WARRINGTON BOROUGH COUNCIL,http://statistics.data.gov.uk/id/local-authority/00EU,Neighbourhood & Community Services,NCS,Care Purchase -OP & OT East,54430,CP-Nursing Care-External,441200,11-Oct-12,1900100879,"3,632.00",CareConcepts (Appleton) Ltd,105804
WARRINGTON BOROUGH COUNCIL,http://statistics.data.gov.uk/id/local-authority/00EU,Neighbourhood & Community Services,NCS,Care Purchase Budget,54490,Voids,515150,11-Oct-12,1900100879,"1,772.00",CareConcepts (Appleton) Ltd,105804
WARRINGTON BOROUGH COUNCIL,http://statistics.data.gov.uk/id/local-authority/00EU,Neighbourhood & Community Services,NCS,Care Purchase - OP & OT Central,54420,CP-Nursing Care-External,441200,11-Oct-12,1900100879,"1,712.00",CareConcepts (Appleton) Ltd,105804
WARRINGTON BOROUGH COUNCIL,http://statistics.data.gov.uk/id/local-authority/00EU,Neighbourhood & Community Services,NCS,Care Purchase - Hospital Discharge Team,54280,CP-Nursing Care-External,441200,11-Oct-12,1900100879,"1,712.00",CareConcepts (Appleton) Ltd,105804
WARRINGTON BOROUGH COUNCIL,http://statistics.data.gov.uk/id/local-authority/00EU,Neighbourhood & Community Services,NCS,Spencer House,53280,Medical & Hygiene Supplies,401050,22-Oct-12,1900102045,"1,000.00",CareConcepts (Appleton) Ltd,105804
WARRINGTON BOROUGH COUNCIL,http://statistics.data.gov.uk/id/local-authority/00EU,Neighbourhood & Community Services,NCS,Care Purchase - IC,54290,CP - Intermediate Care - External,441300,29-Oct-12,1900102517,"35,202.00",CareConcepts (Appleton) Ltd,105804
WARRINGTON BOROUGH COUNCIL,http://statistics.data.gov.uk/id/local-authority/00EU,Neighbourhood & Community Services,NCS,Care Purchase Budget,54490,CP - Cont Care - External,441350,29-Oct-12,1900102531,"26,567.00",CareConcepts (Appleton) Ltd,105804
WARRINGTON BOROUGH COUNCIL,http://statistics.data.gov.uk/id/local-authority/00EU,Neighbourhood & Community Services,NCS,Care Purchase - OP & OT South,54480,CP-Nursing Care-External,441200,29-Oct-12,1900102531,"25,203.00",CareConcepts (Appleton) Ltd,105804
WARRINGTON BOROUGH COUNCIL,http://statistics.data.gov.uk/id/local-authority/00EU,Neighbourhood & Community Services,NCS,Care Purchase Budget,54490,CP Free Nursing Care External,443500,29-Oct-12,1900102531,"14,426.00",CareConcepts (Appleton) Ltd,105804
WARRINGTON BOROUGH COUNCIL,http://statistics.data.gov.uk/id/local-authority/00EU,Neighbourhood & Community Services,NCS,Care Purchase - OP & OT South,54480,CP-LongStayExternal,441150,29-Oct-12,1900102531,"6,582.00",CareConcepts (Appleton) Ltd,105804
WARRINGTON BOROUGH COUNCIL,http://statistics.data.gov.uk/id/local-authority/00EU,Neighbourhood & Community Services,NCS,Care Purchase -OP & OT East,54430,CP-Nursing Care-External,441200,29-Oct-12,1900102531,"2,659.00",CareConcepts (Appleton) Ltd,105804
WARRINGTON BOROUGH COUNCIL,http://statistics.data.gov.uk/id/local-authority/00EU,Neighbourhood & Community Services,NCS,Care Purchase Budget,54490,Voids,515150,29-Oct-12,1900102531,"2,278.00",CareConcepts (Appleton) Ltd,105804
WARRINGTON BOROUGH COUNCIL,http://statistics.data.gov.uk/id/local-authority/00EU,Neighbourhood & Community Services,NCS,Care Purchase - OP & OT Central,54420,CP-Nursing Care-External,441200,29-Oct-12,1900102531,"1,712.00",CareConcepts (Appleton) Ltd,105804
WARRINGTON BOROUGH COUNCIL,http://statistics.data.gov.uk/id/local-authority/00EU,Neighbourhood & Community Services,NCS,Care Purchase - Hospital Discharge Team,54280,CP-Nursing Care-External,441200,29-Oct-12,1900102531,"1,712.00",CareConcepts (Appleton) Ltd,105804
